Workbook

Sheet Navigation
A6: =Translation!A949 -> Shqyrtimi SHVT 2013-2017
A7: NAVIGATION
B9: KEK
B10: HQ/Group | E10: DSO | H10: PES | K10: TRADE | N10: Mining | Q10: Generation
B11: =Translation!A11 -> HQ Kostot e përbashkëta | E11: =Translation!A27 -> OPEX | H11: OPEX | K11: OPEX | N11: OPEX | Q11: OPEX
B12: HQ1 | C12: =Translation!A15 -> OPEX (HQ a) KEK-u | E12: DS1 | F12: Opex (DSO a) KEK | H12: PS1 | I12: Opex PES KEK | K12: PT1 | L12: Opex TRADE KEK | N12: MN1 | O12: Opex (MIN a) KEK | Q12: GN1 | R12: Opex (GEN a) KEK
B13: HQ2 | C13: =Translation!A16 -> OPEX (HQ b1) KEK-u | E13: DS2 | F13: Opex (DSO b) KEK | H13: PS2 | I13: Opex Cust KEK | N13: MN2 | O13: Opex (MIN b) KEK | Q13: GN2 | R13: Opex (GEN b) KEK
B14: HQ3 | C14: =Translation!A17 -> OPEX (B2 HQ) KEK-u
B15: =Translation!A12 -> Stafi | E15: DS4 | F15: Opex (DSO d) KEK
B16: HQ4 | C16: =Translation!A18 -> OPEX (Group) KEK-u | E16: =Translation!A22 -> Shpenzimet tjera | H16: =E16 -> Shpenzimet tjera | K16: =E16 -> Shpenzimet tjera | N16: =E16 -> Shpenzimet tjera | Q16: =E16 -> Shpenzimet tjera
B17: =Translation!A13 -> Të ardhurat | E17: DS3 | F17: Other (DSO) KEK | H17: PS2a | I17: Other (DSO) KEK | K17: PT1a | L17: Other (PT) KEK | N17: MN2a | O17: Other (MIN) KEK | Q17: GN4a | R17: Other (DSO) KEK
B18: HQ5 | C18: =Translation!A19 -> Te Ardhurat (Group) KEK-u | E18: =Translation!A225 -> Capex | H18: =E18 -> Capex | K18: =E18 -> Capex | N18: =E18 -> Capex | Q18: =E18 -> Capex
B19: =Translation!A14 -> Pyetjet Narrative (treguese-indikative) | E19: DS5 | F19: Capex (DSO a) KEK | H19: PS3 | I19: Capex PES KEK | N19: MN4 | O19: Capex (MIN a) KEK | Q19: GN5 | R19: Capex (GEN a) KEK
B20: HQ6 | C20: =Translation!A20 -> Indikative KEK | E20: DS6 | F20: Capex (DSO b) KEK | N20: MN5 | O20: Capex (MIN b) KEK | Q20: GN6 | R20: Capex (GEN b) KEK
E21: DS7 | F21: Connections DSO KEK
E22: =Translation!A23 -> Nxitësit | H22: =E22 -> Nxitësit | N22: =E22 -> Nxitësit | Q22: =E22 -> Nxitësit
E23: DS8 | F23: Assets DSO KEK | H23: PS4 | I23: DRIVER PES KEK | N23: MN6 | O23: Assets MIN KEK | Q23: GN3 | R23: Driver (GEN a) KEK
E24: DS9 | F24: Assets DSO KEK (N) | Q24: GN4 | R24: Driver (GEN b) KEK
E25: DS10 | F25: Unit Cost DSO KEK | Q25: GN7 | R25: Assets GEN KEK
E26: DS11 | F26: DRIVER (DSO a)KEK
E27: DS12 | F27: DRIVER (DSO b)KEK
E28: DS13 | F28: DRIVER (DSO c) KEK
E29: DS14 | F29: DRIVER (DSO d)KEK
E30: P&L | H30: P&L | K30: P&L | N30: P&L | Q30: P&L
E31: DS15 | F31: P&L DSO KEK | H31: PS5 | I31: P&L PES KEK | K31: PT2 | L31: P&L TRADE KEK | O31: P&L MINING KEK | R31: P&L GENERATION KEK

Sheet Translation
A6: =Navigation!A6 -> Shqyrtimi SHVT 2013-2017
A7: =A950 -> PËRKTHIMI
E8: TRANSLATION works using the Macro on the radio buttons on the NAVIGATION sheet.
B9: KEK | E9: Text on the questionaires should be linked to a cell in column A on the Translation sheet - the Translation macro then copies the contents of Column B or C to column A depending on the language selected.
A10: DO NOT EDIT | B10: English | C10: Albanian
A11: HQ Kostot e përbashkëta | B11: HQ Shared Costs | C11: HQ Kostot e përbashkëta
A12: Stafi | B12: Staff | C12: Stafi | E12: SUGGEST THAT THIS IS IMPLEMENTED AFTER CONSULTATION TO AVOID REWORK BUT WOULD ONLY TAKE 1/2 DAY TO IMPLEMENT (PLUS TRANSLATION)
A13: Të ardhurat | B13: Revenue | C13: Të ardhurat
A14: Pyetjet Narrative (treguese-indikative) | B14: Narrative Questions | C14: Pyetjet Narrative (treguese-indikative) | E14: MACRO currently copies to row 1000 - this is easily increased
A15: OPEX (HQ a) KEK-u | B15: Opex (HQ a) KEK | C15: OPEX (HQ a) KEK-u
A16: OPEX (HQ b1) KEK-u | B16: Opex (HQ b1) KEK | C16: OPEX (HQ b1) KEK-u
A17: OPEX (B2 HQ) KEK-u | B17: Opex (HQ b2) KEK | C17: OPEX (B2 HQ) KEK-u
A18: OPEX (Group) KEK-u | B18: Opex (Group) KEK | C18: OPEX (Group) KEK-u
A19: Te Ardhurat (Group) KEK-u | B19: Rev (Group) KEK | C19: Te Ardhurat (Group) KEK-u
A20: Indikative KEK | B20: Narrative KEK | C20: Indikative KEK
A21: Navigimi -Drejtimi | B21: NAVIGATION | C21: Navigimi -Drejtimi
A22: Shpenzimet tjera | B22: Other Expenditure | C22: Shpenzimet tjera
A23: Nxitësit | B23: Drivers | C23: Nxitësit
A26: HQ1 - OPEX-HQ Kosto (KEK Corp) | B26: HQ1 - Opex- HQ Cost (KEK Corp) | C26: HQ1 - OPEX-HQ Kosto (KEK Corp)
A27: OPEX | B27: Opex | C27: OPEX
A28: KOSTOT NE ZYRAT QENDRORE të KEK-ut | B28: KEK HEADQUARTERS COSTS | C28: KOSTOT NE ZYRAT QENDRORE të KEK-ut
A30: Shpenzimet e personelit | B30: Staff Costs | C30: Shpenzimet e personelit
A31: Pagat (neto) | B31: Salaries (net) | C31: Pagat (neto)
A32: Kontributi pensional dhe taksat | B32: Pension contribution and taxes | C32: Kontributi pensional dhe taksat
A33: Tjera | B33: Other | C33: Tjera
A34: Elektrike dhe të tjera | B34: Electricity and Other Utilities | C34: Elektrike dhe të tjera
A35: Blerjet e Energjisë Elektrike | B35: Electricity Purchaces | C35: Blerjet e Energjisë Elektrike
A36: Shkëmbimi i energjisë elektrike | B36: Exchange of Electricity | C36: Shkëmbimi i energjisë elektrike
A37: Karburante | B37: Fuel | C37: Karburante
A38: Gaz dhe ujë | B38: Gas and Water | C38: Gaz dhe ujë
A39: Transmetimi i energjisë elektrike | B39: Transmission of Electricity | C39: Transmetimi i energjisë elektrike
A40: Mirëmbajtje | B40: Maintenance | C40: Mirëmbajtje
A41: Shërbimet Riparuese | B41: Repairs Service | C41: Shërbimet Riparuese
A42: Shërbime të Mirëmbajtjes | B42: Maintenance Service | C42: Shërbime të Mirëmbajtjes
A43: Materiale dhe Furnizime | B43: Materials and Supplies | C43: Materiale dhe Furnizime
A44: Zhvlerësimi dhe amortizimi | B44: Depreciation and Amortisation | C44: Zhvlerësimi dhe amortizimi
A45: Sigurimi për shlyerjen e inventarit | B45: Provision for write down of inventories | C45: Sigurimi për shlyerjen e inventarit
A46: Humbja e Zhvlerësimit të të arkëtueshmeve | B46: Loss of Impairment of recievables | C46: Humbja e Zhvlerësimit të të arkëtueshmeve
A47: Dispozitat për çështjet mjedisore | B47: Provisions for Environmental Issues | C47: Dispozitat për çështjet mjedisore
A48: Shpenzime të tjera operative | B48: Other Operating Expense | C48: Shpenzime të tjera operative
A49: Shërbimet e transportit | B49: Transport Services | C49: Shërbimet e transportit
A50: Shpenzimet e sigurimit | B50: Insurance Expense | C50: Shpenzimet e sigurimit
A51: Taksat koncesionare | B51: Concession Fees | C51: Taksat koncesionare
A52: Licencat | B52: Licenses | C52: Licencat
A53: Shpenzime të tjera | B53: Other Expenses | C53: Shpenzime të tjera
A54: Shpenzimet e brendshme | B54: Internal Expense | C54: Shpenzimet e brendshme
A55: Kostoja e qymyrit nga Minierat | B55: Cost of Coal from Mining | C55: Kostoja e qymyrit nga Minierat
A56: Kostoja e energjisë elektrike dhe shërbimeve të shpërndarjes | B56: Cost of Electricity and Distribution Services | C56: Kostoja e energjisë elektrike dhe shërbimeve të shpërndarjes
A57: Shënime: | B57: Notes: | C57: Shënime:
A58: Kostot historike janë mbi bazën e rrjedhes se parasë - Kostot e parashikuara janë mbi bazë të çmimit konstant për 2012 | B58: Historic costs are on a nominal (accrual accounting) basis - Forecast costs are in 2012 constant price base | C58: Kostot historike janë mbi bazën e rrjedhes se parasë - Kostot e parashikuara janë mbi bazë të çmimit konstant për 2012
A59: Kostot e Kapitalizuara F&E jane ato riparime te cilat e shtojne kapitalin ne RAB sipas standardeve nderkombetare te Kontabilitetit | B59: Capitalised F&E costs are those repairs that result in a capital addition to the RAB in accordance with international accounting standards | C59: Kostot e Kapitalizuara F&E jane ato riparime te cilat e shtojne kapitalin ne RAB sipas standardeve nderkombetare te Kontabilitetit
A60: Kodi I Llogarive | B60: Account Code | C60: Kodi I Llogarive
A62: Aktuale (€ '000) | B62: Actual (€'000) | C62: Aktuale (€ '000)
A63: Vlerësimi (€ '000) | B63: Estimate (€'000) | C63: Vlerësimi (€ '000)
A64: Parashikimi (€ '000) | B64: Forecast (€'000) | C64: Parashikimi (€ '000)
A66: HQ2 - OPEX-HQ Kosto (KEK HQ | B66: HQ2 - Opex- HQ Cost (KEK HQ | C66: HQ2 - OPEX-HQ Kosto (KEK HQ
A67: aktuale për 2011 | B67: 2011 Actuals | C67: aktuale për 2011
A68: Minierat | B68: Mining | C68: Minierat
A69: Gjenerimi | B69: Generation | C69: Gjenerimi
A70: Rrjeti | B70: Network | C70: Rrjeti
A71: FPEE | B71: PES | C71: FPEE
A72: Furnizim / Tregti | B72: Supply/ Trade | C72: Furnizim / Tregti
A73: Total | B73: Total | C73: Total
A74: Baza e alokimeve | B74: Basis of allocation | C74: Baza e alokimeve
A76: HQ3 - OPEX-HQ Kosto (KEK HQ | B76: HQ3 - Opex- HQ Cost (KEK HQ | C76: HQ3 - OPEX-HQ Kosto (KEK HQ
A77: Parashikimi 2013 | B77: 2013 Forecast | C77: Parashikimi 2013
A79: HQ4 - OPEX-GROUP Personeli (KEK GROUP) | B79: HQ4 - Opex- GROUP Staffing (KEK GROUP) | C79: HQ4 - OPEX-GROUP Personeli (KEK GROUP)
A80: Personeli KEK GROUP (FTE) | B80: KEK GROUP Staffing (FTE) | C80: Personeli KEK GROUP (FTE)
A81: Zyra Qendrore | B81: Headquarters | C81: Zyra Qendrore
A82: APS (Arsimi Profesional Superior) | B82: SuPE (Superior Professional Education) | C82: APS (Arsimi Profesional Superior)
A83: AL (Arsimi i lartë) | B83: HE (Higher Education) | C83: AL (Arsimi i lartë)
A84: KL (kualifikim të lartë) | B84: HQ (High Qualification) | C84: KL (kualifikim të lartë)
A85: AMP (Arsimi i mesëm profesional) | B85: SePE (Secondary Professional Education) | C85: AMP (Arsimi i mesëm profesional)
A86: KU (Kualifikim i ulët) | B86: LQ (Low Qualifiations) | C86: KU (Kualifikim i ulët)
A87: PK (I pakualifikuar) | B87: UQ (Unqualified) | C87: PK (I pakualifikuar)
A88: Shkalla | B88: grade | C88: Shkalla
A89: Nëntotali | B89: Subtotal | C89: Nëntotali
A90: Aktual | B90: Actual | C90: Aktual
A91: Vlerësim | B91: Estimate | C91: Vlerësim
A92: Parashikim | B92: Forecast | C92: Parashikim
A94: TË ARDHURAT HQ5 (KEK Corp) | B94: HQ5 - REVENUES (KEK Corp) | C94: TË ARDHURAT HQ5 (KEK Corp)
A96: TË ARDHURAT | B96: REVENUE | C96: TË ARDHURAT
A97: Shitjet | B97: Sales | C97: Shitjet
A98: Shitjet e Energjisë Elektrike (jo-shtëpiak) | B98: Sales of Electricity (non-Household) | C98: Shitjet e Energjisë Elektrike (jo-shtëpiak)
A99: Shitjet e Energjisë Elektrike (konsumatorëve shtëpiak) | B99: Sales of Electricity (Household) | C99: Shitjet e Energjisë Elektrike (konsumatorëve shtëpiak)
A100: Të hyrat nga eksportet e energjisë elektrike | B100: Income from electricity exports | C100: Të hyrat nga eksportet e energjisë elektrike
A101: Të hyrat nga granteve | B101: Income from Grants | C101: Të hyrat nga granteve
A102: Amortizimi i granteve të shtyra | B102: Amortization of deferred grants | C102: Amortizimi i granteve të shtyra
A103: Energjia elektrike e importuar | B103: Electricity Imported | C103: Energjia elektrike e importuar
A104: Të ardhurat e brendshme | B104: Internal Revenue | C104: Të ardhurat e brendshme
A105: Shitja e qymyrit në brez | B105: Sale of coal to Generation | C105: Shitja e qymyrit në brez
A106: Shitjet e energjisë elektrike ndaj furnizuesit | B106: Sales of electricity to Supply | C106: Shitjet e energjisë elektrike ndaj furnizuesit
A107: Shitja e shërbimeve të shpërndarjes ndaj furnizuesit | B107: Sale of distribution services to Supply | C107: Shitja e shërbimeve të shpërndarjes ndaj furnizuesit
A108: Të hyra të tjera | B108: other incomes | C108: Të hyra të tjera
A109: "Shitjet e tjera" - Të specifikohet | B109: "Other Sales" specify | C109: "Shitjet e tjera" - Të specifikohet
A110: Të hyrat nga shitja e thëngjillit (Të jashtme) | B110: Income from sales of coal (external) | C110: Të hyrat nga shitja e thëngjillit (Të jashtme)
A111: Të hyrat nga provizionet e sherbimeve të përjashtuara | B111: Income from provision of excluded services | C111: Të hyrat nga provizionet e sherbimeve të përjashtuara
A112: Të hyrat nga qiradhënia e pronës | B112: Income from property retnal | C112: Të hyrat nga qiradhënia e pronës
A113: Amortizimi i granteve të shtyra | B113: Amortization of deferred grants | C113: Amortizimi i granteve të shtyra
A114: Të hyra të tjera - të specifikohet | B114: other incomes - specify | C114: Të hyra të tjera - të specifikohet
A115: Të hyrat nga qiradhënia e pronës | B115: Income from property rental | C115: Të hyrat nga qiradhënia e pronës
A116: Amortizimi i granteve të shtyra | B116: Amortization of deferred grants | C116: Amortizimi i granteve të shtyra
A117: Të hyrat nga shitja e thëngjillit (Të jashtme) | B117: Income from sales of coal (external) | C117: Të hyrat nga shitja e thëngjillit (Të jashtme)
A118: Indekset | B118: Indexes | C118: Indekset
A119: IÇK (HCIPs) | B119: CPI (HCIPs) | C119: IÇK (HCIPs)
A120: EURIBOR | B120: EURIBOR | C120: EURIBOR
A121: Shenim:Të gjitha shpenzimet duhet të paraqitet si nominale | B121: Note all costs are to be presented as nominal | C121: Shenim:Të gjitha shpenzimet duhet të paraqitet si nominale
A123: HQ6 - Përgjigje treguese(indikative) | B123: HQ6 - Narrative Response | C123: HQ6 - Përgjigje treguese(indikative)
A124: Ju lutemi të jepni përgjigje me shkrim për pyetjet më poshtë si dhe ndonjë informacion mbështetës per sqarime ndaj ZRRE-së. | B124: Please provide written responses to the questions below with any supporting information required to aid the ERO's understanding. | C124: Ju lutemi të jepni përgjigje me shkrim për pyetjet më poshtë si dhe ndonjë informacion mbështetës per sqarime ndaj ZRRE-së.
A125: Si është I percaktuar kapaciteti i nënstacioneve 35/10kV ? | B125: How is the capacity of 35/10kV substations determined? | C125: Si është I percaktuar kapaciteti i nënstacioneve 35/10kV ?
A127: Si është përcaktuar klasifikimi i linjave 10kV ? | B127: How is the rating of 10kV lines determined? | C127: Si është përcaktuar klasifikimi i linjave 10kV ?
A129: Si eshte llogaritur/ vleresuar Renia e tensionit maksimal ne zbarat 10kV? | B129: How is the maximum voltage drop at 10kV busbars calculated/estimated? | C129: Si eshte llogaritur/ vleresuar Renia e tensionit maksimal ne zbarat 10kV?
A131: Si jane percaktuar 10 linjat me kualitet me te dobët 10kV në çdo rajon ? | B131: How were the 10 worst 10kV lines in each region determined? | C131: Si jane percaktuar 10 linjat me kualitet me te dobët 10kV në çdo rajon ?
A133: Shpjegoni se si menaxhohet sistemi 6.5 kV duke përfshirë: -Kush e posedon atë? - Kush e mirembanë atë? - Kush është përgjegjes per faturimine konsumatoreve ? | B133: Explain how the 6.5 kV system is managed including: -who owns it? - who maintains it? - who is responsible for billing customers? | C133: Shpjegoni se si menaxhohet sistemi 6.5 kV duke përfshirë: -Kush e posedon atë? - Kush e mirembanë atë? - Kush është përgjegjes per faturimine konsumatoreve ?
A135: Si është llogaritur parashikimi I kerkeses(ngarkeses)? | B135: How is the demand forecast calculated? | C135: Si është llogaritur parashikimi I kerkeses(ngarkeses)?
A137: Cfare politikash percaktojne mirëmbajtjen që po zbatohet ? | B137: What policies determine the maintenance that is carried out? | C137: Cfare politikash percaktojne mirëmbajtjen që po zbatohet ?
A139: A ka kompana një regjistër të pasurisë që është përdorur për të përcaktuar asetet që duhen të mirëmbahen dhe/ose të mbajë informacionet mbi gjendjen e tyre. | B139: Does the company have an asset register that is used to determine the assets that are to be maintained and/or hold condition iformation. | C139: A ka kompana një regjistër të pasurisë që është përdorur për të përcaktuar asetet që duhen të mirëmbahen dhe/ose të mbajë informacionet mbi gjendjen e tyre.
A140: Nese ka atehere ju lutem te shpjegoni llojin dhe teresine e dhenave të mbajtura mbi astetet dhe gjendjen e tyre. | B140: If so please explain the type and completeness of data held regarding assets and condition. | C140: Nese ka atehere ju lutem te shpjegoni llojin dhe teresine e dhenave të mbajtura mbi astetet dhe gjendjen e tyre.
A141: Për projektet kapitale të rrjetit ju lutem shpjegoni se cilat punë janë ndërmarrë nga pala kontraktuese dhecilat nga stafi KEK-ut për fazat e ndryshme të projektit: | B141: For network capital projects please explain which works are undertaken by contract staff and which by KEK staff for the various stages of the project: | C141: Për projektet kapitale të rrjetit ju lutem shpjegoni se cilat punë janë ndërmarrë nga pala kontraktuese dhecilat nga stafi KEK-ut për fazat e ndryshme të projektit:
A142: p.sh. Identifikimi i nevojës, dizajnimi funksional, projektimi teknik, menaxhimi i kontratave, Menaxhimi i Projekteve, ndërtimi, Komisionimi. | B142: e.g. Identification of need, Functional design, Technical design, Contract Management, Project Management, Construction, Commissioning. | C142: p.sh. Identifikimi i nevojës, dizajnimi funksional, projektimi teknik, menaxhimi i kontratave, Menaxhimi i Projekteve, ndërtimi, Komisionimi.
A144: Për riparime të rrjetit dhe mirëmbajtje, ju lutem shpjegoni se cilat punë janë kryer nga stafi kontraktues dhe të cilat nga stafi i KEK-ut. | B144: For Network Repairs and Maintenance work please explain which works are undertaken by contract staff and which by KEK staff. | C144: Për riparime të rrjetit dhe mirëmbajtje, ju lutem shpjegoni se cilat punë janë kryer nga stafi kontraktues dhe të cilat nga stafi i KEK-ut.
A146: Për aktivitetet e mëposhtme ju lutem shpjegoni se cili i licencuar kontakton konsumatorët dhe cili I licencuar ekzekuton punët / përgjigje: | B146: For the activities below please explain which licensee the customer contacts and which licencee carries out the works/response: | C146: Për aktivitetet e mëposhtme ju lutem shpjegoni se cili i licencuar kontakton konsumatorët dhe cili I licencuar ekzekuton punët / përgjigje:
A147: Kycjet e reja / Shkyçjet Defektet(mosfurnizimi, prishja) Defektet e KEK-ut prishja e siguresave kryesore Defektet apo prishjet e siguresave të Konsumatorit Siguria publike (shenime mbi gërmim te sigurtë, puna pranë Aparaturave) | B147: New Connections/Disconnections Faults (No supply, damage) Faults KEK main cut out fuse Faults Customer fuses Public Safety (Safe digging records, work near aparatus) | C147: Kycjet e reja / Shkyçjet Defektet(mosfurnizimi, prishja) Defektet e KEK-ut prishja e siguresave kryesore Defektet apo prishjet e siguresave të Konsumatorit Siguria publike (shenime mbi gërmim te sigurtë, puna pranë Aparaturave)
A149: Në personelin dhe parashikimet tek R & M, ju lutem shpjegoni në cilën periudhë është parashikuar transferimi i transformatorëve 110 kV tek KOSTT-it si dhe stafi përkatës dhe kostot qe nderlidhen me këte transferim. | B149: In the staffing and R&M forecasts please explain in which period the transfer of 110kV transformers to KOSTT has been accounted for and respective staff and costs assotiated with the transfer. | C149: Në personelin dhe parashikimet tek R & M, ju lutem shpjegoni në cilën periudhë është parashikuar transferimi i transformatorëve 110 kV tek KOSTT-it si dhe stafi përkatës dhe kostot qe nderlidhen me këte transferim.
A151: Për "CAPEX tjetër" ju lutem jepni detajet për secilen politike te kapitalizimit e cila devijon nga parimet e pergjithshme ne paragrafin 4.7 te udhezimeve te kontabilitetit dhe jepni detaje mbeshtetese per shpenzimet kapitale. | B151: For "other Capex" please provide details of any capitalisation policy that deviates from the general principals in section 4.7 of the Accounting Guidlines and provide supporting detail for the capital expenditure. | C151: Për "CAPEX tjetër" ju lutem jepni detajet për secilen politike te kapitalizimit e cila devijon nga parimet e pergjithshme ne paragrafin 4.7 te udhezimeve te kontabilitetit dhe jepni detaje mbeshtetese per shpenzimet kapitale.
A152: Ju lutemi të ofroni detaje të sigurimit. Për sigurimin e aseteve të rrjetit ju lutemi ofroni detaje rreth vlerës minimale që mund të bëhet. | B152: Please provide details of insurance held. For Network Asset insurance please provide detail of the minimum value of claim that would be made. | C152: Ju lutemi të ofroni detaje të sigurimit. Për sigurimin e aseteve të rrjetit ju lutemi ofroni detaje rreth vlerës minimale që mund të bëhet.
A153: Nëse nuk keni sigurim të Aseteve të Rrjetit, ju lutemi të ofroni kohën e fundit kur kompania ka provuar të prokurojë sigurimin. | B153: If no Network Asset insurance is held please explain the last time the company attempted to procure the insurance. | C153: Nëse nuk keni sigurim të Aseteve të Rrjetit, ju lutemi të ofroni kohën e fundit kur kompania ka provuar të prokurojë sigurimin.
A154: DS1 - OPEX-R & M Kosto (KEK OSSH) | B154: DS1 - Opex- R&M Cost (KEK DSO) | C154: DS1 - OPEX-R & M Kosto (KEK OSSH)
A155: Riparime dhe mirëmbajtje | B155: Repairs and Maintenance | C155: Riparime dhe mirëmbajtje
A156: Mirëmbajtja | B156: Maintenance | C156: Mirëmbajtja
A157: Nderpreresit | B157: Switchgear | C157: Nderpreresit
A158: Transformatoret (35/10kV) | B158: Transformers (35/10kV) | C158: Transformatoret (35/10kV)
A159: Linjat mbi toke (ne shtylla) | B159: Overhead lines | C159: Linjat mbi toke (ne shtylla)
A160: Kabllot | B160: Cables | C160: Kabllot
A161: Prerje e drunjeve(Kalim I linjave neper drunje) | B161: Tree Cutting | C161: Prerje e drunjeve(Kalim I linjave neper drunje)
A162: 35kV - Demtimet dhe emergjencat | B162: 35kV - Faults and Emergencies | C162: 35kV - Demtimet dhe emergjencat
A163: Nderpreresit | B163: Switchgear | C163: Nderpreresit
A164: Transformator(35/10kV) | B164: Transformers (35/10kV) | C164: Transformator(35/10kV)
A165: Linjat mbi toke (ne shtylla) | B165: Overhead lines | C165: Linjat mbi toke (ne shtylla)
A166: Kabllot | B166: Cables | C166: Kabllot
A167: Shto rreshta shtese mbi | B167: Add additional rows above | C167: Shto rreshta shtese mbi
A168: F & E kostot e kapitalizuar | B168: F&E costs capitalised | C168: F & E kostot e kapitalizuar
A169: 10kV - Mirëmbajtja | B169: 10kV - Maintenance | C169: 10kV - Mirëmbajtja
A170: Nderpreresit | B170: Switchgear | C170: Nderpreresit
A171: Transformatorë (10/.4kV) GM | B171: Transformers (10/.4kV) Ground Mounted | C171: Transformatorë (10/.4kV) GM
A172: Transformatorë (10/.4kV) PM | B172: Transformers (10/.4kV) Pole Mounted | C172: Transformatorë (10/.4kV) PM
A173: Linjat mbi toke (ne shtylla) | B173: Overhead lines | C173: Linjat mbi toke (ne shtylla)
A174: Kabllot | B174: Cables | C174: Kabllot
A175: Prerje e drunjeve(Kalim I linjave neper drunje) | B175: Tree Cutting | C175: Prerje e drunjeve(Kalim I linjave neper drunje)
A176: 10kV - Gabimet dhe emergjencat | B176: 10kV - Faults and Emergencies | C176: 10kV - Gabimet dhe emergjencat
A177: Nderpreresit | B177: Switchgear | C177: Nderpreresit
A178: Transformatoret (10/.4kV) GM | B178: Transformers (10/.4kV) Ground Mounted | C178: Transformatoret (10/.4kV) GM
A179: Transformatoret (10/.4kV) PM | B179: Transformers (10/.4kV) Pole Mounted | C179: Transformatoret (10/.4kV) PM
A180: Linjat mbi toke (ne shtylla) | B180: Overhead lines | C180: Linjat mbi toke (ne shtylla)
A181: Kabllot | B181: Cables | C181: Kabllot
A182: Ju lutemi të vlerësoni më poshtë se si këto shpenzime janë të ndarë nëpër asetet përkatëse | B182: Please estimate below how these costs are split across the relevant assets | C182: Ju lutemi të vlerësoni më poshtë se si këto shpenzime janë të ndarë nëpër asetet përkatëse
A183: F & E kostot e kapitalizuara | B183: F&E costs capitalised | C183: F & E kostot e kapitalizuara
A184: 400V - Mirëmbajtja | B184: 400V - Maintenance | C184: 400V - Mirëmbajtja
A185: Centrale (S / S) | B185: Switchboards (S/S) | C185: Centrale (S / S)
A186: 400 V Shtyllat e Rrjetit | B186: 400 V Network Pillars | C186: 400 V Shtyllat e Rrjetit
A187: Kutitë e linjave nëntokësore 400 V | B187: 400 V underground connection boxes | C187: Kutitë e linjave nëntokësore 400 V
A188: Linjat mbi toke (ne shtylla) | B188: Overhead lines | C188: Linjat mbi toke (ne shtylla)
A189: Kabllot | B189: Cables | C189: Kabllot
A190: Njehesoret | B190: Metering | C190: Njehesoret
A191: Prerje e drunjeve(Kalim I linjave neper drunje) | B191: Tree Cutting | C191: Prerje e drunjeve(Kalim I linjave neper drunje)
A192: Defektet dhe emergjencat | B192: Faults and Emergencies | C192: Defektet dhe emergjencat
A193: Centralet (S / S) | B193: Switchboards (S/S) | C193: Centralet (S / S)
A194: Shtyllat e rrjetit 400 V | B194: 400 V Network Pillars | C194: Shtyllat e rrjetit 400 V
A195: Kutitë e linjave nëntokësore 400 V | B195: 400 V underground connection boxes | C195: Kutitë e linjave nëntokësore 400 V
A196: Linjat mbi toke (ne shtylla) | B196: Overhead lines | C196: Linjat mbi toke (ne shtylla)
A197: Kabllot | B197: Cables | C197: Kabllot
A198: UG Shërbimi | B198: Service UG | C198: UG Shërbimi
A199: Shërbimi OH | B199: Service OH | C199: Shërbimi OH
A200: Njehesoret | B200: Metering | C200: Njehesoret
A202: Kostot e kapitalizuara F & E | B202: F&E costs capitalised | C202: Kostot e kapitalizuara F & E
A203: Ju lutemi të vlerësoni më poshtë se si këto shpenzime janë të ndarë nëpër asetet përkatëse | B203: Please estimate below how these costs are split across the relevant assets | C203: Ju lutemi të vlerësoni më poshtë se si këto shpenzime janë të ndarë nëpër asetet përkatëse
A204: DS2 - OPEX-R & M Vëllimi (KEK OSSH) | B204: DS2 - Opex- R&M Volumes (KEK DSO) | C204: DS2 - OPEX-R & M Vëllimi (KEK OSSH)
A205: Vëllimet | B205: Volumes | C205: Vëllimet
A207: DS3 - Shpenzimet-Tjera (KEK OSSH) | B207: DS3 - Expenditure- OTHER (KEK DSO) | C207: DS3 - Shpenzimet-Tjera (KEK OSSH)
A209: OPEX tjera | B209: Other Opex | C209: OPEX tjera
A211: Zhvlerësimi dhe amortizimi | B211: Depreciation and amortization | C211: Zhvlerësimi dhe amortizimi
A212: Shpenzimet e stafit | B212: Staff costs | C212: Shpenzimet e stafit
A213: Sherbimet elektrike dhe të tjera | B213: Electricity and other utilities | C213: Sherbimet elektrike dhe të tjera
A214: Mirëmbajtje | B214: Maintenance | C214: Mirëmbajtje
A215: Materialet dhe furnizime | B215: Materials and supplies | C215: Materialet dhe furnizime
A216: Provizionet nga zhvleresimi i inventarit | B216: Provision of write down of inventories | C216: Provizionet nga zhvleresimi i inventarit
A217: Humbja nga zhvlerësimi i të arkëtueshmeve | B217: Loss from impairment of receivables | C217: Humbja nga zhvlerësimi i të arkëtueshmeve
A218: Provizionet për çështjet e mjedisit | B218: Provisions for environmental issues | C218: Provizionet për çështjet e mjedisit
A219: Rezervat strategjike | B219: Strategic Spares | C219: Rezervat strategjike
A220: Menaxhim I TI-se | B220: IT Management | C220: Menaxhim I TI-se
A221: Te tjera 1 | B221: Other 1 | C221: Te tjera 1
A222: Te tjera 2 | B222: Other 2 | C222: Te tjera 2
A223: Te tjera 3 | B223: Other 3 | C223: Te tjera 3
A224: Shto rreshtat shtese me larte | B224: Insert additional rows above | C224: Shto rreshtat shtese me larte
A225: Capex | B225: Capex | C225: Capex
A226: Projeket jo Capex | B226: NON-Project Capex | C226: Projeket jo Capex
A228: Mjetet dhe Pajisjet | B228: Tool and Equipment | C228: Mjetet dhe Pajisjet
A229: Prona dhe Toka | B229: Property and Land | C229: Prona dhe Toka
A230: Te tjera 1 | B230: Other 1 | C230: Te tjera 1
A231: Te tjera 2 | B231: Other 2 | C231: Te tjera 2
... 642 more rows

Sheet Glossary
A6: =Translation!A949 -> Shqyrtimi SHVT 2013-2017
A7: =Translation!A928 -> Fjalor
B9: KEK
B10: =Translation!A926 -> Termi | D10: =Translation!A938 -> Definicionet
B11: =Translation!A927 -> Capex | D11: =Translation!A939 -> Shpenzimet kapitale siç është definuar me standardet relevante Ndërkombëtare Financiare
B12: =Translation!A935 -> OPEX | D12: =Translation!A920 -> Shpenzimet operative:
B13: =Translation!A929 -> Energjia jo e furnizuar | D13: =Translation!A941 -> Shuma e energjisë në vit, që do të duhej furnizuar për konsumatorët e lidhur në rrjet për shkak të gabimeve dhe ndërprerjeve të planifikuara që nuk kanë ndodhur.
B14: =Translation!A930 -> ngarkesat e lidhura me CAPEX | D14: =Translation!A942 -> Shpenzimet kapitale në asetet e rrjetit për të reduktuar mbingarkesat e sistemit ose të lidheni p.sh.ngarkesës së re, Nënstacioni i ri ose të zëvendësojë transformatorët ekzistues me matje të lartë ku ka mbingarkesa.
B15: =Translation!A931 -> Saidi | D15: =Translation!A943 -> SAIDI = Sum (Minutes Customer Lost) / Totali I i Kyqjeve të Konsumatorëve
B16: =Translation!A932 -> SAIFI | D16: =Translation!A944 -> SAIFI= Sum (Interuptions Customer) / Konsumatorët Totali i Lidhjeve
B17: =Translation!A933 -> Shpenzimet e Capex që nuk kanë të bëjnë me ngarkesat | D17: =Translation!A945 -> Shpenzimet kapitale për të zëvendësuar asetet ekzistuese të rrjetit për shkak të moshës ose gjendjes.
B18: =Translation!A934 -> Shpenzimet jo operative | D18: =Translation!A946 -> Shpenzimet kapitale në asetet e rrjetit jo p.sh. Zyra, ndërtesat , automjete të specializuara, Si stemi TI
B19: =Translation!A935 -> OPEX | D19: =Translation!A947 -> Shpenzimet Operative të përcaktuara nga standardet relevante ndërkombëtare financiare
B20: =Translation!A936 -> Cilësia e Furnizimit CAPEX-i | D20: =Translation!A948 -> Shpenzimet kapitale në asetet e rrjetit për të përmirësuar performancën e rrjetit p.sh. Qarqet e reja automatike te ndëreprerjes ,Marrëveshjet e Sistemit për të zvogëluar konsumatorët e prekur nga gabimet

Sheet HQ1 OPEX (HQ a) KEK
A6: =Translation!A949 -> Shqyrtimi SHVT 2013-2017
A7: =Translation!A26 -> HQ1 - OPEX-HQ Kosto (KEK Corp)
B9: =Translation!A27 -> OPEX | D9: =Translation!A60 -> Kodi I Llogarive | F9: 2008 | G9: 2009 | H9: 2010 | I9: 2011 | J9: 2012 | K9: 2013 | L9: 2014 | M9: 2015 | N9: 2016 | O9: 2017
B10: =Translation!A28 -> KOSTOT NE ZYRAT QENDRORE të KEK-ut | F10: =Translation!A62 -> Aktuale (€ '000) | G10: =Translation!A62 -> Aktuale (€ '000) | H10: =Translation!A62 -> Aktuale (€ '000) | I10: =Translation!A62 -> Aktuale (€ '000) | J10: =Translation!A63 -> Vlerësimi (€ '000) | K10: =Translation!A64 -> Parashikimi (€ '000) | L10: =Translation!A64 -> Parashikimi (€ '000) | M10: =Translation!A64 -> Parashikimi (€ '000) | N10: =Translation!A64 -> Parashikimi (€ '000) | O10: =Translation!A64 -> Parashikimi (€ '000)
B12: =Translation!A30 -> Shpenzimet e personelit
B13: =Translation!A31 -> Pagat (neto)
B14: =Translation!A32 -> Kontributi pensional dhe taksat
B15: =Translation!A33 -> Tjera
B16: =Translation!A34 -> Elektrike dhe të tjera
B17: =Translation!A35 -> Blerjet e Energjisë Elektrike
B18: =Translation!A36 -> Shkëmbimi i energjisë elektrike
B19: =Translation!A37 -> Karburante
B20: =Translation!A38 -> Gaz dhe ujë
B21: =Translation!A39 -> Transmetimi i energjisë elektrike
B22: =Translation!A40 -> Mirëmbajtje
B23: =Translation!A41 -> Shërbimet Riparuese
B24: =Translation!A42 -> Shërbime të Mirëmbajtjes
B25: =Translation!A43 -> Materiale dhe Furnizime
B26: =Translation!A44 -> Zhvlerësimi dhe amortizimi
B27: =Translation!A45 -> Sigurimi për shlyerjen e inventarit
B28: =Translation!A46 -> Humbja e Zhvlerësimit të të arkëtueshmeve
B29: =Translation!A47 -> Dispozitat për çështjet mjedisore
B30: =Translation!A48 -> Shpenzime të tjera operative
B31: =Translation!A49 -> Shërbimet e transportit
B32: =Translation!A50 -> Shpenzimet e sigurimit
B33: =Translation!A51 -> Taksat koncesionare
B34: =Translation!A52 -> Licencat
B35: =Translation!A53 -> Shpenzime të tjera
B36: =Translation!A54 -> Shpenzimet e brendshme
B37: =Translation!A55 -> Kostoja e qymyrit nga Minierat
B38: =Translation!A56 -> Kostoja e energjisë elektrike dhe shërbimeve të shpërndarjes
B39: =Translation!A73 -> Total | F39: =SUM(F13:F38) -> 0 | G39: =SUM(G13:G38) -> 0 | H39: 0 | I39: 0 | J39: 0 | K39: 0 | L39: 0 | M39: 0 | N39: 0 | O39: 0
B40: =Translation!A57 -> Shënime: | C40: =Translation!A58 -> Kostot historike janë mbi bazën e rrjedhes se parasë - Kostot e parashikuara janë mbi bazë të çmimit konstant për 2012
C41: =Translation!A59 -> Kostot e Kapitalizuara F&E jane ato riparime te cilat e shtojne kapitalin ne RAB sipas standardeve nderkombetare te Kontabilitetit

Sheet TABLE A (hidden)
I1: TABLE A
A2: KEK HEADQUARTERS COSTS HISTORIC AND FORECAST
B4: ACTUAL | C4: ACTUAL | D4: ESTIMATE | E4: FORECAST | F4: FORECAST | G4: FORECAST | H4: FORECAST | I4: FORECAST
A5: Description | B5: YEAR -3 | C5: 2011 | D5: 2012 | E5: 2013 | F5: 2014 | G5: 2015 | H5: 2016 | I5: 2017
B6: € | C6: € | D6: € | E6: € | F6: € | G6: € | H6: € | I6: €
A8: Board and Managing Director Office
A9: Internal Audit
A10: Corporate Services
A11: Human Resources
A12: Information Technology
A13: Corporate Finance
A14: Procurement
A15: Company Secretary / Legal Services
A16: Regulation
A17: Public Affairs
A18: Health and Safety
A19: Training Centre
A20: Laboratories
A21: Corporate Property Management
A22: Professional Fees
A23: Regulatory Licence Fees
A24: Concession Fees and Royalties
A25: Government Taxes
A26: Other - specify
A27: Other - specify
A28: Total | B28: =SUM(B8:B27) -> 0 | C28: =SUM(C8:C27) -> 0 | D28: 0 | E28: 0 | F28: 0 | G28: 0 | H28: 0 | I28: 0

Sheet HQ2 OPEX (HQ b1) KEK
A6: =Translation!A949 -> Shqyrtimi SHVT 2013-2017
A7: HQ2 - Opex- HQ Cost (KEK HQ
B9: =Translation!$A$28 -> KOSTOT NE ZYRAT QENDRORE të KEK-ut | D9: =Translation!$A$68 -> Minierat | E9: =Translation!$A$69 -> Gjenerimi | F9: =Translation!$A$70 -> Rrjeti | G9: =Translation!$A$71 -> FPEE | H9: =Translation!$A$72 -> Furnizim / Tregti | I9: =Translation!$A$73 -> Total | J9: =Translation!$A$74 -> Baza e alokimeve
B10: 2011 | D10: =Translation!A64 -> Parashikimi (€ '000) | E10: =Translation!A64 -> Parashikimi (€ '000) | F10: =Translation!A64 -> Parashikimi (€ '000) | G10: =Translation!A64 -> Parashikimi (€ '000) | H10: =Translation!A64 -> Parashikimi (€ '000)
B12: =Translation!A30 -> Shpenzimet e personelit
B13: =Translation!A31 -> Pagat (neto) | I13: =SUM(D13:H13) -> 0
B14: =Translation!A32 -> Kontributi pensional dhe taksat | I14: =SUM(D14:H14) -> 0
B15: =Translation!A33 -> Tjera | I15: =SUM(D15:H15) -> 0
B16: =Translation!A34 -> Elektrike dhe të tjera
B17: =Translation!A35 -> Blerjet e Energjisë Elektrike | I17: =SUM(D17:H17) -> 0
B18: =Translation!A36 -> Shkëmbimi i energjisë elektrike | I18: =SUM(D18:H18) -> 0
B19: =Translation!A37 -> Karburante | I19: =SUM(D19:H19) -> 0
B20: =Translation!A38 -> Gaz dhe ujë | I20: =SUM(D20:H20) -> 0
B21: =Translation!A39 -> Transmetimi i energjisë elektrike | I21: =SUM(D21:H21) -> 0
B22: =Translation!A40 -> Mirëmbajtje
B23: =Translation!A41 -> Shërbimet Riparuese | I23: =SUM(D23:H23) -> 0
B24: =Translation!A42 -> Shërbime të Mirëmbajtjes | I24: 0
B25: =Translation!A43 -> Materiale dhe Furnizime | I25: 0
B26: =Translation!A44 -> Zhvlerësimi dhe amortizimi | I26: 0
B27: =Translation!A45 -> Sigurimi për shlyerjen e inventarit | I27: 0
B28: =Translation!A46 -> Humbja e Zhvlerësimit të të arkëtueshmeve | I28: 0
B29: =Translation!A47 -> Dispozitat për çështjet mjedisore | I29: 0
B30: =Translation!A48 -> Shpenzime të tjera operative
B31: =Translation!A49 -> Shërbimet e transportit | I31: =SUM(D31:H31) -> 0
B32: =Translation!A50 -> Shpenzimet e sigurimit | I32: =SUM(D32:H32) -> 0
B33: =Translation!A51 -> Taksat koncesionare | I33: =SUM(D33:H33) -> 0
B34: =Translation!A52 -> Licencat | I34: =SUM(D34:H34) -> 0
B35: =Translation!A53 -> Shpenzime të tjera | I35: =SUM(D35:H35) -> 0
B36: =Translation!A54 -> Shpenzimet e brendshme
B37: =Translation!A55 -> Kostoja e qymyrit nga Minierat | I37: =SUM(D37:H37) -> 0
B38: =Translation!A56 -> Kostoja e energjisë elektrike dhe shërbimeve të shpërndarjes | I38: =SUM(D38:H38) -> 0
B39: =Translation!A73 -> Total | D39: =SUM(D12:D38) -> 0 | E39: =SUM(E12:E38) -> 0 | F39: 0 | G39: 0 | H39: =SUM(H12:H38) -> 0 | I39: =SUM(I12:I38) -> 0
D40: =IF(D39<=0,"",D39/I39) ->  | E40: =IF(E39<=0,"",E39/I39) ->  | F40: =IF(F39<=0,"",F39/I39) ->  | G40: =IF(G39<=0,"",G39/I39) ->  | H40: =IF(H39<=0,"",H39/I39) ->  | I40: =IF(I39<=0,"",I39/$I$39) -> 

Sheet HQ3 OPEX (HQ b2) KEK
A6: =Translation!A949 -> Shqyrtimi SHVT 2013-2017
A7: HQ3 - Opex- HQ Cost (KEK HQ
B9: =Translation!$A$28 -> KOSTOT NE ZYRAT QENDRORE të KEK-ut | D9: =Translation!$A$68 -> Minierat | E9: =Translation!$A$69 -> Gjenerimi | F9: =Translation!$A$70 -> Rrjeti | G9: =Translation!$A$71 -> FPEE | H9: =Translation!$A$72 -> Furnizim / Tregti | I9: =Translation!$A$73 -> Total | J9: =Translation!$A$74 -> Baza e alokimeve
B10: 2013 | D10: =Translation!A62 -> Aktuale (€ '000) | E10: =Translation!A62 -> Aktuale (€ '000) | F10: =Translation!A62 -> Aktuale (€ '000) | G10: =Translation!A62 -> Aktuale (€ '000) | H10: =Translation!A62 -> Aktuale (€ '000)
B12: =Translation!A30 -> Shpenzimet e personelit
B13: =Translation!A31 -> Pagat (neto) | I13: =SUM(D13:H13) -> 0
B14: =Translation!A32 -> Kontributi pensional dhe taksat | I14: =SUM(D14:H14) -> 0
B15: =Translation!A33 -> Tjera | I15: =SUM(D15:H15) -> 0
B16: =Translation!A34 -> Elektrike dhe të tjera
B17: =Translation!A35 -> Blerjet e Energjisë Elektrike | I17: =SUM(D17:H17) -> 0
B18: =Translation!A36 -> Shkëmbimi i energjisë elektrike | I18: =SUM(D18:H18) -> 0
B19: =Translation!A37 -> Karburante | I19: =SUM(D19:H19) -> 0
B20: =Translation!A38 -> Gaz dhe ujë | I20: =SUM(D20:H20) -> 0
B21: =Translation!A39 -> Transmetimi i energjisë elektrike | I21: =SUM(D21:H21) -> 0
B22: =Translation!A40 -> Mirëmbajtje
B23: =Translation!A41 -> Shërbimet Riparuese | I23: =SUM(D23:H23) -> 0
B24: =Translation!A42 -> Shërbime të Mirëmbajtjes | I24: 0
B25: =Translation!A43 -> Materiale dhe Furnizime | I25: 0
B26: =Translation!A44 -> Zhvlerësimi dhe amortizimi | I26: 0
B27: =Translation!A45 -> Sigurimi për shlyerjen e inventarit | I27: 0
B28: =Translation!A46 -> Humbja e Zhvlerësimit të të arkëtueshmeve | I28: 0
B29: =Translation!A47 -> Dispozitat për çështjet mjedisore | I29: 0
B30: =Translation!A48 -> Shpenzime të tjera operative
B31: =Translation!A49 -> Shërbimet e transportit | I31: =SUM(D31:H31) -> 0
B32: =Translation!A50 -> Shpenzimet e sigurimit | I32: =SUM(D32:H32) -> 0
B33: =Translation!A51 -> Taksat koncesionare | I33: =SUM(D33:H33) -> 0
B34: =Translation!A52 -> Licencat | I34: =SUM(D34:H34) -> 0
B35: =Translation!A53 -> Shpenzime të tjera | I35: =SUM(D35:H35) -> 0
B36: =Translation!A54 -> Shpenzimet e brendshme
B37: =Translation!A55 -> Kostoja e qymyrit nga Minierat | I37: =SUM(D37:H37) -> 0
B38: =Translation!A56 -> Kostoja e energjisë elektrike dhe shërbimeve të shpërndarjes | I38: =SUM(D38:H38) -> 0
B39: =Translation!A73 -> Total | D39: =SUM(D12:D38) -> 0 | E39: =SUM(E12:E38) -> 0 | F39: 0 | G39: 0 | H39: =SUM(H12:H38) -> 0 | I39: =SUM(I12:I38) -> 0
D40: =IF(D39<=0,"",D39/I39) ->  | E40: =IF(E39<=0,"",E39/I39) ->  | F40: =IF(F39<=0,"",F39/I39) ->  | G40: =IF(G39<=0,"",G39/I39) ->  | H40: =IF(H39<=0,"",H39/I39) ->  | I40: =IF(I39<=0,"",I39/$I$39) -> 

Sheet HQ4 OPEX (Group) KEK
A6: =Translation!A949 -> Shqyrtimi SHVT 2013-2017
A7: =Translation!A79 -> HQ4 - OPEX-GROUP Personeli (KEK GROUP)
B9: =Translation!A27 -> OPEX | D9: 2008 | E9: 2009 | F9: 2010 | G9: 2011 | H9: 2012 | I9: 2013 | J9: 2014 | K9: 2015 | L9: 2016 | M9: 2017
B10: =Translation!A80 -> Personeli KEK GROUP (FTE) | D10: =Translation!A90 -> Aktual | E10: =Translation!A90 -> Aktual | F10: =Translation!A90 -> Aktual | G10: =Translation!A90 -> Aktual | H10: =Translation!A91 -> Vlerësim | I10: =Translation!A92 -> Parashikim | J10: =Translation!A92 -> Parashikim | K10: =Translation!A92 -> Parashikim | L10: =Translation!A92 -> Parashikim | M10: =Translation!A92 -> Parashikim
B11: =Translation!A81 -> Zyra Qendrore
B12: =Translation!$A$82 -> APS (Arsimi Profesional Superior)
B13: =Translation!$A$83 -> AL (Arsimi i lartë)
B14: =Translation!$A$84 -> KL (kualifikim të lartë)
B15: =Translation!$A$85 -> AMP (Arsimi i mesëm profesional)
B16: =Translation!$A$86 -> KU (Kualifikim i ulët)
B17: =Translation!$A$87 -> PK (I pakualifikuar)
B18: =Translation!$A$89 -> Nëntotali | D18: =SUM(D12:D17) -> 0 | E18: =SUM(E12:E17) -> 0 | F18: 0 | G18: 0 | H18: =SUM(H12:H17) -> 0 | I18: =SUM(I12:I17) -> 0 | J18: =SUM(J12:J17) -> 0 | K18: =SUM(K12:K17) -> 0 | L18: 0 | M18: 0
B20: =Translation!A68 -> Minierat
B21: =Translation!$A$82 -> APS (Arsimi Profesional Superior)
B22: =Translation!$A$83 -> AL (Arsimi i lartë)
B23: =Translation!$A$84 -> KL (kualifikim të lartë)
B24: =Translation!$A$85 -> AMP (Arsimi i mesëm profesional)
B25: =Translation!$A$86 -> KU (Kualifikim i ulët)
B26: =Translation!$A$87 -> PK (I pakualifikuar)
B27: =Translation!$A$89 -> Nëntotali | D27: =SUM(D21:D26) -> 0 | E27: =SUM(E21:E26) -> 0 | F27: =SUM(F21:F26) -> 0 | G27: =SUM(G21:G26) -> 0 | H27: =SUM(H21:H26) -> 0 | I27: =SUM(I21:I26) -> 0 | J27: =SUM(J21:J26) -> 0 | K27: =SUM(K21:K26) -> 0 | L27: =SUM(L21:L26) -> 0 | M27: =SUM(M21:M26) -> 0
B29: =Translation!A69 -> Gjenerimi
B30: =Translation!$A$82 -> APS (Arsimi Profesional Superior)
B31: =Translation!$A$83 -> AL (Arsimi i lartë)
B32: =Translation!$A$84 -> KL (kualifikim të lartë)
B33: =Translation!$A$85 -> AMP (Arsimi i mesëm profesional)
B34: =Translation!$A$86 -> KU (Kualifikim i ulët)
B35: =Translation!$A$87 -> PK (I pakualifikuar)
B36: =Translation!$A$89 -> Nëntotali | D36: =SUM(D30:D35) -> 0 | E36: =SUM(E30:E35) -> 0 | F36: =SUM(F30:F35) -> 0 | G36: =SUM(G30:G35) -> 0 | H36: =SUM(H30:H35) -> 0 | I36: =SUM(I30:I35) -> 0 | J36: =SUM(J30:J35) -> 0 | K36: =SUM(K30:K35) -> 0 | L36: =SUM(L30:L35) -> 0 | M36: =SUM(M30:M35) -> 0
B38: =Translation!A70 -> Rrjeti
B39: =Translation!$A$82 -> APS (Arsimi Profesional Superior)
B40: =Translation!$A$83 -> AL (Arsimi i lartë)
B41: =Translation!$A$84 -> KL (kualifikim të lartë)
B42: =Translation!$A$85 -> AMP (Arsimi i mesëm profesional)
B43: =Translation!$A$86 -> KU (Kualifikim i ulët)
B44: =Translation!$A$87 -> PK (I pakualifikuar)
B45: =Translation!$A$89 -> Nëntotali | D45: =SUM(D39:D44) -> 0 | E45: 0 | F45: =SUM(F39:F44) -> 0 | G45: =SUM(G39:G44) -> 0 | H45: =SUM(H39:H44) -> 0 | I45: =SUM(I39:I44) -> 0 | J45: =SUM(J39:J44) -> 0 | K45: =SUM(K39:K44) -> 0 | L45: =SUM(L39:L44) -> 0 | M45: =SUM(M39:M44) -> 0
B47: =Translation!A71 -> FPEE
B48: =Translation!$A$82 -> APS (Arsimi Profesional Superior)
B49: =Translation!$A$83 -> AL (Arsimi i lartë)
B50: =Translation!$A$84 -> KL (kualifikim të lartë)
B51: =Translation!$A$85 -> AMP (Arsimi i mesëm profesional)
B52: =Translation!$A$86 -> KU (Kualifikim i ulët)
B53: =Translation!$A$87 -> PK (I pakualifikuar)
B54: =Translation!$A$89 -> Nëntotali | D54: =SUM(D48:D53) -> 0 | E54: 0 | F54: =SUM(F48:F53) -> 0 | G54: =SUM(G48:G53) -> 0 | H54: =SUM(H48:H53) -> 0 | I54: =SUM(I48:I53) -> 0 | J54: =SUM(J48:J53) -> 0 | K54: =SUM(K48:K53) -> 0 | L54: =SUM(L48:L53) -> 0 | M54: =SUM(M48:M53) -> 0
B56: =Translation!A72 -> Furnizim / Tregti
B57: =Translation!$A$82 -> APS (Arsimi Profesional Superior)
B58: =Translation!$A$83 -> AL (Arsimi i lartë)
B59: =Translation!$A$84 -> KL (kualifikim të lartë)
B60: =Translation!$A$85 -> AMP (Arsimi i mesëm profesional)
B61: =Translation!$A$86 -> KU (Kualifikim i ulët)
B62: =Translation!$A$87 -> PK (I pakualifikuar)
B63: =Translation!$A$89 -> Nëntotali | D63: =SUM(D57:D62) -> 0 | E63: 0 | F63: =SUM(F57:F62) -> 0 | G63: =SUM(G57:G62) -> 0 | H63: =SUM(H57:H62) -> 0 | I63: =SUM(I57:I62) -> 0 | J63: =SUM(J57:J62) -> 0 | K63: =SUM(K57:K62) -> 0 | L63: =SUM(L57:L62) -> 0 | M63: =SUM(M57:M62) -> 0
B65: =Translation!A73 -> Total | D65: =SUM(D63,D54,D45,D36,D27,D18) -> 0 | E65: =SUM(E63,E54,E45,E36,E27,E18) -> 0 | F65: 0 | G65: 0 | H65: 0 | I65: 0 | J65: 0 | K65: 0 | L65: 0 | M65: 0

Sheet HQ5 Rev (Group) KEK
A6: =Translation!A949 -> Shqyrtimi SHVT 2013-2017
A7: =Translation!A94 -> TË ARDHURAT HQ5 (KEK Corp)
B9: =Translation!A27 -> OPEX | D9: ='HQ1 OPEX (HQ a) KEK'!D9:D10 -> Kodi I Llogarive | F9: 2008 | G9: 2009 | H9: 2010 | I9: 2011 | J9: 2012 | K9: 2013 | L9: 2014 | M9: 2015 | N9: 2016 | O9: 2017
B10: =Translation!A96 -> TË ARDHURAT | F10: =Translation!A62 -> Aktuale (€ '000) | G10: =Translation!A62 -> Aktuale (€ '000) | H10: =Translation!A62 -> Aktuale (€ '000) | I10: =Translation!A62 -> Aktuale (€ '000) | J10: =Translation!A63 -> Vlerësimi (€ '000) | K10: =Translation!A64 -> Parashikimi (€ '000) | L10: =Translation!A64 -> Parashikimi (€ '000) | M10: =Translation!A64 -> Parashikimi (€ '000) | N10: =Translation!A64 -> Parashikimi (€ '000) | O10: =Translation!A64 -> Parashikimi (€ '000)
B11: =Translation!A81 -> Zyra Qendrore
B12: =Translation!A114 -> Të hyra të tjera - të specifikohet
B13: =Translation!A89 -> Nëntotali | F13: =F12 -> 0 | G13: =G12 -> 0 | H13: 0 | I13: 0 | J13: 0 | K13: 0 | L13: 0 | M13: 0 | N13: 0 | O13: 0
B14: =Translation!A68 -> Minierat
B15: =Translation!$A$97 -> Shitjet
B16: =Translation!$A$98 -> Shitjet e Energjisë Elektrike (jo-shtëpiak)
B17: =Translation!$A$99 -> Shitjet e Energjisë Elektrike (konsumatorëve shtëpiak)
B18: =Translation!$A$100 -> Të hyrat nga eksportet e energjisë elektrike
B19: =Translation!$A$110 -> Të hyrat nga shitja e thëngjillit (Të jashtme)
B20: =Translation!$A$109 -> "Shitjet e tjera" - Të specifikohet
B21: =Translation!$A$101 -> Të hyrat nga granteve
B22: =Translation!$A$102 -> Amortizimi i granteve të shtyra
B23: =Translation!$A$103 -> Energjia elektrike e importuar
B24: =Translation!$A$108 -> Të hyra të tjera
B25: =Translation!$A$112 -> Të hyrat nga qiradhënia e pronës
B26: =Translation!$A$114 -> Të hyra të tjera - të specifikohet
B27: =Translation!$A$104 -> Të ardhurat e brendshme
B28: =Translation!$A$105 -> Shitja e qymyrit në brez
B29: =Translation!$A$106 -> Shitjet e energjisë elektrike ndaj furnizuesit
B30: =Translation!$A$107 -> Shitja e shërbimeve të shpërndarjes ndaj furnizuesit
B31: =Translation!$A$89 -> Nëntotali | F31: =SUM(F16:F30) -> 0 | G31: =SUM(G16:G30) -> 0 | H31: 0 | I31: 0 | J31: 0 | K31: 0 | L31: 0 | M31: 0 | N31: 0 | O31: 0
B32: =Translation!A69 -> Gjenerimi
B33: =Translation!$A$97 -> Shitjet
B34: =Translation!$A$98 -> Shitjet e Energjisë Elektrike (jo-shtëpiak)
B35: =Translation!$A$99 -> Shitjet e Energjisë Elektrike (konsumatorëve shtëpiak)
B36: =Translation!$A$100 -> Të hyrat nga eksportet e energjisë elektrike
B37: =Translation!$A$110 -> Të hyrat nga shitja e thëngjillit (Të jashtme)
B38: =Translation!$A$109 -> "Shitjet e tjera" - Të specifikohet
B39: =Translation!$A$101 -> Të hyrat nga granteve
B40: =Translation!$A$102 -> Amortizimi i granteve të shtyra
B41: =Translation!$A$103 -> Energjia elektrike e importuar
B42: =Translation!$A$108 -> Të hyra të tjera
B43: =Translation!$A$112 -> Të hyrat nga qiradhënia e pronës
B44: =Translation!$A$114 -> Të hyra të tjera - të specifikohet
B45: =Translation!$A$104 -> Të ardhurat e brendshme
B46: =Translation!$A$105 -> Shitja e qymyrit në brez
B47: =Translation!$A$106 -> Shitjet e energjisë elektrike ndaj furnizuesit
B48: =Translation!$A$107 -> Shitja e shërbimeve të shpërndarjes ndaj furnizuesit
B49: =Translation!$A$89 -> Nëntotali | F49: =SUM(F34:F48) -> 0 | G49: =SUM(G34:G48) -> 0 | H49: =SUM(H34:H48) -> 0 | I49: =SUM(I34:I48) -> 0 | J49: =SUM(J34:J48) -> 0 | K49: =SUM(K34:K48) -> 0 | L49: =SUM(L34:L48) -> 0 | M49: =SUM(M34:M48) -> 0 | N49: =SUM(N34:N48) -> 0 | O49: =SUM(O34:O48) -> 0
B50: =Translation!A70 -> Rrjeti
B51: =Translation!$A$97 -> Shitjet
B52: =Translation!$A$98 -> Shitjet e Energjisë Elektrike (jo-shtëpiak)
B53: =Translation!$A$99 -> Shitjet e Energjisë Elektrike (konsumatorëve shtëpiak)
B54: =Translation!$A$100 -> Të hyrat nga eksportet e energjisë elektrike
B55: =Translation!$A$110 -> Të hyrat nga shitja e thëngjillit (Të jashtme)
B56: =Translation!$A$109 -> "Shitjet e tjera" - Të specifikohet
B57: =Translation!$A$101 -> Të hyrat nga granteve
B58: =Translation!$A$102 -> Amortizimi i granteve të shtyra
B59: =Translation!$A$103 -> Energjia elektrike e importuar
B60: =Translation!$A$108 -> Të hyra të tjera
B61: =Translation!$A$112 -> Të hyrat nga qiradhënia e pronës
B62: =Translation!$A$114 -> Të hyra të tjera - të specifikohet
B63: =Translation!$A$104 -> Të ardhurat e brendshme
B64: =Translation!$A$105 -> Shitja e qymyrit në brez
B65: =Translation!$A$106 -> Shitjet e energjisë elektrike ndaj furnizuesit
B66: =Translation!$A$107 -> Shitja e shërbimeve të shpërndarjes ndaj furnizuesit
B67: =Translation!$A$89 -> Nëntotali | F67: =SUM(F52:F66) -> 0 | G67: =SUM(G52:G66) -> 0 | H67: =SUM(H52:H66) -> 0 | I67: =SUM(I52:I66) -> 0 | J67: =SUM(J52:J66) -> 0 | K67: =SUM(K52:K66) -> 0 | L67: =SUM(L52:L66) -> 0 | M67: =SUM(M52:M66) -> 0 | N67: =SUM(N52:N66) -> 0 | O67: =SUM(O52:O66) -> 0
B68: =Translation!A71 -> FPEE
B69: =Translation!$A$97 -> Shitjet
B70: =Translation!$A$98 -> Shitjet e Energjisë Elektrike (jo-shtëpiak)
B71: =Translation!$A$99 -> Shitjet e Energjisë Elektrike (konsumatorëve shtëpiak)
B72: =Translation!$A$100 -> Të hyrat nga eksportet e energjisë elektrike
B73: =Translation!$A$110 -> Të hyrat nga shitja e thëngjillit (Të jashtme)
B74: =Translation!$A$109 -> "Shitjet e tjera" - Të specifikohet
B75: =Translation!$A$101 -> Të hyrat nga granteve
B76: =Translation!$A$102 -> Amortizimi i granteve të shtyra
B77: =Translation!$A$103 -> Energjia elektrike e importuar
B78: =Translation!$A$108 -> Të hyra të tjera
B79: =Translation!$A$112 -> Të hyrat nga qiradhënia e pronës
B80: =Translation!$A$114 -> Të hyra të tjera - të specifikohet
B81: =Translation!$A$104 -> Të ardhurat e brendshme
B82: =Translation!$A$105 -> Shitja e qymyrit në brez
B83: =Translation!$A$106 -> Shitjet e energjisë elektrike ndaj furnizuesit
B84: =Translation!$A$107 -> Shitja e shërbimeve të shpërndarjes ndaj furnizuesit
B85: =Translation!$A$89 -> Nëntotali | F85: =SUM(F70:F84) -> 0 | G85: =SUM(G70:G84) -> 0 | H85: =SUM(H70:H84) -> 0 | I85: =SUM(I70:I84) -> 0 | J85: =SUM(J70:J84) -> 0 | K85: =SUM(K70:K84) -> 0 | L85: =SUM(L70:L84) -> 0 | M85: =SUM(M70:M84) -> 0 | N85: =SUM(N70:N84) -> 0 | O85: =SUM(O70:O84) -> 0
B86: =Translation!A72 -> Furnizim / Tregti
B87: =Translation!$A$97 -> Shitjet
B88: =Translation!$A$98 -> Shitjet e Energjisë Elektrike (jo-shtëpiak)
B89: =Translation!$A$99 -> Shitjet e Energjisë Elektrike (konsumatorëve shtëpiak)
B90: =Translation!$A$100 -> Të hyrat nga eksportet e energjisë elektrike
B91: =Translation!$A$110 -> Të hyrat nga shitja e thëngjillit (Të jashtme)
B92: =Translation!$A$109 -> "Shitjet e tjera" - Të specifikohet
B93: =Translation!$A$101 -> Të hyrat nga granteve
B94: =Translation!$A$102 -> Amortizimi i granteve të shtyra
B95: =Translation!$A$103 -> Energjia elektrike e importuar
B96: =Translation!$A$108 -> Të hyra të tjera
B97: =Translation!$A$112 -> Të hyrat nga qiradhënia e pronës
B98: =Translation!$A$114 -> Të hyra të tjera - të specifikohet
B99: =Translation!$A$104 -> Të ardhurat e brendshme
B100: =Translation!$A$105 -> Shitja e qymyrit në brez
B101: =Translation!$A$106 -> Shitjet e energjisë elektrike ndaj furnizuesit
B102: =Translation!$A$107 -> Shitja e shërbimeve të shpërndarjes ndaj furnizuesit
B103: =Translation!$A$89 -> Nëntotali | F103: =SUM(F88:F102) -> 0 | G103: =SUM(G88:G102) -> 0 | H103: =SUM(H88:H102) -> 0 | I103: =SUM(I88:I102) -> 0 | J103: =SUM(J88:J102) -> 0 | K103: =SUM(K88:K102) -> 0 | L103: =SUM(L88:L102) -> 0 | M103: =SUM(M88:M102) -> 0 | N103: =SUM(N88:N102) -> 0 | O103: =SUM(O88:O102) -> 0
B105: =Translation!A73 -> Total | F105: =SUM(F103,F85,F67,F49,F31) -> 0 | G105: =SUM(G103,G85,G67,G49,G31) -> 0 | H105: 0 | I105: 0 | J105: 0 | K105: 0 | L105: 0 | M105: 0 | N105: 0 | O105: 0
B107: =Translation!A118 -> Indekset
B108: =Translation!A119 -> IÇK (HCIPs)
B109: =Translation!A120 -> EURIBOR
B110: =Translation!A121 -> Shenim:Të gjitha shpenzimet duhet të paraqitet si nominale

Sheet HQ6 Narrative Questions
A6: =Translation!A949 -> Shqyrtimi SHVT 2013-2017
A7: HQ6 - Narrative Response
B9: =Translation!A124 -> Ju lutemi të jepni përgjigje me shkrim për pyetjet më poshtë si dhe ndonjë informacion mbështetës per sqarime ndaj ZRRE-së.
A11: 1 | B11: =Translation!A125 -> Si është I percaktuar kapaciteti i nënstacioneve 35/10kV ?
A13: 2 | B13: =Translation!A127 -> Si është përcaktuar klasifikimi i linjave 10kV ?
A15: 3 | B15: =Translation!A129 -> Si eshte llogaritur/ vleresuar Renia e tensionit maksimal ne zbarat 10kV?
A17: 4 | B17: =Translation!A131 -> Si jane percaktuar 10 linjat me kualitet me te dobët 10kV në çdo rajon ?
A19: 5 | B19: =Translation!A133 -> Shpjegoni se si menaxhohet sistemi 6.5 kV duke përfshirë: -Kush e posedon atë? - Kush e mirembanë atë? - Kush është përgjegjes per faturimine konsumatoreve ?
A21: 6 | B21: =Translation!A135 -> Si është llogaritur parashikimi I kerkeses(ngarkeses)?
A23: 7 | B23: =Translation!A137 -> Cfare politikash percaktojne mirëmbajtjen që po zbatohet ?
A25: 8 | B25: =Translation!A139 -> A ka kompana një regjistër të pasurisë që është përdorur për të përcaktuar asetet që duhen të mirëmbahen dhe/ose të mbajë informacionet mbi gjendjen e tyre.
B26: =Translation!A140 -> Nese ka atehere ju lutem te shpjegoni llojin dhe teresine e dhenave të mbajtura mbi astetet dhe gjendjen e tyre.
A28: 9 | B28: =Translation!A141 -> Për projektet kapitale të rrjetit ju lutem shpjegoni se cilat punë janë ndërmarrë nga pala kontraktuese dhecilat nga stafi KEK-ut për fazat e ndryshme të projektit:
B29: =Translation!A142 -> p.sh. Identifikimi i nevojës, dizajnimi funksional, projektimi teknik, menaxhimi i kontratave, Menaxhimi i Projekteve, ndërtimi, Komisionimi.
A31: 10 | B31: =Translation!A144 -> Për riparime të rrjetit dhe mirëmbajtje, ju lutem shpjegoni se cilat punë janë kryer nga stafi kontraktues dhe të cilat nga stafi i KEK-ut.
A33: 11 | B33: =Translation!A146 -> Për aktivitetet e mëposhtme ju lutem shpjegoni se cili i licencuar kontakton konsumatorët dhe cili I licencuar ekzekuton punët / përgjigje:
B34: =Translation!A147 -> Kycjet e reja / Shkyçjet Defektet(mosfurnizimi, prishja) Defektet e KEK-ut prishja e siguresave kryesore Defektet apo prishjet e siguresave të Konsumatorit Siguria publike (shenime mbi gërmim te sigurtë, puna pranë Aparaturave)
A36: 12 | B36: =Translation!A149 -> Në personelin dhe parashikimet tek R & M, ju lutem shpjegoni në cilën periudhë është parashikuar transferimi i transformatorëve 110 kV tek KOSTT-it si dhe stafi përkatës dhe kostot qe nderlidhen me këte transferim.
A38: 13 | B38: =Translation!A151 -> Për "CAPEX tjetër" ju lutem jepni detajet për secilen politike te kapitalizimit e cila devijon nga parimet e pergjithshme ne paragrafin 4.7 te udhezimeve te kontabilitetit dhe jepni detaje mbeshtetese per shpenzimet kapitale.
A40: 14 | B40: =Translation!A152 -> Ju lutemi të ofroni detaje të sigurimit. Për sigurimin e aseteve të rrjetit ju lutemi ofroni detaje rreth vlerës minimale që mund të bëhet.
B41: =Translation!A153 -> Nëse nuk keni sigurim të Aseteve të Rrjetit, ju lutemi të ofroni kohën e fundit kur kompania ka provuar të prokurojë sigurimin.

Sheet DS1 OPEX (DSO a) KEK
A6: =Translation!A949 -> Shqyrtimi SHVT 2013-2017
A7: =Translation!A154 -> DS1 - OPEX-R & M Kosto (KEK OSSH)
B9: =Translation!A27 -> OPEX | D9: =Translation!A60 -> Kodi I Llogarive | F9: 2008 | G9: 2009 | H9: 2010 | I9: 2011 | J9: 2012 | K9: 2013 | L9: 2014 | M9: 2015 | N9: 2016 | O9: 2017
B10: =Translation!A155 -> Riparime dhe mirëmbajtje | F10: =Translation!A62 -> Aktuale (€ '000) | G10: =Translation!A62 -> Aktuale (€ '000) | H10: =Translation!A62 -> Aktuale (€ '000) | I10: =Translation!A62 -> Aktuale (€ '000) | J10: =Translation!A63 -> Vlerësimi (€ '000) | K10: =Translation!A64 -> Parashikimi (€ '000) | L10: =Translation!A64 -> Parashikimi (€ '000) | M10: =Translation!A64 -> Parashikimi (€ '000) | N10: =Translation!A64 -> Parashikimi (€ '000) | O10: =Translation!A64 -> Parashikimi (€ '000)
B11: =Translation!A155 -> Riparime dhe mirëmbajtje
B12: =Translation!A41 -> Shërbimet Riparuese
B13: =Translation!A42 -> Shërbime të Mirëmbajtjes
B14: =Translation!A203 -> Ju lutemi të vlerësoni më poshtë se si këto shpenzime janë të ndarë nëpër asetet përkatëse
B15: =Translation!A156 -> Mirëmbajtja
B16: =Translation!A157 -> Nderpreresit
B17: =Translation!A158 -> Transformatoret (35/10kV)
B18: =Translation!A159 -> Linjat mbi toke (ne shtylla)
B19: =Translation!A160 -> Kabllot
B20: =Translation!A161 -> Prerje e drunjeve(Kalim I linjave neper drunje)
B21: =Translation!A162 -> 35kV - Demtimet dhe emergjencat
B22: =Translation!A163 -> Nderpreresit
B23: =Translation!A164 -> Transformator(35/10kV)
B24: =Translation!A165 -> Linjat mbi toke (ne shtylla)
B25: =Translation!A166 -> Kabllot
B27: =Translation!A168 -> F & E kostot e kapitalizuar
B28: =Translation!A169 -> 10kV - Mirëmbajtja
B29: =Translation!A170 -> Nderpreresit
B30: =Translation!A171 -> Transformatorë (10/.4kV) GM
B31: =Translation!A172 -> Transformatorë (10/.4kV) PM
B32: =Translation!A173 -> Linjat mbi toke (ne shtylla)
B33: =Translation!A174 -> Kabllot
B34: =Translation!A175 -> Prerje e drunjeve(Kalim I linjave neper drunje)
B35: =Translation!A176 -> 10kV - Gabimet dhe emergjencat
B36: =Translation!A177 -> Nderpreresit
B37: =Translation!A178 -> Transformatoret (10/.4kV) GM
B38: =Translation!A179 -> Transformatoret (10/.4kV) PM
B39: =Translation!A180 -> Linjat mbi toke (ne shtylla)
B40: =Translation!A181 -> Kabllot
B42: =Translation!A183 -> F & E kostot e kapitalizuara
B43: =Translation!A184 -> 400V - Mirëmbajtja
B44: =Translation!A185 -> Centrale (S / S)
B45: =Translation!A186 -> 400 V Shtyllat e Rrjetit
B46: =Translation!A187 -> Kutitë e linjave nëntokësore 400 V
B47: =Translation!A188 -> Linjat mbi toke (ne shtylla)
B48: =Translation!A189 -> Kabllot
B49: =Translation!A190 -> Njehesoret
B50: =Translation!A191 -> Prerje e drunjeve(Kalim I linjave neper drunje)
B51: =Translation!A192 -> Defektet dhe emergjencat
B52: =Translation!A193 -> Centralet (S / S)
B53: =Translation!A194 -> Shtyllat e rrjetit 400 V
B54: =Translation!A195 -> Kutitë e linjave nëntokësore 400 V
B55: =Translation!A196 -> Linjat mbi toke (ne shtylla)
B56: =Translation!A197 -> Kabllot
B57: =Translation!A198 -> UG Shërbimi
B58: =Translation!A199 -> Shërbimi OH
B59: =Translation!A200 -> Njehesoret
B61: =Translation!A202 -> Kostot e kapitalizuara F & E
B63: =Translation!A57 -> Shënime: | C63: =Translation!A58 -> Kostot historike janë mbi bazën e rrjedhes se parasë - Kostot e parashikuara janë mbi bazë të çmimit konstant për 2012
C64: =Translation!A59 -> Kostot e Kapitalizuara F&E jane ato riparime te cilat e shtojne kapitalin ne RAB sipas standardeve nderkombetare te Kontabilitetit

Sheet DS2 OPEX (DSO b) KEK
A6: =Translation!A949 -> Shqyrtimi SHVT 2013-2017
A7: =Translation!A204 -> DS2 - OPEX-R & M Vëllimi (KEK OSSH)
B9: =Translation!A205 -> Vëllimet | E9: 2008 | F9: 2009 | G9: 2010 | H9: 2011 | I9: 2012 | J9: 2013 | K9: 2014 | L9: 2015 | M9: 2016 | N9: 2017
B10: =Translation!A155 -> Riparime dhe mirëmbajtje | E10: =Translation!A90 -> Aktual | F10: =Translation!A90 -> Aktual | G10: =Translation!A90 -> Aktual | H10: =Translation!A90 -> Aktual | I10: =Translation!A91 -> Vlerësim | J10: =Translation!A92 -> Parashikim | K10: =Translation!A92 -> Parashikim | L10: =Translation!A92 -> Parashikim | M10: =Translation!A92 -> Parashikim | N10: =Translation!A92 -> Parashikim
B11: =Translation!A214 -> Mirëmbajtje
B32: =Translation!A167 -> Shto rreshta shtese mbi
B34: =Translation!A192 -> Defektet dhe emergjencat
B56: =B32 -> Shto rreshta shtese mbi

Sheet DS3 Other (DSO) KEK
A6: =Translation!A949 -> Shqyrtimi SHVT 2013-2017
A7: =Translation!A207 -> DS3 - Shpenzimet-Tjera (KEK OSSH)
B9: ='DS1 OPEX (DSO a) KEK'!B9 -> OPEX | D9: ='DS1 OPEX (DSO a) KEK'!D9:D10 -> Kodi I Llogarive | F9: 2008 | G9: 2009 | H9: 2010 | I9: 2011 | J9: 2012 | K9: 2013 | L9: 2014 | M9: 2015 | N9: 2016 | O9: 2017
B10: =Translation!A209 -> OPEX tjera | F10: ='DS1 OPEX (DSO a) KEK'!F10 -> Aktuale (€ '000) | G10: ='DS1 OPEX (DSO a) KEK'!G10 -> Aktuale (€ '000) | H10: ='DS1 OPEX (DSO a) KEK'!H10 -> Aktuale (€ '000) | I10: ='DS1 OPEX (DSO a) KEK'!I10 -> Aktuale (€ '000) | J10: ='DS1 OPEX (DSO a) KEK'!J10 -> Vlerësimi (€ '000) | K10: ='DS1 OPEX (DSO a) KEK'!K10 -> Parashikimi (€ '000) | L10: ='DS1 OPEX (DSO a) KEK'!L10 -> Parashikimi (€ '000) | M10: ='DS1 OPEX (DSO a) KEK'!M10 -> Parashikimi (€ '000) | N10: ='DS1 OPEX (DSO a) KEK'!N10 -> Parashikimi (€ '000) | O10: ='DS1 OPEX (DSO a) KEK'!O10 -> Parashikimi (€ '000)
B12: =Translation!A30 -> Shpenzimet e personelit
B13: =Translation!A31 -> Pagat (neto)
B14: =Translation!A32 -> Kontributi pensional dhe taksat
B15: =Translation!A33 -> Tjera
B16: =Translation!A34 -> Elektrike dhe të tjera
B17: =Translation!A35 -> Blerjet e Energjisë Elektrike
B18: =Translation!A36 -> Shkëmbimi i energjisë elektrike
B19: =Translation!A37 -> Karburante
B20: =Translation!A38 -> Gaz dhe ujë
B21: =Translation!A39 -> Transmetimi i energjisë elektrike
B22: =Translation!A40 -> Mirëmbajtje
B23: =Translation!A41 -> Shërbimet Riparuese | D23: ='DS1 OPEX (DSO a) KEK'!D12 -> 0 | F23: ='DS1 OPEX (DSO a) KEK'!F12 -> 0 | G23: ='DS1 OPEX (DSO a) KEK'!G12 -> 0 | H23: ='DS1 OPEX (DSO a) KEK'!H12 -> 0 | I23: ='DS1 OPEX (DSO a) KEK'!I12 -> 0 | J23: ='DS1 OPEX (DSO a) KEK'!J12 -> 0 | K23: ='DS1 OPEX (DSO a) KEK'!K12 -> 0 | L23: ='DS1 OPEX (DSO a) KEK'!L12 -> 0 | M23: ='DS1 OPEX (DSO a) KEK'!M12 -> 0 | N23: ='DS1 OPEX (DSO a) KEK'!N12 -> 0 | O23: ='DS1 OPEX (DSO a) KEK'!O12 -> 0
B24: =Translation!A42 -> Shërbime të Mirëmbajtjes | D24: ='DS1 OPEX (DSO a) KEK'!D13 -> 0 | F24: ='DS1 OPEX (DSO a) KEK'!F13 -> 0 | G24: ='DS1 OPEX (DSO a) KEK'!G13 -> 0 | H24: ='DS1 OPEX (DSO a) KEK'!H13 -> 0 | I24: ='DS1 OPEX (DSO a) KEK'!I13 -> 0 | J24: ='DS1 OPEX (DSO a) KEK'!J13 -> 0 | K24: ='DS1 OPEX (DSO a) KEK'!K13 -> 0 | L24: ='DS1 OPEX (DSO a) KEK'!L13 -> 0 | M24: ='DS1 OPEX (DSO a) KEK'!M13 -> 0 | N24: ='DS1 OPEX (DSO a) KEK'!N13 -> 0 | O24: ='DS1 OPEX (DSO a) KEK'!O13 -> 0
B25: =Translation!A43 -> Materiale dhe Furnizime
B26: =Translation!A44 -> Zhvlerësimi dhe amortizimi
B27: =Translation!A45 -> Sigurimi për shlyerjen e inventarit
B28: =Translation!A46 -> Humbja e Zhvlerësimit të të arkëtueshmeve
B29: =Translation!A47 -> Dispozitat për çështjet mjedisore
B30: =Translation!A48 -> Shpenzime të tjera operative
B31: =Translation!A49 -> Shërbimet e transportit
B32: =Translation!A50 -> Shpenzimet e sigurimit
B33: =Translation!A51 -> Taksat koncesionare
B34: =Translation!A52 -> Licencat
B35: =Translation!A53 -> Shpenzime të tjera
B36: =Translation!A54 -> Shpenzimet e brendshme
B37: =Translation!A55 -> Kostoja e qymyrit nga Minierat
B38: =Translation!A56 -> Kostoja e energjisë elektrike dhe shërbimeve të shpërndarjes
B39: =Translation!A73 -> Total | F39: =SUM(F13:F38) -> 0 | G39: =SUM(G13:G38) -> 0 | H39: 0 | I39: 0 | J39: 0 | K39: 0 | L39: 0 | M39: 0 | N39: 0 | O39: 0
B41: =Translation!A225 -> Capex | D41: =D9 -> Kodi I Llogarive | F41: 2008 | G41: 2009 | H41: 2010 | I41: 2011 | J41: 2012 | K41: 2013 | L41: 2014 | M41: 2015 | N41: 2016 | O41: 2017
B42: =Translation!A226 -> Projeket jo Capex | F42: =F10 -> Aktuale (€ '000) | G42: =G10 -> Aktuale (€ '000) | H42: Aktuale (€ '000) | I42: Aktuale (€ '000) | J42: Vlerësimi (€ '000) | K42: Parashikimi (€ '000) | L42: Parashikimi (€ '000) | M42: Parashikimi (€ '000) | N42: Parashikimi (€ '000) | O42: Parashikimi (€ '000)
B44: =Translation!A228 -> Mjetet dhe Pajisjet
B45: =Translation!A229 -> Prona dhe Toka
B46: =Translation!A230 -> Te tjera 1
B47: =Translation!A231 -> Te tjera 2
B48: =Translation!A232 -> Te tjera 3
B49: =Translation!A224 -> Shto rreshtat shtese me larte

Sheet DS4 OPEX (DSO d) KEK
A6: =Translation!A949 -> Shqyrtimi SHVT 2013-2017
A7: =Translation!A235 -> DS4 - OPEX-Indirects (KEK OSSH)
C9: =Translation!$A$467 -> % e alokimit te CAPEX | E9: 2008 | F9: 2009 | G9: 2010 | H9: 2011 | I9: 2012 | J9: 2013 | K9: 2014 | L9: 2015 | M9: 2016 | N9: 2017
B10: =Translation!A253 -> Numri ipersonelit | E10: ='DS2 OPEX (DSO b) KEK'!E10 -> Aktual | F10: ='DS2 OPEX (DSO b) KEK'!F10 -> Aktual | G10: ='DS2 OPEX (DSO b) KEK'!G10 -> Aktual | H10: ='DS2 OPEX (DSO b) KEK'!H10 -> Aktual | I10: ='DS2 OPEX (DSO b) KEK'!I10 -> Vlerësim | J10: ='DS2 OPEX (DSO b) KEK'!J10 -> Parashikim | K10: ='DS2 OPEX (DSO b) KEK'!K10 -> Parashikim | L10: ='DS2 OPEX (DSO b) KEK'!L10 -> Parashikim | M10: ='DS2 OPEX (DSO b) KEK'!M10 -> Parashikim | N10: ='DS2 OPEX (DSO b) KEK'!N10 -> Parashikim
B13: =Translation!A257 -> Skema e sistemit
B14: =Translation!A258 -> Qendra per dispeçing te defekteve (OsSH)
B15: =Translation!A259 -> Depot
B16: =Translation!A260 -> Trajnimet operacionale për Shëndet dhe Siguri
B17: =Translation!A261 -> Dizajnimi i Rrjetit dhe Inxhinieria
B18: =Translation!A262 -> Menaxhimi i Projekteve
B19: =Translation!A263 -> Menaxhimi inxhinierik & Mbeshtetja ne Zyre
B20: =Translation!A264 -> Politika e rrjetit
B21: =Translation!A265 -> Automjetet & Transport
B22: =Translation!A266 -> Qendra e Kontrollit
B23: =Translation!A258 -> Qendra per dispeçing te defekteve (OsSH)
B24: =Translation!$A$267 -> Të tjera - Ju lutem specifikoni
B25: =Translation!$A$267 -> Të tjera - Ju lutem specifikoni
B26: =Translation!$A$267 -> Të tjera - Ju lutem specifikoni
B27: =Translation!$A$267 -> Të tjera - Ju lutem specifikoni
B28: =Translation!$A$267 -> Të tjera - Ju lutem specifikoni
B29: =Translation!$A$267 -> Të tjera - Ju lutem specifikoni
B30: =Translation!$A$267 -> Të tjera - Ju lutem specifikoni
B31: =Translation!$A$267 -> Të tjera - Ju lutem specifikoni
B32: =Translation!$A$267 -> Të tjera - Ju lutem specifikoni
B33: ='DS2 OPEX (DSO b) KEK'!B56 -> Shto rreshta shtese mbi

Sheet DS5 Capex (DSO a) KEK
A6: =Translation!A949 -> Shqyrtimi SHVT 2013-2017
A7: =Translation!A281 -> DS5 - Capex-Tech (KEK OSSH)
B9: =Translation!A225 -> Capex | D9: =Translation!A283 -> Projekti referencë | E9: =Translation!A285 -> Buxheti i përgjithshëm (€ 000) | F9: =Translation!A287 -> Total Grant (€ 000) | H9: =Translation!A289 -> Data e fillimit | I9: =Translation!A291 -> Data e perfundimit | J9: =Translation!A293 -> Lloji i Projektit | K9: =Translation!A233 -> Koment | M9: =Translation!A295 -> Lloji
B10: =Translation!A282 -> Emri i projektit
M11: =Translation!A297 -> Qe lidhen me ngarkesen | N11: =Translation!A301 -> Mbingarkesa apo kycje të konsumatorëve
M12: =Translation!A298 -> PA ngarkese | N12: =Translation!A302 -> Zëvendësimi i Aseteve
M13: =Translation!A299 -> Jo operative | N13: =Translation!A303 -> TI, Comms, ndërtesa jo operuese
M14: =Translation!A300 -> Cilësia e Furnizimit | N14: =Translation!A304 -> Përmirësimi i performancës
B42: =Translation!A224 -> Shto rreshtat shtese me larte
B43: =Translation!A57 -> Shënime: | D43: =Translation!A305 -> Jeta e dobishme është jeta e pritshme e zëvendësimit qe do te perdorej ne zëvendësimet e parashikuara.
D44: =Translation!A306 -> Vendosni numtrin e aseteve te komisionuara ne periudhe- per astet lineare njesite jane ne km
D45: =Translation!A307 -> Projektet mund të shtohet si projekte individuale ose program I punës (p.sh. Zëvendësimi I nderpresave ne shperndarje)

Sheet DS6 Capex (DSO b) KEK
A6: =Translation!A949 -> Shqyrtimi SHVT 2013-2017
A7: =Translation!A309 -> DS6 - Capex-Tech (KEK OSSH)
B9: ='DS5 Capex (DSO a) KEK'!B9 -> Capex | D9: ='DS5 Capex (DSO a) KEK'!D9:D10 -> Projekti referencë | E9: ='DS5 Capex (DSO a) KEK'!E9:E10 -> Buxheti i përgjithshëm (€ 000) | F9: ='DS5 Capex (DSO a) KEK'!F9:F10 -> Total Grant (€ 000) | H9: 2008 | I9: 2009 | J9: 2010 | K9: 2011 | L9: 2012 | M9: 2013 | N9: 2014 | O9: 2015 | P9: 2016 | Q9: 2017
B10: ='DS5 Capex (DSO a) KEK'!B10 -> Emri i projektit | H10: ='DS3 Other (DSO) KEK'!F10 -> Aktuale (€ '000) | I10: ='DS3 Other (DSO) KEK'!G10 -> Aktuale (€ '000) | J10: ='DS3 Other (DSO) KEK'!H10 -> Aktuale (€ '000) | K10: ='DS3 Other (DSO) KEK'!I10 -> Aktuale (€ '000) | L10: ='DS3 Other (DSO) KEK'!J10 -> Vlerësimi (€ '000) | M10: ='DS3 Other (DSO) KEK'!K10 -> Parashikimi (€ '000) | N10: ='DS3 Other (DSO) KEK'!L10 -> Parashikimi (€ '000) | O10: ='DS3 Other (DSO) KEK'!M10 -> Parashikimi (€ '000) | P10: ='DS3 Other (DSO) KEK'!N10 -> Parashikimi (€ '000) | Q10: ='DS3 Other (DSO) KEK'!O10 -> Parashikimi (€ '000)
B11: =Translation!A310 -> Tri kolonat e para aotomatikisht mbushen nga Capexi(a)
B12: ='DS5 Capex (DSO a) KEK'!B12 -> 0 | D12: ='DS5 Capex (DSO a) KEK'!D12 -> 0 | E12: ='DS5 Capex (DSO a) KEK'!E12 -> 0 | F12: ='DS5 Capex (DSO a) KEK'!F12 -> 0
B13: ='DS5 Capex (DSO a) KEK'!B13 -> 0 | D13: ='DS5 Capex (DSO a) KEK'!D13 -> 0 | E13: ='DS5 Capex (DSO a) KEK'!E13 -> 0 | F13: ='DS5 Capex (DSO a) KEK'!F13 -> 0
B14: ='DS5 Capex (DSO a) KEK'!B14 -> 0 | D14: ='DS5 Capex (DSO a) KEK'!D14 -> 0 | E14: ='DS5 Capex (DSO a) KEK'!E14 -> 0 | F14: ='DS5 Capex (DSO a) KEK'!F14 -> 0
B15: ='DS5 Capex (DSO a) KEK'!B15 -> 0 | D15: ='DS5 Capex (DSO a) KEK'!D15 -> 0 | E15: ='DS5 Capex (DSO a) KEK'!E15 -> 0 | F15: ='DS5 Capex (DSO a) KEK'!F15 -> 0
B16: ='DS5 Capex (DSO a) KEK'!B16 -> 0 | D16: ='DS5 Capex (DSO a) KEK'!D16 -> 0 | E16: ='DS5 Capex (DSO a) KEK'!E16 -> 0 | F16: ='DS5 Capex (DSO a) KEK'!F16 -> 0
B17: ='DS5 Capex (DSO a) KEK'!B17 -> 0 | D17: ='DS5 Capex (DSO a) KEK'!D17 -> 0 | E17: ='DS5 Capex (DSO a) KEK'!E17 -> 0 | F17: ='DS5 Capex (DSO a) KEK'!F17 -> 0
B18: ='DS5 Capex (DSO a) KEK'!B18 -> 0 | D18: ='DS5 Capex (DSO a) KEK'!D18 -> 0 | E18: ='DS5 Capex (DSO a) KEK'!E18 -> 0 | F18: ='DS5 Capex (DSO a) KEK'!F18 -> 0
B19: ='DS5 Capex (DSO a) KEK'!B19 -> 0 | D19: ='DS5 Capex (DSO a) KEK'!D19 -> 0 | E19: ='DS5 Capex (DSO a) KEK'!E19 -> 0 | F19: ='DS5 Capex (DSO a) KEK'!F19 -> 0
B20: ='DS5 Capex (DSO a) KEK'!B20 -> 0 | D20: ='DS5 Capex (DSO a) KEK'!D20 -> 0 | E20: ='DS5 Capex (DSO a) KEK'!E20 -> 0 | F20: ='DS5 Capex (DSO a) KEK'!F20 -> 0
B21: ='DS5 Capex (DSO a) KEK'!B21 -> 0 | D21: ='DS5 Capex (DSO a) KEK'!D21 -> 0 | E21: ='DS5 Capex (DSO a) KEK'!E21 -> 0 | F21: ='DS5 Capex (DSO a) KEK'!F21 -> 0
B22: ='DS5 Capex (DSO a) KEK'!B22 -> 0 | D22: ='DS5 Capex (DSO a) KEK'!D22 -> 0 | E22: ='DS5 Capex (DSO a) KEK'!E22 -> 0 | F22: ='DS5 Capex (DSO a) KEK'!F22 -> 0
B23: ='DS5 Capex (DSO a) KEK'!B23 -> 0 | D23: ='DS5 Capex (DSO a) KEK'!D23 -> 0 | E23: ='DS5 Capex (DSO a) KEK'!E23 -> 0 | F23: ='DS5 Capex (DSO a) KEK'!F23 -> 0
B24: ='DS5 Capex (DSO a) KEK'!B24 -> 0 | D24: ='DS5 Capex (DSO a) KEK'!D24 -> 0 | E24: ='DS5 Capex (DSO a) KEK'!E24 -> 0 | F24: ='DS5 Capex (DSO a) KEK'!F24 -> 0
B25: ='DS5 Capex (DSO a) KEK'!B25 -> 0 | D25: ='DS5 Capex (DSO a) KEK'!D25 -> 0 | E25: ='DS5 Capex (DSO a) KEK'!E25 -> 0 | F25: ='DS5 Capex (DSO a) KEK'!F25 -> 0
B26: ='DS5 Capex (DSO a) KEK'!B26 -> 0 | D26: ='DS5 Capex (DSO a) KEK'!D26 -> 0 | E26: ='DS5 Capex (DSO a) KEK'!E26 -> 0 | F26: ='DS5 Capex (DSO a) KEK'!F26 -> 0
B27: ='DS5 Capex (DSO a) KEK'!B27 -> 0 | D27: ='DS5 Capex (DSO a) KEK'!D27 -> 0 | E27: ='DS5 Capex (DSO a) KEK'!E27 -> 0 | F27: ='DS5 Capex (DSO a) KEK'!F27 -> 0
B28: ='DS5 Capex (DSO a) KEK'!B28 -> 0 | D28: ='DS5 Capex (DSO a) KEK'!D28 -> 0 | E28: ='DS5 Capex (DSO a) KEK'!E28 -> 0 | F28: ='DS5 Capex (DSO a) KEK'!F28 -> 0
B29: ='DS5 Capex (DSO a) KEK'!B29 -> 0 | D29: ='DS5 Capex (DSO a) KEK'!D29 -> 0 | E29: ='DS5 Capex (DSO a) KEK'!E29 -> 0 | F29: ='DS5 Capex (DSO a) KEK'!F29 -> 0
B30: ='DS5 Capex (DSO a) KEK'!B30 -> 0 | D30: ='DS5 Capex (DSO a) KEK'!D30 -> 0 | E30: ='DS5 Capex (DSO a) KEK'!E30 -> 0 | F30: ='DS5 Capex (DSO a) KEK'!F30 -> 0
B31: ='DS5 Capex (DSO a) KEK'!B31 -> 0 | D31: ='DS5 Capex (DSO a) KEK'!D31 -> 0 | E31: ='DS5 Capex (DSO a) KEK'!E31 -> 0 | F31: ='DS5 Capex (DSO a) KEK'!F31 -> 0
B32: ='DS5 Capex (DSO a) KEK'!B32 -> 0 | D32: ='DS5 Capex (DSO a) KEK'!D32 -> 0 | E32: ='DS5 Capex (DSO a) KEK'!E32 -> 0 | F32: ='DS5 Capex (DSO a) KEK'!F32 -> 0
B33: ='DS5 Capex (DSO a) KEK'!B33 -> 0 | D33: ='DS5 Capex (DSO a) KEK'!D33 -> 0 | E33: ='DS5 Capex (DSO a) KEK'!E33 -> 0 | F33: ='DS5 Capex (DSO a) KEK'!F33 -> 0
B34: ='DS5 Capex (DSO a) KEK'!B34 -> 0 | D34: ='DS5 Capex (DSO a) KEK'!D34 -> 0 | E34: ='DS5 Capex (DSO a) KEK'!E34 -> 0 | F34: ='DS5 Capex (DSO a) KEK'!F34 -> 0
B35: ='DS5 Capex (DSO a) KEK'!B35 -> 0 | D35: ='DS5 Capex (DSO a) KEK'!D35 -> 0 | E35: ='DS5 Capex (DSO a) KEK'!E35 -> 0 | F35: ='DS5 Capex (DSO a) KEK'!F35 -> 0
B36: ='DS5 Capex (DSO a) KEK'!B36 -> 0 | D36: ='DS5 Capex (DSO a) KEK'!D36 -> 0 | E36: ='DS5 Capex (DSO a) KEK'!E36 -> 0 | F36: ='DS5 Capex (DSO a) KEK'!F36 -> 0
B37: ='DS5 Capex (DSO a) KEK'!B37 -> 0 | D37: ='DS5 Capex (DSO a) KEK'!D37 -> 0 | E37: ='DS5 Capex (DSO a) KEK'!E37 -> 0 | F37: ='DS5 Capex (DSO a) KEK'!F37 -> 0
B38: ='DS5 Capex (DSO a) KEK'!B38 -> 0 | D38: ='DS5 Capex (DSO a) KEK'!D38 -> 0 | E38: ='DS5 Capex (DSO a) KEK'!E38 -> 0 | F38: ='DS5 Capex (DSO a) KEK'!F38 -> 0
B39: ='DS5 Capex (DSO a) KEK'!B39 -> 0 | D39: ='DS5 Capex (DSO a) KEK'!D39 -> 0 | E39: ='DS5 Capex (DSO a) KEK'!E39 -> 0 | F39: ='DS5 Capex (DSO a) KEK'!F39 -> 0
B40: ='DS5 Capex (DSO a) KEK'!B40 -> 0 | D40: ='DS5 Capex (DSO a) KEK'!D40 -> 0 | E40: ='DS5 Capex (DSO a) KEK'!E40 -> 0 | F40: ='DS5 Capex (DSO a) KEK'!F40 -> 0
B41: ='DS5 Capex (DSO a) KEK'!B41 -> 0 | D41: ='DS5 Capex (DSO a) KEK'!D41 -> 0 | E41: ='DS5 Capex (DSO a) KEK'!E41 -> 0 | F41: ='DS5 Capex (DSO a) KEK'!F41 -> 0
B42: =Translation!A311 -> Shto rreshta shtese mbi dhe kopjo formulen
B43: ='DS5 Capex (DSO a) KEK'!B43 -> Shënime: | C43: =Translation!A58 -> Kostot historike janë mbi bazën e rrjedhes se parasë - Kostot e parashikuara janë mbi bazë të çmimit konstant për 2012

Sheet DS7 Connections DSO KEK
A6: =Translation!A949 -> Shqyrtimi SHVT 2013-2017
A7: =Translation!A313 -> DS7 - Kycjet (KEK OSSH)
E9: 2008 | F9: 2009 | G9: 2010 | H9: 2011 | I9: 2012 | J9: 2013 | K9: 2014 | L9: 2015 | M9: 2016 | N9: 2017
B10: =Translation!A314 -> Kostot e kycjes | E10: ='DS4 OPEX (DSO d) KEK'!E10 -> Aktual | F10: ='DS4 OPEX (DSO d) KEK'!F10 -> Aktual | G10: ='DS4 OPEX (DSO d) KEK'!G10 -> Aktual | H10: ='DS4 OPEX (DSO d) KEK'!H10 -> Aktual | I10: ='DS4 OPEX (DSO d) KEK'!I10 -> Vlerësim | J10: ='DS4 OPEX (DSO d) KEK'!J10 -> Parashikim | K10: ='DS4 OPEX (DSO d) KEK'!K10 -> Parashikim | L10: ='DS4 OPEX (DSO d) KEK'!L10 -> Parashikim | M10: ='DS4 OPEX (DSO d) KEK'!M10 -> Parashikim | N10: ='DS4 OPEX (DSO d) KEK'!N10 -> Parashikim
B12: =Translation!A315 -> Kycjet> 1MW
B13: =Translation!$A$316 -> Numrat e ofertave te bera për Kycje (KEK instaluar)
B14: =Translation!$A$318 -> Kostoja (€) Aseteve instaluar (KEK)
B15: =Translation!$A$320 -> Kontributet e konsumatorëve për punën e kryer
B17: =Translation!$A$317 -> Numrat e ofertave te bera për Kycje (konsumatorëve instaluar)
B18: =Translation!$A$321 -> Vlera e aseteve të transferuara në KEK
B19: =$B$14 -> Kostoja (€) Aseteve instaluar (KEK)
B20: =$B$15 -> Kontributet e konsumatorëve për punën e kryer
B21: =Translation!$A$322 -> Pagesa KEK për Vlera e aseteve të transferuara në KEK (€)
B23: =Translation!A325 -> Kycjet <1MW
B24: =Translation!$A$316 -> Numrat e ofertave te bera për Kycje (KEK instaluar)
B25: =Translation!$A$318 -> Kostoja (€) Aseteve instaluar (KEK)
B26: =Translation!$A$320 -> Kontributet e konsumatorëve për punën e kryer
B28: =Translation!$A$317 -> Numrat e ofertave te bera për Kycje (konsumatorëve instaluar)
B29: =Translation!$A$321 -> Vlera e aseteve të transferuara në KEK
B30: =$B$14 -> Kostoja (€) Aseteve instaluar (KEK)
B31: =$B$15 -> Kontributet e konsumatorëve për punën e kryer
B32: =Translation!$A$322 -> Pagesa KEK për Vlera e aseteve të transferuara në KEK (€)
B34: =Translation!A332 -> Kycjet shtepiake
B35: =Translation!$A$316 -> Numrat e ofertave te bera për Kycje (KEK instaluar)
B36: =Translation!$A$318 -> Kostoja (€) Aseteve instaluar (KEK)
B37: =Translation!$A$320 -> Kontributet e konsumatorëve për punën e kryer
B39: =Translation!$A$317 -> Numrat e ofertave te bera për Kycje (konsumatorëve instaluar)
B40: =Translation!$A$321 -> Vlera e aseteve të transferuara në KEK
B41: =$B$14 -> Kostoja (€) Aseteve instaluar (KEK)
B42: =$B$15 -> Kontributet e konsumatorëve për punën e kryer
B43: =Translation!$A$322 -> Pagesa KEK për Vlera e aseteve të transferuara në KEK (€)
B45: =Translation!A339 -> Kyqjet e Gjenerimit
B46: =Translation!$A$316 -> Numrat e ofertave te bera për Kycje (KEK instaluar)
B47: =Translation!$A$318 -> Kostoja (€) Aseteve instaluar (KEK)
B48: =Translation!$A$320 -> Kontributet e konsumatorëve për punën e kryer
B50: =Translation!$A$317 -> Numrat e ofertave te bera për Kycje (konsumatorëve instaluar)
B51: =Translation!$A$321 -> Vlera e aseteve të transferuara në KEK
B52: =$B$14 -> Kostoja (€) Aseteve instaluar (KEK)
B53: =$B$15 -> Kontributet e konsumatorëve për punën e kryer
B54: =Translation!$A$322 -> Pagesa KEK për Vlera e aseteve të transferuara në KEK (€)

Sheet DS8 Assets DSO KEK
A6: =Translation!A949 -> Shqyrtimi SHVT 2013-2017
A7: =Translation!A346 -> DS8 - Jetegjatësia e Aseteve - Teknike (KEK OSSH SISTEMI KRYESOR I KEK-ut)
B9: =Translation!A347 -> Klasa e Aseteve | E9: =Translation!A348 -> Teknik | G9: ='DS3 Other (DSO) KEK'!B39 -> Total | I9: =Translation!A350 -> më të vjetër | J9: 1965 | K9: 1970 | L9: 1975 | M9: 1980 | N9: 1985 | O9: 1990 | P9: 1995 | Q9: 2000 | R9: 2005
E10: =Translation!A349 -> Jetegjatsia (vjet) | G10: =Translation!A347 -> Klasa e Aseteve | I10: 1960 | J10: 1961 | K10: 1966 | L10: 1971 | M10: 1976 | N10: 1981 | O10: 1986 | P10: 1991 | Q10: 1996 | R10: 2001 | S10: 2006 | T10: 2007 | U10: 2008 | V10: 2009 | W10: 2010 | X10: 2011 | Y10: 2012
B11: =Translation!A351 -> Shto emrin e klasës së aseteve më poshtë. Shto rreshta shtesë nëse është e nevojshme | I11: =Translation!A384 -> Numri i aseteve të instaluara në këtë periudhë
B12: =Translation!A352 -> Kabëll 35 kV | F12: km
B13: =Translation!A353 -> Linjë me shtylla druri 35 kV | F13: km
B14: =Translation!A354 -> linjë tjetër 35 kV | F14: km
B15: =Translation!A355 -> 35 kV transformatorët (35/10 kV) | F15: =Translation!$A$391 -> Njësi
B16: =Translation!A356 -> 35 kV transformatorët (35/0.4 kV) | F16: =Translation!$A$391 -> Njësi
B17: =Translation!A357 -> ndërprersit e qarkut 35 kV (me përjashtim të KOSTT) | F17: =Translation!$A$391 -> Njësi
B18: =Translation!A358 -> matja e ngarkeses 35 kV | F18: =Translation!$A$391 -> Njësi
B19: =Translation!A359 -> 35 kV nderpreres / Isolator | F19: =Translation!$A$391 -> Njësi
B20: =Translation!A360 -> 35 kV unaza kryesore | F20: =Translation!$A$391 -> Njësi
B22: =Translation!A362 -> kabell 10 kV | F22: km
B23: =Translation!A363 -> linje me shtylla druri 10 kV | F23: km
B24: =Translation!A364 -> 10 kV transformatorët (10/0.4kV) GM brenda | F24: =Translation!$A$391 -> Njësi
B25: =Translation!A365 -> 10 kV transformatorët (10/0.4kV) GM jashtë | F25: =Translation!$A$391 -> Njësi
B26: =Translation!A366 -> 10 kV transformatorët (10/0.4kV) PM | F26: =Translation!$A$391 -> Njësi
B27: =Translation!A367 -> matja e ngarkeses 10 kV | F27: =Translation!$A$391 -> Njësi
B28: =Translation!A368 -> nderpreres qarkor 10 kV (primar) | F28: =Translation!$A$391 -> Njësi
B29: =Translation!A369 -> nderpreres qarkor 10 kV (sekondar) | F29: =Translation!$A$391 -> Njësi
B30: =Translation!A370 -> nderpreres 10 kV | F30: =Translation!$A$391 -> Njësi
B31: =Translation!A371 -> unaza kryesore 10 kV | F31: =Translation!$A$391 -> Njësi
B33: =Translation!A373 -> kablla 400 V | F33: km
B34: =Translation!A374 -> 400 linjë V - shtyllat (numri) | F34: km
B35: =Translation!A375 -> Linja 400 V -Gjatesia e qarkut te linjes mbitokesore | F35: km
B36: =Translation!A376 -> 400 V kuvert e siguresave (Nënstacioni) | F36: =Translation!$A$391 -> Njësi
B37: =Translation!A377 -> 400 V nderpreres (OH rrjetit) | F37: =Translation!$A$391 -> Njësi
B38: =Translation!A378 -> 400 V shtyllat e rrjetit | F38: =Translation!$A$391 -> Njësi
B39: =Translation!A379 -> 400 V kuti nëntokësore e kyqjes | F39: =Translation!$A$391 -> Njësi
B40: =Translation!A380 -> Shërbimi UG | F40: =Translation!$A$391 -> Njësi
B41: =Translation!A381 -> Shërbimi OH | F41: =Translation!$A$391 -> Njësi
B42: =Translation!A382 -> Matës - te gjith aktual | F42: =Translation!$A$391 -> Njësi
B43: =Translation!A383 -> Matës - CT | F43: =Translation!$A$391 -> Njësi
B44: ='DS6 Capex (DSO b) KEK'!B43 -> Shënime: | D44: =Translation!A305 -> Jeta e dobishme është jeta e pritshme e zëvendësimit qe do te perdorej ne zëvendësimet e parashikuara.
D45: =Translation!A306 -> Vendosni numtrin e aseteve te komisionuara ne periudhe- per astet lineare njesite jane ne km

Sheet DS9 Assets DSO KEK (N)
A6: =Translation!A949 -> Shqyrtimi SHVT 2013-2017
A7: =Translation!A386 -> DS9 - Jetegjatesia e Aseteve - Teknike (KEK pjesët minoritare)
B9: ='DS8 Assets DSO KEK'!B9 -> Klasa e Aseteve | E9: ='DS8 Assets DSO KEK'!E9 -> Teknik | G9: ='DS3 Other (DSO) KEK'!B39 -> Total | I9: ='DS8 Assets DSO KEK'!I9 -> më të vjetër | J9: 1965 | K9: 1970 | L9: 1975 | M9: 1980 | N9: 1985 | O9: 1990 | P9: 1995 | Q9: 2000 | R9: 2005
E10: ='DS8 Assets DSO KEK'!E10 -> Jetegjatsia (vjet) | G10: =Translation!A347 -> Klasa e Aseteve | I10: 1960 | J10: 1961 | K10: 1966 | L10: 1971 | M10: 1976 | N10: 1981 | O10: 1986 | P10: 1991 | Q10: 1996 | R10: 2001 | S10: 2006 | T10: 2007 | U10: 2008 | V10: 2009 | W10: 2010 | X10: 2011 | Y10: 2012
B11: ='DS8 Assets DSO KEK'!B11 -> Shto emrin e klasës së aseteve më poshtë. Shto rreshta shtesë nëse është e nevojshme | I11: ='DS8 Assets DSO KEK'!I11 -> Numri i aseteve të instaluara në këtë periudhë
B12: ='DS8 Assets DSO KEK'!B12 -> Kabëll 35 kV | F12: km
B13: ='DS8 Assets DSO KEK'!B13 -> Linjë me shtylla druri 35 kV | F13: km
B14: ='DS8 Assets DSO KEK'!B14 -> linjë tjetër 35 kV | F14: km
B15: ='DS8 Assets DSO KEK'!B15 -> 35 kV transformatorët (35/10 kV) | F15: =Translation!$A$391 -> Njësi
B16: ='DS8 Assets DSO KEK'!B16 -> 35 kV transformatorët (35/0.4 kV) | F16: =Translation!$A$391 -> Njësi
B17: ='DS8 Assets DSO KEK'!B17 -> ndërprersit e qarkut 35 kV (me përjashtim të KOSTT) | F17: =Translation!$A$391 -> Njësi
B18: ='DS8 Assets DSO KEK'!B18 -> matja e ngarkeses 35 kV | F18: =Translation!$A$391 -> Njësi
B19: ='DS8 Assets DSO KEK'!B19 -> 35 kV nderpreres / Isolator | F19: =Translation!$A$391 -> Njësi
B20: ='DS8 Assets DSO KEK'!B20 -> 35 kV unaza kryesore | F20: =Translation!$A$391 -> Njësi
B22: ='DS8 Assets DSO KEK'!B22 -> kabell 10 kV | F22: km
B23: ='DS8 Assets DSO KEK'!B23 -> linje me shtylla druri 10 kV | F23: km
B24: ='DS8 Assets DSO KEK'!B24 -> 10 kV transformatorët (10/0.4kV) GM brenda | F24: =Translation!$A$391 -> Njësi
B25: ='DS8 Assets DSO KEK'!B25 -> 10 kV transformatorët (10/0.4kV) GM jashtë | F25: =Translation!$A$391 -> Njësi
B26: ='DS8 Assets DSO KEK'!B26 -> 10 kV transformatorët (10/0.4kV) PM | F26: =Translation!$A$391 -> Njësi
B27: ='DS8 Assets DSO KEK'!B27 -> matja e ngarkeses 10 kV | F27: =Translation!$A$391 -> Njësi
B28: ='DS8 Assets DSO KEK'!B28 -> nderpreres qarkor 10 kV (primar) | F28: =Translation!$A$391 -> Njësi
B29: ='DS8 Assets DSO KEK'!B29 -> nderpreres qarkor 10 kV (sekondar) | F29: =Translation!$A$391 -> Njësi
B30: ='DS8 Assets DSO KEK'!B30 -> nderpreres 10 kV | F30: =Translation!$A$391 -> Njësi
B31: ='DS8 Assets DSO KEK'!B31 -> unaza kryesore 10 kV | F31: =Translation!$A$391 -> Njësi
B33: ='DS8 Assets DSO KEK'!B33 -> kablla 400 V | F33: km
B34: ='DS8 Assets DSO KEK'!B34 -> 400 linjë V - shtyllat (numri) | F34: km
B35: ='DS8 Assets DSO KEK'!B35 -> Linja 400 V -Gjatesia e qarkut te linjes mbitokesore | F35: km
B36: ='DS8 Assets DSO KEK'!B36 -> 400 V kuvert e siguresave (Nënstacioni) | F36: =Translation!$A$391 -> Njësi
B37: ='DS8 Assets DSO KEK'!B37 -> 400 V nderpreres (OH rrjetit) | F37: =Translation!$A$391 -> Njësi
B38: ='DS8 Assets DSO KEK'!B38 -> 400 V shtyllat e rrjetit | F38: =Translation!$A$391 -> Njësi
B39: ='DS8 Assets DSO KEK'!B39 -> 400 V kuti nëntokësore e kyqjes | F39: =Translation!$A$391 -> Njësi
B40: ='DS8 Assets DSO KEK'!B40 -> Shërbimi UG | F40: =Translation!$A$391 -> Njësi
B41: ='DS8 Assets DSO KEK'!B41 -> Shërbimi OH | F41: =Translation!$A$391 -> Njësi
B42: ='DS8 Assets DSO KEK'!B42 -> Matës - te gjith aktual | F42: =Translation!$A$391 -> Njësi
B43: ='DS8 Assets DSO KEK'!B43 -> Matës - CT | F43: =Translation!$A$391 -> Njësi
B44: ='DS8 Assets DSO KEK'!B44 -> Shënime: | D44: ='DS8 Assets DSO KEK'!D44 -> Jeta e dobishme është jeta e pritshme e zëvendësimit qe do te perdorej ne zëvendësimet e parashikuara.
D45: ='DS8 Assets DSO KEK'!D45 -> Vendosni numtrin e aseteve te komisionuara ne periudhe- per astet lineare njesite jane ne km

Sheet DS10 Unit Cost DSO KEK
A6: =Translation!A949 -> Shqyrtimi SHVT 2013-2017
A7: =Translation!A388 -> DS10 - Kosto Aseteve per njesi - Teknike (KEK OSSH)
B9: ='DS9 Assets DSO KEK (N)'!B9 -> Klasa e Aseteve | E9: =Translation!A389 -> Njësitë | F9: =Translation!A391 -> Njësi | G9: =Translation!A393 -> Referencat per mbeshtetjen e deklaratave(parashtresave)
E10: =Translation!A390 -> Km ose Njësi | F10: =Translation!A392 -> Kosto (€)
B11: ='DS9 Assets DSO KEK (N)'!B11 -> Shto emrin e klasës së aseteve më poshtë. Shto rreshta shtesë nëse është e nevojshme
B12: ='DS9 Assets DSO KEK (N)'!B12 -> Kabëll 35 kV | E12: ='DS9 Assets DSO KEK (N)'!F12 -> km
B13: ='DS9 Assets DSO KEK (N)'!B13 -> Linjë me shtylla druri 35 kV | E13: ='DS9 Assets DSO KEK (N)'!F13 -> km
B14: ='DS9 Assets DSO KEK (N)'!B14 -> linjë tjetër 35 kV | E14: ='DS9 Assets DSO KEK (N)'!F14 -> km
B15: ='DS9 Assets DSO KEK (N)'!B15 -> 35 kV transformatorët (35/10 kV) | E15: ='DS9 Assets DSO KEK (N)'!F15 -> Njësi
B16: ='DS9 Assets DSO KEK (N)'!B16 -> 35 kV transformatorët (35/0.4 kV) | E16: ='DS9 Assets DSO KEK (N)'!F16 -> Njësi
B17: ='DS9 Assets DSO KEK (N)'!B17 -> ndërprersit e qarkut 35 kV (me përjashtim të KOSTT) | E17: ='DS9 Assets DSO KEK (N)'!F17 -> Njësi
B18: ='DS9 Assets DSO KEK (N)'!B18 -> matja e ngarkeses 35 kV | E18: ='DS9 Assets DSO KEK (N)'!F18 -> Njësi
B19: ='DS9 Assets DSO KEK (N)'!B19 -> 35 kV nderpreres / Isolator | E19: ='DS9 Assets DSO KEK (N)'!F19 -> Njësi
B20: ='DS9 Assets DSO KEK (N)'!B20 -> 35 kV unaza kryesore | E20: ='DS9 Assets DSO KEK (N)'!F20 -> Njësi
B22: ='DS9 Assets DSO KEK (N)'!B22 -> kabell 10 kV | E22: ='DS9 Assets DSO KEK (N)'!F22 -> km
B23: ='DS9 Assets DSO KEK (N)'!B23 -> linje me shtylla druri 10 kV | E23: ='DS9 Assets DSO KEK (N)'!F23 -> km
B24: ='DS9 Assets DSO KEK (N)'!B24 -> 10 kV transformatorët (10/0.4kV) GM brenda | E24: ='DS9 Assets DSO KEK (N)'!F24 -> Njësi
B25: ='DS9 Assets DSO KEK (N)'!B25 -> 10 kV transformatorët (10/0.4kV) GM jashtë | E25: ='DS9 Assets DSO KEK (N)'!F25 -> Njësi
B26: ='DS9 Assets DSO KEK (N)'!B26 -> 10 kV transformatorët (10/0.4kV) PM | E26: ='DS9 Assets DSO KEK (N)'!F26 -> Njësi
B27: ='DS9 Assets DSO KEK (N)'!B27 -> matja e ngarkeses 10 kV | E27: ='DS9 Assets DSO KEK (N)'!F27 -> Njësi
B28: ='DS9 Assets DSO KEK (N)'!B28 -> nderpreres qarkor 10 kV (primar) | E28: ='DS9 Assets DSO KEK (N)'!F28 -> Njësi
B29: ='DS9 Assets DSO KEK (N)'!B29 -> nderpreres qarkor 10 kV (sekondar) | E29: ='DS9 Assets DSO KEK (N)'!F29 -> Njësi
B30: ='DS9 Assets DSO KEK (N)'!B30 -> nderpreres 10 kV | E30: ='DS9 Assets DSO KEK (N)'!F30 -> Njësi
B31: ='DS9 Assets DSO KEK (N)'!B31 -> unaza kryesore 10 kV | E31: ='DS9 Assets DSO KEK (N)'!F31 -> Njësi
B33: ='DS9 Assets DSO KEK (N)'!B33 -> kablla 400 V | E33: ='DS9 Assets DSO KEK (N)'!F33 -> km
B34: ='DS9 Assets DSO KEK (N)'!B34 -> 400 linjë V - shtyllat (numri) | E34: ='DS9 Assets DSO KEK (N)'!F34 -> km
B35: ='DS9 Assets DSO KEK (N)'!B35 -> Linja 400 V -Gjatesia e qarkut te linjes mbitokesore | E35: ='DS9 Assets DSO KEK (N)'!F35 -> km
B36: ='DS9 Assets DSO KEK (N)'!B36 -> 400 V kuvert e siguresave (Nënstacioni) | E36: ='DS9 Assets DSO KEK (N)'!F36 -> Njësi
B37: ='DS9 Assets DSO KEK (N)'!B37 -> 400 V nderpreres (OH rrjetit) | E37: ='DS9 Assets DSO KEK (N)'!F37 -> Njësi
B38: ='DS9 Assets DSO KEK (N)'!B38 -> 400 V shtyllat e rrjetit | E38: ='DS9 Assets DSO KEK (N)'!F38 -> Njësi
B39: ='DS9 Assets DSO KEK (N)'!B39 -> 400 V kuti nëntokësore e kyqjes | E39: ='DS9 Assets DSO KEK (N)'!F39 -> Njësi
B40: ='DS9 Assets DSO KEK (N)'!B40 -> Shërbimi UG | E40: ='DS9 Assets DSO KEK (N)'!F40 -> Njësi
B41: ='DS9 Assets DSO KEK (N)'!B41 -> Shërbimi OH | E41: ='DS9 Assets DSO KEK (N)'!F41 -> Njësi
B42: ='DS9 Assets DSO KEK (N)'!B42 -> Matës - te gjith aktual | E42: ='DS9 Assets DSO KEK (N)'!F42 -> Njësi
B43: ='DS9 Assets DSO KEK (N)'!B43 -> Matës - CT | E43: ='DS9 Assets DSO KEK (N)'!F43 -> Njësi
B44: ='DS9 Assets DSO KEK (N)'!B44 -> Shënime: | C44: =Translation!A395 -> Përfshirja ekostove relevante ndihmese p.sh. mbrojtjen e comms
C45: =Translation!A396 -> Në komentet përfshijnë madhësinë e përdorur në koston njësi apo bazën e kostos në qoftë se kostoja njësi është e ponderuar
C46: =Translation!A397 -> Për kabllo përdorni kostot e instalimit - tregoni reduktimet në % per qarkun duel,

Sheet DS11 DRIVER (DSO a) KEK
A6: =Translation!A949 -> Shqyrtimi SHVT 2013-2017
A7: =Translation!A399 -> DS11 - Ngarkesa e sistemit dhe shtytesit e performances -Teknike (KEK OSSH) sistemi kryesor dhe rajonet minoritare
G9: 2008 | H9: 2009 | I9: 2010 | J9: 2011 | K9: 2012 | L9: 2013 | M9: 2014 | N9: 2015 | O9: 2016 | P9: 2017
E10: ='DS10 Unit Cost DSO KEK'!E9 -> Njësitë | G10: ='DS7 Connections DSO KEK'!E10 -> Aktual | H10: ='DS7 Connections DSO KEK'!F10 -> Aktual | I10: ='DS7 Connections DSO KEK'!G10 -> Aktual | J10: ='DS7 Connections DSO KEK'!H10 -> Aktual | K10: ='DS7 Connections DSO KEK'!I10 -> Vlerësim | L10: ='DS7 Connections DSO KEK'!J10 -> Parashikim | M10: ='DS7 Connections DSO KEK'!K10 -> Parashikim | N10: ='DS7 Connections DSO KEK'!L10 -> Parashikim | O10: ='DS7 Connections DSO KEK'!M10 -> Parashikim | P10: ='DS7 Connections DSO KEK'!N10 -> Parashikim
B11: =Translation!A400 -> Ngarkesa Maksimale e sistemit
B12: =Translation!A401 -> Ngarkesa Maksimale e sistemit (sistemi TOTAL qe koincidon) | E12: MW
B13: =Translation!A402 -> Ngarkesa Maksimale e sistemit (Sistemi kryesor I KEK-u në kohën e ngarkeses maksimale) | E13: MW
B14: =Translation!A403 -> Ngarkesa Maksimale e sistemit (Zonat e pakicave në kohën e ngarkeses maksimale) | E14: MW
B15: =Translation!A404 -> SISTEMI KRYESOR I KEK-ut
B16: =Translation!A405 -> Njisit e matura te konsumatorve sipas nivelit te tensionit
B17: 35 kV | E17: Mwh
B18: 10kV | E18: Mwh
B19: =Translation!A406 -> TU | E19: Mwh
B20: =Translation!A407 -> Njesite e matura sipas klaseve të konsumatorve
B21: =Translation!A408 -> Industrial | E21: Mwh
B22: =Translation!A409 -> Komercial | E22: Mwh
B23: =Translation!A410 -> Shtepiak | E23: Mwh
B24: =Translation!A411 -> Numri i konsumatorëve të kyçur sipas nivel të tensionit
B25: 35 kV | E25: -
B26: 10kV | E26: -
B27: =B19 -> TU | E27: -
B28: =Translation!A412 -> Numri i konsumatorëve të kyçur sipas klasaseve të konsumatorve
B29: =B21 -> Industrial | E29: -
B30: =B22 -> Komercial | E30: -
B31: =B23 -> Shtepiak | E31: -
B32: =Translation!A413 -> Konsumatorët e Gjenerimit (numri)
B33: <1MVA | E33: -
B34: =Translation!A414 -> 1MVA ose më e madhe | E34: -
B35: =Translation!A415 -> Konsumatorët e Gjenerimit (kapaciteti)
B36: <1MVA | E36: MVA
B37: =B34 -> 1MVA ose më e madhe | E37: MVA
B38: =Translation!A416 -> Numri i njesorve (manual)
B39: 35 kV | E39: -
B40: 10kV | E40: -
B41: 400V | E41: -
B42: =Translation!A417 -> Numri i njesorve (Automatik)
B43: 35 kV | E43: -
B44: 10kV | E44: -
B45: =B27 -> TU | E45: -
B46: =Translation!A418 -> Performance e Sistemit
B47: =Translation!A419 -> SAIDI | E47: -
B48: =Translation!A420 -> SAIFI | E48: -
B49: =Translation!A421 -> Energjia qe nuk furnizohet | E49: -
B50: =Translation!A422 -> Rajonet minoritare
B51: =B16 -> Njisit e matura te konsumatorve sipas nivelit te tensionit
B52: 35 kV | E52: Mwh
B53: 10kV | E53: Mwh
B54: =B45 -> TU | E54: Mwh
B55: =B20 -> Njesite e matura sipas klaseve të konsumatorve
B56: =B29 -> Industrial | E56: Mwh
B57: =B30 -> Komercial | E57: Mwh
B58: =B31 -> Shtepiak | E58: Mwh
B59: =B24 -> Numri i konsumatorëve të kyçur sipas nivel të tensionit
B60: 35 kV | E60: -
B61: 10kV | E61: -
B62: =B45 -> TU | E62: -
B63: =B28 -> Numri i konsumatorëve të kyçur sipas klasaseve të konsumatorve
B64: =B56 -> Industrial | E64: -
B65: =B57 -> Komercial | E65: -
B66: =B58 -> Shtepiak | E66: -
B67: =B38 -> Numri i njesorve (manual)
B68: 35 kV | E68: -
B69: 10kV | E69: -
B70: 400V | E70: -
B71: =B42 -> Numri i njesorve (Automatik)
B72: 35 kV | E72: -
B73: 10kV | E73: -
B74: =B45 -> TU | E74: -

Sheet DS 12 DRIVER (DSO b) KEK
A6: =Translation!A949 -> Shqyrtimi SHVT 2013-2017
A7: =Translation!A430 -> DS12 - Ngarkesa e nenstacionit Tekn (KEK OSSH)
B9: =Translation!A431 -> Emri i nënstacionit te distribucionit | E9: =Translation!A434 -> Kapaciteti I Firmes | G9: 2008 | H9: 2009 | I9: 2010 | J9: 2011 | K9: 2012 | L9: 2013 | M9: 2014 | N9: 2015 | O9: 2016 | P9: 2017
E10: (MVA) | G10: ='DS11 DRIVER (DSO a) KEK'!G10 -> Aktual | H10: ='DS11 DRIVER (DSO a) KEK'!H10 -> Aktual | I10: ='DS11 DRIVER (DSO a) KEK'!I10 -> Aktual | J10: ='DS11 DRIVER (DSO a) KEK'!J10 -> Aktual | K10: ='DS11 DRIVER (DSO a) KEK'!K10 -> Vlerësim | L10: ='DS11 DRIVER (DSO a) KEK'!L10 -> Parashikim | M10: ='DS11 DRIVER (DSO a) KEK'!M10 -> Parashikim | N10: ='DS11 DRIVER (DSO a) KEK'!N10 -> Parashikim | O10: ='DS11 DRIVER (DSO a) KEK'!O10 -> Parashikim | P10: ='DS11 DRIVER (DSO a) KEK'!P10 -> Parashikim
B11: =Translation!A432 -> 35/10kV SISTEMI KRYESOR I KEK | F11: =Translation!A435 -> Ngarkessat e pikut te nenstacioneve (MVA)
B34: =Translation!A224 -> Shto rreshtat shtese me larte
B35: =Translation!A433 -> 35/10kV ZONAT E PAKICAVE
B50: =Translation!A224 -> Shto rreshtat shtese me larte
B51: =Translation!A57 -> Shënime: | E51: =Translation!A436 -> Kapaciteti I firmes duhet të bazohet në kriteret përkatëse N-x për ngarkesen e grupit
E52: =Translation!A437 -> Ku nënstacionet janë zavendesuar për të rritur kapacitetin shtoni si një nënstacioni të ri në vitin e futjes ne funksion
E53: =Translation!A438 -> Fut komentet nëse faktori kufizus eshte rrjeti ne vend se nenstacioni

Sheet DS13 DRIVER (DSO c) KEK
A6: =Translation!A949 -> Shqyrtimi SHVT 2013-2017
A7: =Translation!A440 -> DS13 - Nenstacionit voltazh Tekn. (KEK OSSH)
B9: ='DS 12 DRIVER (DSO b) KEK'!B9 -> Emri i nënstacionit te distribucionit | F9: 2011 | G9: 2017
F10: =Translation!A90 -> Aktual | G10: =Translation!A92 -> Parashikim
B11: ='DS 12 DRIVER (DSO b) KEK'!B11 -> 35/10kV SISTEMI KRYESOR I KEK | E11: =Translation!A441 -> Tensioni minimal 10kV ne zbara( ne kohen e ngarkeses maksimale)
B34: ='DS 12 DRIVER (DSO b) KEK'!B34 -> Shto rreshtat shtese me larte
B35: ='DS 12 DRIVER (DSO b) KEK'!B35 -> 35/10kV ZONAT E PAKICAVE
B50: ='DS 12 DRIVER (DSO b) KEK'!B50 -> Shto rreshtat shtese me larte

Sheet DS14 DRIVER (DSO d) KEK
A6: =Translation!A949 -> Shqyrtimi SHVT 2013-2017
A7: =Translation!A443 -> Renia e tensionit ne Linjat DS 14 - 10 kV(KEK OSSH)
B9: =Translation!A444 -> Linjat me kulaitet te dobet 10kV sipas regjioneve | D9: =Translation!A445 -> Vlerësim maksimal (MVA) | E9: =Translation!A447 -> % e vlersimit maksimal | H9: =Translation!A450 -> Max % DV
E10: =Translation!A448 -> 2011 aktual | F10: =Translation!A449 -> 2017 Parashikimi | H10: =E10 -> 2011 aktual | I10: =F10 -> 2017 Parashikimi
B11: Peja
A12: 1
A13: =A12+1 -> 2
A14: =A13+1 -> 3
A15: 4
A16: 5
A17: 6
A18: 7
A19: 8
A20: 9
A21: 10
B22: Prizreni
A23: 1
A24: =A23+1 -> 2
A25: =A24+1 -> 3
A26: 4
A27: 5
A28: 6
A29: 7
A30: 8
A31: 9
A32: 10
B33: Ferizaj
A34: 1
A35: =A34+1 -> 2
A36: =A35+1 -> 3
A37: 4
A38: 5
A39: 6
A40: 7
A41: 8
A42: 9
A43: 10
B44: Gjakova
A45: 1
A46: =A45+1 -> 2
A47: =A46+1 -> 3
A48: 4
A49: 5
A50: 6
A51: 7
A52: 8
A53: 9
A54: 10
B55: Gjilani
A56: 1
A57: =A56+1 -> 2
A58: =A57+1 -> 3
A59: 4
A60: 5
A61: 6
A62: 7
A63: 8
A64: 9
A65: 10
B66: Mitrovica
A67: 1
A68: =A67+1 -> 2
A69: =A68+1 -> 3
A70: 4
A71: 5
A72: 6
A73: 7
A74: 8
A75: 9
A76: 10
B77: Prishtina
A78: 1
A79: =A78+1 -> 2
A80: =A79+1 -> 3
A81: 4
A82: 5
A83: 6
A84: 7
A85: 8
A86: 9
A87: 10

Sheet DS15 P&L DSO KEK
A6: =Translation!A949 -> Shqyrtimi SHVT 2013-2017
A7: =Translation!A452 -> DS15 - Fitimi dhe Humbja (KEK) OSSH
E9: 2008 | F9: 2009 | G9: 2010 | H9: 2011 | I9: 2012 | J9: 2013 | K9: 2014 | L9: 2015 | M9: 2016 | N9: 2017
B10: =Translation!A453 -> P & L OSSH | E10: ='DS1 OPEX (DSO a) KEK'!F10 -> Aktuale (€ '000) | F10: ='DS1 OPEX (DSO a) KEK'!G10 -> Aktuale (€ '000) | G10: ='DS1 OPEX (DSO a) KEK'!H10 -> Aktuale (€ '000) | H10: ='DS1 OPEX (DSO a) KEK'!I10 -> Aktuale (€ '000) | I10: ='DS1 OPEX (DSO a) KEK'!J10 -> Vlerësimi (€ '000) | J10: ='DS1 OPEX (DSO a) KEK'!K10 -> Parashikimi (€ '000) | K10: ='DS1 OPEX (DSO a) KEK'!L10 -> Parashikimi (€ '000) | L10: ='DS1 OPEX (DSO a) KEK'!M10 -> Parashikimi (€ '000) | M10: ='DS1 OPEX (DSO a) KEK'!N10 -> Parashikimi (€ '000) | N10: ='DS1 OPEX (DSO a) KEK'!O10 -> Parashikimi (€ '000)
B11: =Translation!A454 -> Të ardhurat me:
B12: =B11 -> Të ardhurat me: | E12: ='HQ5 Rev (Group) KEK'!F67 -> 0 | F12: ='HQ5 Rev (Group) KEK'!G67 -> 0 | G12: ='HQ5 Rev (Group) KEK'!H67 -> 0 | H12: ='HQ5 Rev (Group) KEK'!I67 -> 0 | I12: ='HQ5 Rev (Group) KEK'!J67 -> 0 | J12: ='HQ5 Rev (Group) KEK'!K67 -> 0 | K12: ='HQ5 Rev (Group) KEK'!L67 -> 0 | L12: ='HQ5 Rev (Group) KEK'!M67 -> 0 | M12: ='HQ5 Rev (Group) KEK'!N67 -> 0 | N12: ='HQ5 Rev (Group) KEK'!O67 -> 0
B13: =Translation!A457 -> Qarkullimi | E13: =SUM(E12:E12) -> 0 | F13: 0 | G13: 0 | H13: 0 | I13: 0 | J13: 0 | K13: 0 | L13: 0 | M13: 0 | N13: 0
B14: =Translation!A461 -> Shpenzimet operative:
B15: =Translation!A462 -> Shpenzimet totale operative | E15: ='DS3 Other (DSO) KEK'!F39 -> 0 | F15: ='DS3 Other (DSO) KEK'!G39 -> 0 | G15: ='DS3 Other (DSO) KEK'!H39 -> 0 | H15: ='DS3 Other (DSO) KEK'!I39 -> 0 | I15: ='DS3 Other (DSO) KEK'!J39 -> 0 | J15: ='DS3 Other (DSO) KEK'!K39 -> 0 | K15: ='DS3 Other (DSO) KEK'!L39 -> 0 | L15: ='DS3 Other (DSO) KEK'!M39 -> 0 | M15: ='DS3 Other (DSO) KEK'!N39 -> 0 | N15: ='DS3 Other (DSO) KEK'!O39 -> 0
B16: =Translation!A463 -> Fitimi Operative / (humbja) | E16: =SUM(E13-E15) -> 0 | F16: =SUM(F13-F15) -> 0 | G16: 0 | H16: 0 | I16: 0 | J16: 0 | K16: 0 | L16: 0 | M16: 0 | N16: 0

Sheet TABLE E.2 (hidden)
A1: NON-PES SUPPLY DETAIL
A2: SUPPLY-TRADE BUSINESS PROFIT AND LOSS ACCOUNT | I2: TABLE E.2
B4: Actual | C4: Estimate | D4: Forecast
A5: Description | B5: 2011 | C5: 2012 | D5: 2013 | E5: 2014 | F5: 2015 | G5: 2016 | H5: 2017
B6: €000s | C6: €000s | D6: €000s | E6: €000s | F6: €000s | G6: €000s | H6: €000s
A7: Electricity sales revenues | C7: 0 | D7: 0 | E7: 0 | F7: 0 | G7: 0 | H7: 0
A8: Other regulated revenues - specify
A9: Turnover | B9: 0 | C9: 0 | D9: 0 | E9: 0 | F9: 0 | G9: 0 | H9: 0
A10: Cost of Sales:
A11: Electricity purchase
A12: Transmission Use of System
A13: Distribution Use of System
A14: Market Operator Charges
A15: Balancing charges
A16: Total Cost of Sales | B16: 0 | C16: 0 | D16: 0 | E16: 0 | F16: 0 | G16: 0 | H16: 0
A17: Gross Profit | B17: 0 | C17: 0 | D17: 0 | E17: 0 | F17: 0 | G17: 0 | H17: 0
A18: Operating costs:
A19: Advertising and marketing
A20: Customer records, service & billing
A21: Revenue collection (non-Court costs)
A22: Revenue collection (Court and legal costs)
A23: Customer contact centres | I23: Table F
A24: Bad debts
A25: Corporate overheads and administration | I25: Table B.1, 2
A26: Insurance
A27: Depreciation
A28: Other - specify
A29: Exceptional costs
A30: Total operating costs | B30: 0 | C30: 0 | D30: 0 | E30: 0 | F30: 0 | G30: 0 | H30: 0 | I30: Table G
A31: Operating profit/(loss) | B31: 0 | C31: 0 | D31: 0 | E31: 0 | F31: 0 | G31: 0 | H31: 0

Sheet TABLE E.3 Supply DR (hidden)
B2: To Complete
B3: Drivers of Supply Service | C3: 2011 | D3: 2012 | E3: 2013 | F3: 2014 | G3: 2015 | H3: 2016 | I3: 2017 | J3: Comments
C4: Actual | D4: Forecast | E4: Forecast | F4: Forecast | G4: Forecast | H4: Forecast | I4: Forecast
B5: Unmetered Supplies
B6: Bills Issued
B7: Cash Handling ( bills receipted)
B8: Customer Connections
B9: Customer Disconections
B11: Customer Complaints
B13: Customer Calls

Sheet PS1 OPEX PES KEK
A6: =Translation!A949 -> Shqyrtimi SHVT 2013-2017
A7: =Translation!A465 -> PS1 - Sh. Operative-BIZNES PROCESI (KEK PES
C9: =Translation!$A$467 -> % e alokimit te CAPEX | E9: 2008 | F9: 2009 | G9: 2010 | H9: 2011 | I9: 2012 | J9: 2013 | K9: 2014 | L9: 2015 | M9: 2016 | N9: 2017
B10: =Translation!$A$483 -> Numrat e stafit | E10: ='DS 12 DRIVER (DSO b) KEK'!$G$10 -> Aktual | F10: ='DS 12 DRIVER (DSO b) KEK'!$H$10 -> Aktual | G10: ='DS 12 DRIVER (DSO b) KEK'!$I$10 -> Aktual | H10: ='DS 12 DRIVER (DSO b) KEK'!$J$10 -> Aktual | I10: ='DS 12 DRIVER (DSO b) KEK'!$K$10 -> Vlerësim | J10: ='DS 12 DRIVER (DSO b) KEK'!$L$10 -> Parashikim | K10: ='DS 12 DRIVER (DSO b) KEK'!$M$10 -> Parashikim | L10: ='DS 12 DRIVER (DSO b) KEK'!$N$10 -> Parashikim | M10: ='DS 12 DRIVER (DSO b) KEK'!$O$10 -> Parashikim | N10: ='DS 12 DRIVER (DSO b) KEK'!$P$10 -> Parashikim
B12: =Translation!A471 -> Shpalljet & Marketingu
B13: =Translation!A472 -> Të dhënat e konsumatorëve dhe faturimit
B14: =Translation!A473 -> Mbledhja e të ardhurave
B15: =Translation!A474 -> Qendra kontaktuse
B16: =Translation!A475 -> Qendra e thirrjeve
B17: =Translation!A487 -> Administrimi/Mbeshtetje e Zyres
B18: =Translation!A488 -> Menaxhimi
B19: =Translation!$A$489 -> Të tjera - Ju lutem specifikoni
B20: =Translation!$A$489 -> Të tjera - Ju lutem specifikoni
B21: =Translation!$A$489 -> Të tjera - Ju lutem specifikoni

Sheet PS2 Opex Cust KEK
A6: =Translation!A949 -> Shqyrtimi SHVT 2013-2017
A7: =Translation!A495 -> PS2 - Sh. Operative-Shpenzimet indirekte te qendres se konsumatorve dhe shpenzimet tjera te perbashketa (KEK PES)
D9: ='PS1 OPEX PES KEK'!#REF! ->  | G9: =Translation!A496 -> Shpenzimet e perbashketa totale që i akordohen:
B10: =Translation!A209 -> OPEX tjera | G10: =Translation!A497 -> FPEE | H10: =Translation!A498 -> RRJETI | I10: =Translation!A499 -> Tjetër (specifiko)
B12: =Translation!A500 -> Kategoria e Kostove
B13: =Translation!A501 -> Qendra e thirrjeve | D13: €000s
D14: %
B15: =Translation!A503 -> Qendra kontaktuse | D15: €000s
D16: %
B17: =Translation!A505 -> Kostot e tjera të përbashkëta | D17: €000s
D18: %
G20: 2011
B21: =Translation!A510 -> Numri i stafit në qendren e konsumatorëve | G21: =Translation!A90 -> Aktual
B22: =Translation!A507 -> Numri i FTEs:
B23: =Translation!A508 -> Qendra e thirrjeve
B24: =Translation!A509 -> Qendra kontaktuse e konsumatorve

Sheet TABLE F (hidden)
A2: KEK CUSTOMER CONTACT CENTRES COST DETAIL | C2: 2012 | F2: TABLE F
C4: SHARE OF TOTAL COSTS ALLOCATED TO:
B5: ESTIMATED TOTAL COSTS | C5: PES | D5: NETWORK | E5: OTHER (SPECIFY)
B6: 2012 | C6: 2012 | D6: 2012 | E6: 2012
A7: Cost Category | B7: €000s | C7: €000s | D7: €000s | E7: €000s
A9: Depreciation on property
A10: Information technology costs
A11: Vehicles
A12: Insurance
A13: Cash handling costs
A14: Security
A15: Other costs - specify
A16: Total cost of contact centre operations | B16: =SUM(B8:B15) -> 0 | C16: =SUM(C8:C15) -> 0 | D16: =SUM(D8:D15) -> 0 | E16: =SUM(E8:E15) -> 0 | F16: Table E.1, 2
A19: Staff employed in customer contact centres
B20: Number
A21: Number of full time equivalent staff
A22: working solely on PES (supply) contacts
A24: Number of full time equivalent staff
A25: working solely on network contacts
A27: Number of full time equivalent staff
A28: working on both PES and network contacts
A30: Total full time equivalent staff employed
A31: in customer contact centres

Sheet TABLE G (hidden)
A2: PES DETAIL: KEY SUPPLY BUSINESS PROCESS COSTS 2011, 2012 | D2: TABLE G
B5: 2011 | C5: 2012
A6: PES business process | B6: €000s | C6: €000s
A8: Advertising & Marketing
A9: Customer records, service & billing
A10: Revenue Collection
A11: Contact Centre
A12: Other - specify
A13: Total costs | B13: =SUM(B8:B12) -> 0 | C13: =SUM(C7:C12) -> 0 | D13: Table E.1, 2

Sheet PS2a Other PES KEK
A6: =Translation!A949 -> Shqyrtimi SHVT 2013-2017
A7: PS2a - Expenditure- OTHER (KEK DSO)
B9: =Translation!A27 -> OPEX | F9: 2008 | G9: 2009 | H9: 2010 | I9: 2011 | J9: 2012 | K9: 2013 | L9: 2014 | M9: 2015 | N9: 2016 | O9: 2017
B10: =Translation!A209 -> OPEX tjera | D10: =Translation!A60 -> Kodi I Llogarive | F10: ='PS3 Capex PES KEK'!H10 -> Aktuale (€ '000) | G10: ='PS3 Capex PES KEK'!I10 -> Aktuale (€ '000) | H10: ='PS3 Capex PES KEK'!J10 -> Aktuale (€ '000) | I10: ='PS3 Capex PES KEK'!K10 -> Aktuale (€ '000) | J10: ='PS3 Capex PES KEK'!L10 -> Vlerësimi (€ '000) | K10: ='PS3 Capex PES KEK'!M10 -> Parashikimi (€ '000) | L10: ='PS3 Capex PES KEK'!N10 -> Parashikimi (€ '000) | M10: ='PS3 Capex PES KEK'!O10 -> Parashikimi (€ '000) | N10: ='PS3 Capex PES KEK'!P10 -> Parashikimi (€ '000) | O10: ='PS3 Capex PES KEK'!Q10 -> Parashikimi (€ '000)
B12: =Translation!A30 -> Shpenzimet e personelit
B13: =Translation!A31 -> Pagat (neto)
B14: =Translation!A32 -> Kontributi pensional dhe taksat
B15: =Translation!A33 -> Tjera
B16: =Translation!A34 -> Elektrike dhe të tjera
B17: =Translation!A35 -> Blerjet e Energjisë Elektrike
B18: =Translation!A36 -> Shkëmbimi i energjisë elektrike
B19: =Translation!A37 -> Karburante
B20: =Translation!A38 -> Gaz dhe ujë
B21: =Translation!A39 -> Transmetimi i energjisë elektrike
B22: =Translation!A40 -> Mirëmbajtje
B23: =Translation!A41 -> Shërbimet Riparuese
B24: =Translation!A42 -> Shërbime të Mirëmbajtjes
B25: =Translation!A43 -> Materiale dhe Furnizime
B26: =Translation!A44 -> Zhvlerësimi dhe amortizimi
B27: =Translation!A45 -> Sigurimi për shlyerjen e inventarit
B28: =Translation!A46 -> Humbja e Zhvlerësimit të të arkëtueshmeve
B29: =Translation!A47 -> Dispozitat për çështjet mjedisore
B30: =Translation!A48 -> Shpenzime të tjera operative
B31: =Translation!A49 -> Shërbimet e transportit
B32: =Translation!A50 -> Shpenzimet e sigurimit
B33: =Translation!A51 -> Taksat koncesionare
B34: =Translation!A52 -> Licencat
B35: =Translation!A53 -> Shpenzime të tjera
B36: =Translation!A54 -> Shpenzimet e brendshme
B37: =Translation!A55 -> Kostoja e qymyrit nga Minierat
B38: =Translation!A56 -> Kostoja e energjisë elektrike dhe shërbimeve të shpërndarjes
B39: =Translation!A73 -> Total | F39: =SUM(F13:F38) -> 0 | G39: =SUM(G13:G38) -> 0 | H39: 0 | I39: 0 | J39: 0 | K39: 0 | L39: 0 | M39: 0 | N39: 0 | O39: 0

Sheet PS3 Capex PES KEK
A6: =Translation!A949 -> Shqyrtimi SHVT 2013-2017
A7: =Translation!A529 -> PS3 - Capex-Tech (KEK FPEE)
B9: =Translation!$A$225 -> Capex | D9: =Translation!$A$530 -> Kodi I llogaris / Projekt Ref. | E9: ='DS6 Capex (DSO b) KEK'!$E$9:$E$10 -> Buxheti i përgjithshëm (€ 000) | F9: ='DS6 Capex (DSO b) KEK'!$F$9:$F$10 -> Total Grant (€ 000) | H9: 2008 | I9: 2009 | J9: 2010 | K9: 2011 | L9: 2012 | M9: 2013 | N9: 2014 | O9: 2015 | P9: 2016 | Q9: 2017
B10: ='DS6 Capex (DSO b) KEK'!$D$9 -> Projekti referencë | H10: ='DS15 P&L DSO KEK'!E10 -> Aktuale (€ '000) | I10: ='DS15 P&L DSO KEK'!F10 -> Aktuale (€ '000) | J10: ='DS15 P&L DSO KEK'!G10 -> Aktuale (€ '000) | K10: ='DS15 P&L DSO KEK'!H10 -> Aktuale (€ '000) | L10: ='DS15 P&L DSO KEK'!I10 -> Vlerësimi (€ '000) | M10: ='DS15 P&L DSO KEK'!J10 -> Parashikimi (€ '000) | N10: ='DS15 P&L DSO KEK'!K10 -> Parashikimi (€ '000) | O10: ='DS15 P&L DSO KEK'!L10 -> Parashikimi (€ '000) | P10: ='DS15 P&L DSO KEK'!M10 -> Parashikimi (€ '000) | Q10: ='DS15 P&L DSO KEK'!N10 -> Parashikimi (€ '000)
B12: =Translation!$A$532 -> Toka dhe Ndërtesat
B13: =Translation!$A$533 -> Automjetet
B14: =Translation!$A$534 -> Instalimet & montimet
B15: =Translation!$A$535 -> Veglat & Instrumentet
B16: =Translation!$A$536 -> Të tjera - të specifikohen
B17: =Translation!$A$537 -> Teknologjia e informacionit (poshtë)
B19: =Translation!$A$539 -> SUPPLY BUSINESS INFORMATION TECHNOLOGY CAPITAL EXPENDITURE ANALYSIS BY PROJECT
B20: =Translation!$A$540 -> Të specifikoni IT projektet
B21: =Translation!$A$540 -> Të specifikoni IT projektet
B22: =Translation!$A$540 -> Të specifikoni IT projektet
B23: =Translation!$A$540 -> Të specifikoni IT projektet
B24: =Translation!$A$540 -> Të specifikoni IT projektet
B25: =Translation!$A$540 -> Të specifikoni IT projektet
B26: =Translation!$A$540 -> Të specifikoni IT projektet
B27: =Translation!$A$540 -> Të specifikoni IT projektet
B28: =Translation!$A$540 -> Të specifikoni IT projektet
B29: =Translation!$A$540 -> Të specifikoni IT projektet
B30: =Translation!$A$540 -> Të specifikoni IT projektet
B31: =Translation!$A$311 -> Shto rreshta shtese mbi dhe kopjo formulen
B32: =Translation!$A$57 -> Shënime: | C32: =Translation!$A$58 -> Kostot historike janë mbi bazën e rrjedhes se parasë - Kostot e parashikuara janë mbi bazë të çmimit konstant për 2012

Sheet TABLE H (hidden)
J1: TABLE H.1
A2: PES DETAIL: SUPPLY BUSINESS CAPITAL EXPENDITURE ANALYSIS
B4: Actual | D4: Actual | E4: Estimate | F4: Forecast
A5: Description | D5: 2011 | E5: 2012 | F5: 2013 | G5: 2014 | H5: 2015 | I5: 2016 | J5: 2017
B6: €000s | C6: €000s | D6: €000s | E6: €000s | F6: €000s | G6: €000s | H6: €000s | I6: €000s | J6: €000s
A7: Land & Buildings
A8: Vehicles
A9: Fixtures & Fittings
A10: Information Technology
A11: Tools & Instruments
A12: Other - specify
A13: Total | F13: =SUM(F7:F12) -> 0 | G13: =SUM(G7:G12) -> 0 | H13: =SUM(H7:H12) -> 0 | I13: =SUM(I7:I12) -> 0 | J13: =SUM(J7:J12) -> 0
A15: SUPPLY BUSINESS INFORMATION TECHNOLOGY CAPITAL EXPENDITURE ANALYSIS BY PROJECT | J15: TABLE H.2
B17: Actual | F17: Forecast
A18: Description | D18: =D5 -> 2011 | E18: 2012 | F18: 2013 | G18: 2014 | H18: 2015 | I18: 2016 | J18: 2017
B19: €000s | C19: €000s | D19: €000s | E19: €000s | F19: €000s | G19: €000s | H19: €000s | I19: €000s | J19: €000s
A21: - specify IT project
A22: - specify IT project
A23: - specify IT project
A24: - specify IT project
A25: - specify IT project
A26: - specify IT project
A28: Total | F28: =SUM(F20:F27) -> 0 | G28: =SUM(G20:G27) -> 0 | H28: =SUM(H20:H27) -> 0 | I28: =SUM(I20:I27) -> 0 | J28: =SUM(J20:J27) -> 0

Sheet Table J - Assets (hidden)
C2: Asset Age Profile
A5: Note that Asset list is to be refined to meet actual asset groups
A6: Units | B6: Comments | C6: Asset Useful Life | D6: INSERT Additonal colums to right | E6: 2007 | F6: 2008 | G6: 2009 | H6: 2010 | I6: 2011 | J6: 2012 | K6: Total Assets | L6: Comment
A7: KOST
A8: 400 kV cable | K8: =SUM(D8:J8) -> 0
A9: 400 kV Tower line SC
A10: 400 kV Tower line DC (route length) | K10: =SUM(D10:J10) -> 0
A11: 400 kV transformers (400/220kV)
A12: 400 kV transformers (400/110 kV) | K12: =SUM(D12:J12) -> 0
A13: 400 kV transformers (earthing)
A14: 400 kV circuit breakers
A15: 400 kV demand metering | K15: =SUM(D15:J15) -> 0
A16: 400 kV switches/Isolators | K16: =SUM(D16:J16) -> 0
A18: 220 kV cable | K18: =SUM(D18:J18) -> 0
A19: 220 kV Tower line SC
A20: 220 kV Tower line DC (route length) | K20: =SUM(D20:J20) -> 0
A21: 220 kV transformers (220/110 kV) | K21: =SUM(D21:J21) -> 0
A22: 220 kV transformers (Earthing)
A23: 220 kV circuit breakers | K23: =SUM(D23:J23) -> 0
A24: 220 kV demand metering | K24: =SUM(D24:J24) -> 0
A25: 220 kV switches/Isolators
K26: =SUM(D26:J26) -> 0
A27: 110 kV cable
A28: 110 kV Wood line | K28: =SUM(D28:J28) -> 0
A29: 110 kV Tower line SC | K29: =SUM(D29:J29) -> 0
A30: 110 kV Tower line DC (route length) | K30: =SUM(D30:J30) -> 0
A31: 110 kV circuit breakers | K31: =SUM(D31:J31) -> 0
A32: 110 kV demand metering | K32: =SUM(D32:J32) -> 0
A33: 110 kV switches/Isolators
A34: 110 kV transformers 110/35 kV) | K34: =SUM(D34:J34) -> 0
A35: 110 kV transformers 110/10 kV)
A36: 35 kV circuit breakers (Transformer)
A37: 10 kV circuit breakers (Transformer)
A39: KEK | K39: =SUM(D39:J39) -> 0
A40: 35 kV cable | K40: =SUM(D40:J40) -> 0
A41: 35 kV wood line
A42: 35 kV other line | K42: =SUM(D42:J42) -> 0
A43: 35 kV transformers (35/10 kV)
A44: 35 kV transformers (35/0.4 kV) | K44: =SUM(D44:J44) -> 0
A45: 35 kV circuit breakers | K45: =SUM(D45:J45) -> 0
A46: 35 kV demand metering | K46: =SUM(D46:J46) -> 0
A47: 35 kV switches/Isolators | K47: =SUM(D47:J47) -> 0
A48: 35 kV ring main units | K48: =SUM(D48:J48) -> 0
K49: 0
A50: 10 kV cable | K50: 0
A51: 10 kV wood pole line | K51: 0
A52: 10 kV transformers (10/0.4kV) GM Indoor | K52: 0
A53: 10 kV transformers (10/0.4kV) GM Outdoor | K53: 0
A54: 10 kV transformers (10/0.4kV) PM | K54: 0
A55: 10 kV demand metering | K55: 0
A56: 10 kV circuit breakers (Primary)
A57: 10 kV circuit breakers (Secondary) | K57: 0
A58: 10 kV switches | K58: 0
A59: 10 kV ring main units
K60: 0
A61: 400 V cable | K61: 0
A62: 400 V line - wood poles (number) | K62: 0
A63: 400 V line - OHL Circuit Length
A64: 400 V demand metering | K64: 0
A65: 400 V Fuse Boards (Substation) | K65: 0
A66: 400 V switches (OH network) | K66: =SUM(D66:J66) -> 0
A67: 400 V services | K67: =SUM(D67:J67) -> 0
A68: 400 V Network Pillars | K68: =SUM(D68:J68) -> 0
A69: 400 V underground connection boxes

Sheet TABLE K - Unit Cost (hidden)
A4: Asset | B4: Units (km or unit) | C4: Unit cost (€) - Replacement | D4: Comments/ Assumptions | F4: Include relevant anciliary cost eg protection and comms
A5: ='Table J - Assets'!A7 -> KOST | F5: The assets are linked to Table J
A6: ='Table J - Assets'!A8 -> 400 kV cable
A7: ='Table J - Assets'!A9 -> 400 kV Tower line SC
A8: ='Table J - Assets'!A10 -> 400 kV Tower line DC (route length)
A9: ='Table J - Assets'!A11 -> 400 kV transformers (400/220kV)
A10: ='Table J - Assets'!A12 -> 400 kV transformers (400/110 kV)
A11: ='Table J - Assets'!A13 -> 400 kV transformers (earthing)
A12: ='Table J - Assets'!A14 -> 400 kV circuit breakers
A13: ='Table J - Assets'!A15 -> 400 kV demand metering
A14: ='Table J - Assets'!A16 -> 400 kV switches/Isolators
A15: ='Table J - Assets'!A17 -> 0
A16: ='Table J - Assets'!A18 -> 220 kV cable
A17: ='Table J - Assets'!A19 -> 220 kV Tower line SC
A18: ='Table J - Assets'!A20 -> 220 kV Tower line DC (route length)
A19: ='Table J - Assets'!A21 -> 220 kV transformers (220/110 kV)
A20: ='Table J - Assets'!A22 -> 220 kV transformers (Earthing)
A21: ='Table J - Assets'!A23 -> 220 kV circuit breakers
A22: ='Table J - Assets'!A24 -> 220 kV demand metering
A23: ='Table J - Assets'!A25 -> 220 kV switches/Isolators
A24: ='Table J - Assets'!A26 -> 0
A25: ='Table J - Assets'!A27 -> 110 kV cable
A26: ='Table J - Assets'!A28 -> 110 kV Wood line
A27: ='Table J - Assets'!A29 -> 110 kV Tower line SC
A28: ='Table J - Assets'!A30 -> 110 kV Tower line DC (route length)
A29: ='Table J - Assets'!A31 -> 110 kV circuit breakers
A30: ='Table J - Assets'!A32 -> 110 kV demand metering
A31: ='Table J - Assets'!A33 -> 110 kV switches/Isolators
A32: ='Table J - Assets'!A34 -> 110 kV transformers 110/35 kV)
A33: ='Table J - Assets'!A35 -> 110 kV transformers 110/10 kV)
A34: ='Table J - Assets'!A36 -> 35 kV circuit breakers (Transformer)
A35: ='Table J - Assets'!A37 -> 10 kV circuit breakers (Transformer)
A36: ='Table J - Assets'!A38 -> 0
A37: ='Table J - Assets'!A39 -> KEK
A38: ='Table J - Assets'!A40 -> 35 kV cable
A39: ='Table J - Assets'!A41 -> 35 kV wood line
A40: ='Table J - Assets'!A42 -> 35 kV other line
A41: ='Table J - Assets'!A43 -> 35 kV transformers (35/10 kV)
A42: ='Table J - Assets'!A44 -> 35 kV transformers (35/0.4 kV)
A43: ='Table J - Assets'!A45 -> 35 kV circuit breakers
A44: ='Table J - Assets'!A46 -> 35 kV demand metering
A45: ='Table J - Assets'!A47 -> 35 kV switches/Isolators
A46: ='Table J - Assets'!A48 -> 35 kV ring main units
A47: ='Table J - Assets'!A49 -> 0
A48: ='Table J - Assets'!A50 -> 10 kV cable
A49: ='Table J - Assets'!A51 -> 10 kV wood pole line
A50: ='Table J - Assets'!A52 -> 10 kV transformers (10/0.4kV) GM Indoor
A51: ='Table J - Assets'!A53 -> 10 kV transformers (10/0.4kV) GM Outdoor
A52: ='Table J - Assets'!A54 -> 10 kV transformers (10/0.4kV) PM
A53: ='Table J - Assets'!A55 -> 10 kV demand metering
A54: ='Table J - Assets'!A56 -> 10 kV circuit breakers (Primary)
A55: ='Table J - Assets'!A57 -> 10 kV circuit breakers (Secondary)
A56: ='Table J - Assets'!A58 -> 10 kV switches
A57: ='Table J - Assets'!A59 -> 10 kV ring main units
A58: ='Table J - Assets'!A60 -> 0
A59: ='Table J - Assets'!A61 -> 400 V cable
A60: ='Table J - Assets'!A62 -> 400 V line - wood poles (number)
A61: ='Table J - Assets'!A64 -> 400 V demand metering
A62: ='Table J - Assets'!A65 -> 400 V Fuse Boards (Substation)
A63: ='Table J - Assets'!A66 -> 400 V switches (OH network)
A64: ='Table J - Assets'!A67 -> 400 V services
A65: ='Table J - Assets'!A68 -> 400 V Network Pillars
A66: ='Table J - Assets'!A69 -> 400 V underground connection boxes
A67: ='Table J - Assets'!A70 -> 0
A68: ='Table J - Assets'!A70 -> 0

Sheet PS4 DRIVER PES KEK
A6: =Translation!A949 -> Shqyrtimi SHVT 2013-2017
A7: =Translation!A542 -> PS4 - Nxitesit (KEK PES)
F9: 2008 | G9: 2009 | H9: 2010 | I9: 2011 | J9: 2012 | K9: 2013 | L9: 2014 | M9: 2015 | N9: 2016 | O9: 2017
B10: =Translation!A543 -> Nxitesi | F10: ='PS1 OPEX PES KEK'!E10 -> Aktual | G10: ='PS1 OPEX PES KEK'!F10 -> Aktual | H10: ='PS1 OPEX PES KEK'!G10 -> Aktual | I10: ='PS1 OPEX PES KEK'!H10 -> Aktual | J10: ='PS1 OPEX PES KEK'!I10 -> Vlerësim | K10: ='PS1 OPEX PES KEK'!J10 -> Parashikim | L10: ='PS1 OPEX PES KEK'!K10 -> Parashikim | M10: ='PS1 OPEX PES KEK'!L10 -> Parashikim | N10: ='PS1 OPEX PES KEK'!M10 -> Parashikim | O10: ='PS1 OPEX PES KEK'!N10 -> Parashikim
B11: =Translation!A544 -> Faturimi dhe leximi (përmes telefonit)
B12: =Translation!A545 -> Leximi (gabim leximi apo meter i gabuar) | D12: =Translation!$A$599 -> Nr
B13: =Translation!A546 -> Pagesat | D13: =Translation!$A$599 -> Nr
B14: =Translation!A547 -> Të tjerët specifikojnë | D14: =Translation!$A$599 -> Nr
B15: =Translation!A548 -> Faturimi dhe leximi (Në qendër të kontaktit)
B16: =Translation!A545 -> Leximi (gabim leximi apo meter i gabuar) | D16: =Translation!$A$599 -> Nr
B17: =Translation!A546 -> Pagesat | D17: =Translation!$A$599 -> Nr
B18: =Translation!A547 -> Të tjerët specifikojnë | D18: =Translation!$A$599 -> Nr
B19: =Translation!A549 -> Telefonatat per defekte (telefon)
B20: =Translation!A550 -> Humbjet e linjave kryesore | D20: =Translation!$A$599 -> Nr
B21: =Translation!A551 -> Siguresat kryesore t e konsumatoreve | D21: =Translation!$A$599 -> Nr
B22: =Translation!A552 -> Pajisjet e konsumatorëve | D22: =Translation!$A$599 -> Nr
B23: =Translation!A553 -> Telefonatat urgjente (dëmtime dhe gabimet) | D23: =Translation!$A$599 -> Nr
B24: =Translation!A554 -> Telefonatat per defekte në Qendrën e Kontaktit
B25: =Translation!A550 -> Humbjet e linjave kryesore | D25: =Translation!$A$599 -> Nr
B26: =Translation!A551 -> Siguresat kryesore t e konsumatoreve | D26: =Translation!$A$599 -> Nr
B27: =Translation!A552 -> Pajisjet e konsumatorëve | D27: =Translation!$A$599 -> Nr
B28: =Translation!A553 -> Telefonatat urgjente (dëmtime dhe gabimet) | D28: =Translation!$A$599 -> Nr
B29: =Translation!A555 -> Kyqje / Shkyçje (Telefoni)
B30: =Translation!A556 -> Kyqjet | D30: =Translation!$A$599 -> Nr
B31: =Translation!A557 -> Shkyçjet | D31: =Translation!$A$599 -> Nr
B32: =Translation!A558 -> Kerkesa per lexim perfundimtar | D32: =Translation!$A$599 -> Nr
B33: =Translation!A559 -> Shërbimet per Ndryshimet | D33: =Translation!$A$599 -> Nr
B34: =Translation!A560 -> Kyqjet / Shkyçja (në Kontakt qendrën)
B35: =Translation!A556 -> Kyqjet | D35: =Translation!$A$599 -> Nr
B36: =Translation!A557 -> Shkyçjet | D36: =Translation!$A$599 -> Nr
B37: =Translation!A558 -> Kerkesa per lexim perfundimtar | D37: =Translation!$A$599 -> Nr
B38: =Translation!A559 -> Shërbimet per Ndryshimet | D38: =Translation!$A$599 -> Nr
B39: =Translation!A561 -> ENERGY (vendore + E importet)
B40: =Translation!A562 -> Blerje nga Kosova A | D40: MWh
B41: =Translation!A563 -> Blerje nga Kosova B | D41: MWh
B42: =Translation!A564 -> Blerjet e tjera vendore | D42: MWh
B43: =Translation!A565 -> Importet | D43: MWh
B44: =Translation!A566 -> [shto kategori] | D44: MWh
B45: =Translation!A567 -> [shto kategori] | D45: MWh
B46: =Translation!A568 -> [shto kategori] | D46: MWh
B47: =Translation!A569 -> Shitjet në OST-në për humbjet | D47: MWh
B48: =Translation!A570 -> Shitjet në OSSH për humbjet | D48: MWh
B49: =Translation!A571 -> Blerjet totale te energjisë | D49: MWh | F49: =SUM(F40:F48) -> 0 | G49: =SUM(G40:G48) -> 0 | H49: 0 | I49: 0 | J49: 0 | K49: 0 | L49: 0 | M49: 0 | N49: 0 | O49: 0
B50: =Translation!A561 -> ENERGY (vendore + E importet)
B51: =Translation!A562 -> Blerje nga Kosova A | D51: €'000
B52: =Translation!A563 -> Blerje nga Kosova B | D52: €'000
B53: =Translation!A564 -> Blerjet e tjera vendore | D53: €'000
B54: =Translation!A565 -> Importet | D54: €'000
B55: =Translation!A566 -> [shto kategori] | D55: €'000
B56: =Translation!A567 -> [shto kategori] | D56: €'000
B57: =Translation!A568 -> [shto kategori] | D57: €'000
B58: =Translation!A569 -> Shitjet në OST-në për humbjet | D58: €'000
B59: =Translation!A570 -> Shitjet në OSSH për humbjet | D59: €'000
B60: =Translation!A571 -> Blerjet totale te energjisë | D60: €'000
B61: =Translation!A572 -> Kapaciteti (prodhimi + importet)
B62: =Translation!A573 -> Blerje nga Kosova A | D62: MW
B63: =Translation!A574 -> Blerje nga Kosova B | D63: MW
B64: =Translation!A575 -> Blerjet e tjera vendore | D64: MW
B65: =Translation!A576 -> Importet | D65: MW
B66: =Translation!A577 -> [shto kategori] | D66: MW
B67: =Translation!A578 -> [shto kategori] | D67: MW
B68: =Translation!A579 -> [shto kategori] | D68: MW
B69: =Translation!A580 -> [shto kategori] | D69: MW
B70: =Translation!A581 -> [shto kategori] | D70: MW
B71: =Translation!A582 -> Totali-blerjet e kapaciteteve | D71: MW | F71: =SUM(F62:F70) -> 0 | G71: =SUM(G62:G70) -> 0 | H71: 0 | I71: 0 | J71: 0 | K71: 0 | L71: 0 | M71: 0 | N71: 0 | O71: 0
B72: =Translation!A572 -> Kapaciteti (prodhimi + importet)
B73: =Translation!A573 -> Blerje nga Kosova A | D73: €'000
B74: =Translation!A574 -> Blerje nga Kosova B | D74: €'000
B75: =Translation!A575 -> Blerjet e tjera vendore | D75: €'000
B76: =Translation!A576 -> Importet | D76: €'000
B77: =Translation!A577 -> [shto kategori] | D77: €'000
B78: =Translation!A578 -> [shto kategori] | D78: €'000
B79: =Translation!A579 -> [shto kategori] | D79: €'000
B80: =Translation!A580 -> [shto kategori] | D80: €'000
B81: =Translation!A581 -> [shto kategori] | D81: €'000
B82: =Translation!A582 -> Totali-blerjet e kapaciteteve | D82: €'000
B83: =Translation!A583 -> TË ARDHURAT NGA EKSPORTi
B84: =Translation!A584 -> Te Hyrat e lejuara nga eksporti | D84: €'000
B85: =Translation!A585 -> Faktori ndares I eksportit | D85: %
B86: =Translation!A586 -> Të hyrat e Eksportit | D86: €'000
B87: =Translation!A587 -> Shpenzimet e deballancit
B88: =Translation!A588 -> Kostot e lejuara te debalances | D88: €'000
B89: =Translation!A589 -> Faktori ndarares I debalances | D89: %
B90: =Translation!A590 -> Kostot e debalances | D90: €'000
B91: =Translation!A591 -> Total parashikimet
B92: =Translation!A592 -> Energji | D92: MWh
B93: =Translation!A593 -> Kapacitet | D93: MW
B94: =Translation!A594 -> Blerjet totale | D94: €'000
B95: =Translation!A595 -> Totalet Aktuale
B96: =Translation!A592 -> Energji | D96: MWh
B97: =Translation!A593 -> Kapacitet | D97: MW
B98: =Translation!A594 -> Blerjet totale | D98: €'000
B99: =Translation!A596 -> "S" Premium
B100: =Translation!A597 -> "S" Premium
B102: =Translation!A952 -> BILANCI ENERGJISË
B103: =Translation!A953 -> e Gjeneruar në familje
B104: =Translation!A954 -> KEK Gjenerimi
B105: =Translation!A955 -> Kosova A | D105: GWh
B106: =Translation!A956 -> Kosova B | D106: GWh
B107: =Translation!A957 -> Nën-totali | D107: GWh | F107: =SUM(F105:F106) -> 0 | G107: 0 | H107: 0 | I107: 0 | J107: 0 | K107: 0 | L107: 0 | M107: 0 | N107: 0 | O107: 0
B109: =Translation!A959 -> Brez tjetër vendor
B110: =Translation!A960 -> HC Ujmani | D110: GWh
B112: =Translation!A962 -> Total transmetimit-lidhur brez | D112: GWh | F112: =F107+F110 -> 0 | G112: 0 | H112: 0 | I112: 0 | J112: 0 | K112: 0 | L112: 0 | M112: 0 | N112: 0 | O112: 0
B114: =Translation!A964 -> Shpërndarja-lidhur (ngulitur) gjenerata | D114: GWh
B116: =Translation!A966 -> Total Kosova brez | D116: GWh | F116: =F112+F114 -> 0 | G116: 0 | H116: 0 | I116: 0 | J116: 0 | K116: 0 | L116: 0 | M116: 0 | N116: 0 | O116: 0
B118: =Translation!A968 -> mungesë | D118: GWh
B120: =Translation!A970 -> Importet dhe eksportet
B121: =Translation!A971 -> Importet | D121: GWh
B123: =Translation!A973 -> Eksportet | D123: GWh
B125: =Translation!A975 -> Të energjisë KEK Furnizimi blerjet
B126: =Translation!A976 -> Blerjet Totali i energjisë | D126: GWh | F126: =F116+F121 -> 0 | G126: 0 | H126: 0 | I126: 0 | J126: 0 | K126: 0 | L126: 0 | M126: 0 | N126: 0 | O126: 0
B127: =Translation!A977 -> Eksportet sipas Furnizimit të KEK-ut | D127: GWh | F127: =F123 -> 0 | G127: 0 | H127: 0 | I127: 0 | J127: 0 | K127: 0 | L127: 0 | M127: 0 | N127: 0 | O127: 0
B128: =Translation!A978 -> Blerjet për të plotësuar kërkesën e brendshme + E eksportet | D128: GWh | F128: =SUM(F126:F127) -> 0 | G128: 0 | H128: 0 | I128: 0 | J128: 0 | K128: 0 | L128: 0 | M128: 0 | N128: 0 | O128: 0
B130: =Translation!A980 -> Transmisionit të nivelit blerjet për të përmbushur kërkesën e brendshme | D130: GWh | F130: =F128-F114 -> 0 | G130: 0 | H130: 0 | I130: 0 | J130: 0 | K130: 0 | L130: 0 | M130: 0 | N130: 0 | O130: 0
B132: =Translation!A982 -> humbjet në Transmisionit
B133: =Translation!A983 -> hyrja e transmetimit
B134: =Translation!A984 -> Total transmetimit-lidhur brez | D134: GWh | F134: =F112 -> 0 | G134: 0 | H134: 0 | I134: 0 | J134: 0 | K134: 0 | L134: 0 | M134: 0 | N134: 0 | O134: 0
B135: =Translation!A985 -> Importet | D135: GWh | F135: =F136-F134 -> 0 | G135: 0 | H135: 0 | I135: 0 | J135: 0 | K135: 0 | L135: 0 | M135: 0 | N135: 0 | O135: 0
B136: =Translation!A986 -> Nën-totali | D136: GWh | F136: =F145-F143+F141 -> 0 | G136: 0 | H136: 0 | I136: 0 | J136: 0 | K136: 0 | L136: 0 | M136: 0 | N136: 0 | O136: 0
B139: =Translation!A989 -> humbjet në Transmisionit | D139: %
B140: =Translation!A990 -> Humbja Transmisionit Faktori (TLF) | D140: pu | F140: =1/(1-F139) -> 1 | G140: 1 | H140: 1 | I140: 1 | J140: 1 | K140: 1 | L140: 1 | M140: 1 | N140: 1 | O140: 1
B141: =Translation!A991 -> humbjet në Transmisionit | D141: GWh
B142: =Translation!A992 -> 0
B143: =Translation!A993 -> Eksportet | D143: GWh | F143: =F127 -> 0 | G143: 0 | H143: 0 | I143: 0 | J143: 0 | K143: 0 | L143: 0 | M143: 0 | N143: 0 | O143: 0
B144: =Translation!A994 -> 0
B145: =Translation!A995 -> Transmetimit matur kërkesa daljes (KL) | D145: GWh | F145: =F163+F151+F159 -> 0 | G145: 0 | H145: 0 | I145: 0 | J145: 0 | K145: 0 | L145: 0 | M145: 0 | N145: 0 | O145: 0
B146: =Translation!A996 -> Bilanci (atribuohet rrjedhat e tranzitit) | D146: GWh
B147: =Translation!A997 -> Transmisionit-lidhur kërkesa
B148: =Translation!A998 -> Shitjet në transmetimit dhe lidhjet me klientët
B149: =Translation!A999 -> 22okV (Feronikeli) | D149: GWh
B150: =Translation!A1000 -> 110kV (përfshirë Trepçës) | D150: GWh
B151: =Translation!A1001 -> total | D151: GWh | F151: =SUM(F149:F150) -> 0 | G151: 0 | H151: 0 | I151: 0 | J151: 0 | K151: 0 | L151: 0 | M151: 0 | N151: 0 | O151: 0
B153: =Translation!A1003 -> Konsumi i KEK-ut
B154: =Translation!A1004 -> KEK konsumi miniera | D154: GWh
B155: =Translation!A1005 -> Kosova A Konsumi | D155: GWh | F155: 0 | G155: 0 | H155: 0 | I155: 0 | J155: 0 | K155: 0 | L155: 0 | M155: 0 | N155: 0 | O155: 0
B156: =Translation!A1006 -> Kosova Konsumi B | D156: GWh
B157: =Translation!A1007 -> KEK konsumi OSSH | D157: GWh | F157: 0 | G157: 0 | H157: 0 | I157: 0 | J157: 0 | K157: 0 | L157: 0 | M157: 0 | N157: 0 | O157: 0
B158: =Translation!A1008 -> Trepça | D158: GWh
B159: =Translation!A1009 -> Nën-totali | D159: GWh | F159: =SUM(F154:F158) -> 0 | G159: 0 | H159: 0 | I159: 0 | J159: 0 | K159: 0 | L159: 0 | M159: 0 | N159: 0 | O159: 0
B161: =Translation!A1011 -> Shpërndarja-lidhur kërkesa
B162: =Translation!A1012 -> hyrja shpërndarjen
B163: =Translation!A1013 -> nga transmetimit | D163: GWh | F163: =F165-F164 -> 0 | G163: 0 | H163: 0 | I163: 0 | J163: 0 | K163: 0 | L163: 0 | M163: 0 | N163: 0 | O163: 0
B164: =Translation!A1014 -> brez Embedded | D164: GWh | F164: =F114 -> 0 | G164: 0 | H164: 0 | I164: 0 | J164: 0 | K164: 0 | L164: 0 | M164: 0 | N164: 0 | O164: 0
B165: =Translation!A1015 -> total | D165: GWh
B167: =Translation!A1017 -> Humbjet në shpërndarje dhe energji unbilled
B168: =Translation!A1018 -> Humbjet teknike dhe komerciale | D168: % | F168: =F169/F163 -> 
B169: =Translation!A1019 -> 0 | D169: GWh
B170: =Translation!A1020 -> furnizimet Unbilled | D170: % | F170: =F171/F165 -> 
B171: =Translation!A1021 -> 0 | D171: GWh
B172: =Translation!A1022 -> total | D172: % | F172: =F168+F170 -> 
B173: =Translation!A1023 -> 0 | D173: GWh | F173: =1/(1-F172)*G$79-G$79 -> 
B174: =Translation!A1024 -> 0
B175: =Translation!A1025 -> Shpërndarja e-lidhura shitjes | D175: GWh
B177: =Translation!A1027 -> Shpërndarja-lidhur kërkesa
B178: =Translation!A1028 -> Shitjet në transmetimit dhe lidhjet me klientët | D178: GWh | F178: =F151 -> 0 | G178: 0 | H178: 0 | I178: 0 | J178: 0 | K178: 0 | L178: 0 | M178: 0 | N178: 0 | O178: 0
B179: =Translation!A1029 -> Shitjet në shpërndarjen dhe lidhjet me klientët | D179: GWh | F179: =F175 -> 0 | G179: 0 | H179: 0 | I179: 0 | J179: 0 | K179: 0 | L179: 0 | M179: 0 | N179: 0 | O179: 0
B180: =Translation!A1030 -> Shitjet totale publike Furnizuesi | D180: GWh | F180: =SUM(F178:F179) -> 0 | G180: 0 | H180: 0 | I180: 0 | J180: 0 | K180: 0 | L180: 0 | M180: 0 | N180: 0 | O180: 0
B181: =Translation!A1031 -> FN përfshira si klient rregulluar nga 2011
B182: =Translation!A1032 -> Kërkesa maksimale e transmetimit
B183: =Translation!A1033 -> 400kV/220kV | D183: MW
B184: =Translation!A1034 -> 110kV | D184: MW

Sheet PS5 P&L PES KEK
A6: =Translation!A949 -> Shqyrtimi SHVT 2013-2017
A7: =Translation!A601 -> PS5 - Fitimi dhe Humbja (KEK) FPEE
D9: ='PS2a Other PES KEK'!D10 -> Kodi I Llogarive | F9: 2008 | G9: 2009 | H9: 2010 | I9: 2011 | J9: 2012 | K9: 2013 | L9: 2014 | M9: 2015 | N9: 2016 | O9: 2017
B10: =Translation!A602 -> P & L FPEE | F10: ='PS3 Capex PES KEK'!H10 -> Aktuale (€ '000) | G10: ='PS3 Capex PES KEK'!I10 -> Aktuale (€ '000) | H10: ='PS3 Capex PES KEK'!J10 -> Aktuale (€ '000) | I10: ='PS3 Capex PES KEK'!K10 -> Aktuale (€ '000) | J10: ='PS3 Capex PES KEK'!L10 -> Vlerësimi (€ '000) | K10: ='PS3 Capex PES KEK'!M10 -> Parashikimi (€ '000) | L10: ='PS3 Capex PES KEK'!N10 -> Parashikimi (€ '000) | M10: ='PS3 Capex PES KEK'!O10 -> Parashikimi (€ '000) | N10: ='PS3 Capex PES KEK'!P10 -> Parashikimi (€ '000) | O10: ='PS3 Capex PES KEK'!Q10 -> Parashikimi (€ '000)
B11: =Translation!A603 -> Të ardhurat:
B12: =Translation!A604 -> Të ardhurat e eksportit të energjisë | F12: ='HQ5 Rev (Group) KEK'!F54 -> 0 | G12: ='HQ5 Rev (Group) KEK'!G54 -> 0 | H12: ='HQ5 Rev (Group) KEK'!H54 -> 0 | I12: ='HQ5 Rev (Group) KEK'!I54 -> 0 | J12: ='HQ5 Rev (Group) KEK'!J54 -> 0 | K12: ='HQ5 Rev (Group) KEK'!K54 -> 0 | L12: ='HQ5 Rev (Group) KEK'!L54 -> 0 | M12: ='HQ5 Rev (Group) KEK'!M54 -> 0 | N12: ='HQ5 Rev (Group) KEK'!N54 -> 0 | O12: ='HQ5 Rev (Group) KEK'!O54 -> 0
B13: =Translation!A605 -> te ardhurat nga shitjet e energjisë elektrike | F13: =SUM('HQ5 Rev (Group) KEK'!F70:F71) -> 0 | G13: =SUM('HQ5 Rev (Group) KEK'!G70:G71) -> 0 | H13: =SUM('HQ5 Rev (Group) KEK'!H70:H71) -> 0 | I13: =SUM('HQ5 Rev (Group) KEK'!I70:I71) -> 0 | J13: =SUM('HQ5 Rev (Group) KEK'!J70:J71) -> 0 | K13: =SUM('HQ5 Rev (Group) KEK'!K70:K71) -> 0 | L13: =SUM('HQ5 Rev (Group) KEK'!L70:L71) -> 0 | M13: =SUM('HQ5 Rev (Group) KEK'!M70:M71) -> 0 | N13: =SUM('HQ5 Rev (Group) KEK'!N70:N71) -> 0 | O13: =SUM('HQ5 Rev (Group) KEK'!O70:O71) -> 0
B14: =Translation!A606 -> Të ardhura të tjera të rregulluara - specifikoni | F14: ='HQ5 Rev (Group) KEK'!F85-'HQ5 Rev (Group) KEK'!F70-'HQ5 Rev (Group) KEK'!F71-'HQ5 Rev (Group) KEK'!F72 -> 0 | G14: ='HQ5 Rev (Group) KEK'!G85-'HQ5 Rev (Group) KEK'!G70-'HQ5 Rev (Group) KEK'!G71-'HQ5 Rev (Group) KEK'!G72 -> 0 | H14: ='HQ5 Rev (Group) KEK'!H85-'HQ5 Rev (Group) KEK'!H70-'HQ5 Rev (Group) KEK'!H71-'HQ5 Rev (Group) KEK'!H72 -> 0 | I14: ='HQ5 Rev (Group) KEK'!I85-'HQ5 Rev (Group) KEK'!I70-'HQ5 Rev (Group) KEK'!I71-'HQ5 Rev (Group) KEK'!I72 -> 0 | J14: ='HQ5 Rev (Group) KEK'!J85-'HQ5 Rev (Group) KEK'!J70-'HQ5 Rev (Group) KEK'!J71-'HQ5 Rev (Group) KEK'!J72 -> 0 | K14: ='HQ5 Rev (Group) KEK'!K85-'HQ5 Rev (Group) KEK'!K70-'HQ5 Rev (Group) KEK'!K71-'HQ5 Rev (Group) KEK'!K72 -> 0 | L14: ='HQ5 Rev (Group) KEK'!L85-'HQ5 Rev (Group) KEK'!L70-'HQ5 Rev (Group) KEK'!L71-'HQ5 Rev (Group) KEK'!L72 -> 0 | M14: ='HQ5 Rev (Group) KEK'!M85-'HQ5 Rev (Group) KEK'!M70-'HQ5 Rev (Group) KEK'!M71-'HQ5 Rev (Group) KEK'!M72 -> 0 | N14: ='HQ5 Rev (Group) KEK'!N85-'HQ5 Rev (Group) KEK'!N70-'HQ5 Rev (Group) KEK'!N71-'HQ5 Rev (Group) KEK'!N72 -> 0 | O14: ='HQ5 Rev (Group) KEK'!O85-'HQ5 Rev (Group) KEK'!O70-'HQ5 Rev (Group) KEK'!O71-'HQ5 Rev (Group) KEK'!O72 -> 0
B15: =Translation!A607 -> Qarkullimi | F15: =SUM(F12:F14) -> 0 | G15: =SUM(G12:G14) -> 0 | H15: 0 | I15: 0 | J15: 0 | K15: 0 | L15: 0 | M15: 0 | N15: 0 | O15: 0
B16: =Translation!A619 -> Shpenzimet operative:
B17: =Translation!A630 -> Shpenzimet totale operative | F17: ='PS2a Other PES KEK'!F39 -> 0 | G17: ='PS2a Other PES KEK'!G39 -> 0 | H17: ='PS2a Other PES KEK'!H39 -> 0 | I17: ='PS2a Other PES KEK'!I39 -> 0 | J17: ='PS2a Other PES KEK'!J39 -> 0 | K17: ='PS2a Other PES KEK'!K39 -> 0 | L17: ='PS2a Other PES KEK'!L39 -> 0 | M17: ='PS2a Other PES KEK'!M39 -> 0 | N17: ='PS2a Other PES KEK'!N39 -> 0 | O17: ='PS2a Other PES KEK'!O39 -> 0
B18: =Translation!A631 -> Fitimi Operative / (humbja) | F18: =SUM(F15-F17) -> 0 | G18: =SUM(G15-G17) -> 0 | H18: 0 | I18: 0 | J18: 0 | K18: 0 | L18: 0 | M18: 0 | N18: 0 | O18: 0

Sheet PT1 OPEX TRADE KEK
A6: =Translation!A949 -> Shqyrtimi SHVT 2013-2017
A7: =Translation!A633 -> PT1 - OPEX-TREGTI KEK FPEE
C9: =Translation!$A$467 -> % e alokimit te CAPEX | E9: 2008 | F9: 2009 | G9: 2010 | H9: 2011 | I9: 2012 | J9: 2013 | K9: 2014 | L9: 2015 | M9: 2016 | N9: 2017
B10: =Translation!$A$483 -> Numrat e stafit | E10: ='DS 12 DRIVER (DSO b) KEK'!$G$10 -> Aktual | F10: ='DS 12 DRIVER (DSO b) KEK'!$H$10 -> Aktual | G10: ='DS 12 DRIVER (DSO b) KEK'!$I$10 -> Aktual | H10: ='DS 12 DRIVER (DSO b) KEK'!$J$10 -> Aktual | I10: ='DS 12 DRIVER (DSO b) KEK'!$K$10 -> Vlerësim | J10: ='DS 12 DRIVER (DSO b) KEK'!$L$10 -> Parashikim | K10: ='DS 12 DRIVER (DSO b) KEK'!$M$10 -> Parashikim | L10: ='DS 12 DRIVER (DSO b) KEK'!$N$10 -> Parashikim | M10: ='DS 12 DRIVER (DSO b) KEK'!$O$10 -> Parashikim | N10: ='DS 12 DRIVER (DSO b) KEK'!$P$10 -> Parashikim
B12: =Translation!A471 -> Shpalljet & Marketingu
B13: =Translation!A472 -> Të dhënat e konsumatorëve dhe faturimit
B14: =Translation!A473 -> Mbledhja e të ardhurave
B15: =Translation!A474 -> Qendra kontaktuse
B16: =Translation!A475 -> Qendra e thirrjeve
B17: =Translation!A487 -> Administrimi/Mbeshtetje e Zyres
B18: =Translation!A488 -> Menaxhimi
B19: =Translation!$A$489 -> Të tjera - Ju lutem specifikoni
B20: =Translation!$A$489 -> Të tjera - Ju lutem specifikoni
B21: =Translation!$A$489 -> Të tjera - Ju lutem specifikoni
B22: ='PS1 OPEX PES KEK'!B20 -> Të tjera - Ju lutem specifikoni
B23: ='PS1 OPEX PES KEK'!B21 -> Të tjera - Ju lutem specifikoni

Sheet PT1a Other (PT) KEK
A6: =Translation!A949 -> Shqyrtimi SHVT 2013-2017
A7: =Translation!A635 -> PT1a - Shpenzimet-TJERA (KEK PT)
B9: ='PS2a Other PES KEK'!B9 -> OPEX | F9: 2008 | G9: 2009 | H9: 2010 | I9: 2011 | J9: 2012 | K9: 2013 | L9: 2014 | M9: 2015 | N9: 2016 | O9: 2017
B10: ='PS2a Other PES KEK'!B10 -> OPEX tjera | D10: ='PS2a Other PES KEK'!D10 -> Kodi I Llogarive | F10: ='PS2a Other PES KEK'!F10 -> Aktuale (€ '000) | G10: ='PS2a Other PES KEK'!G10 -> Aktuale (€ '000) | H10: ='PS2a Other PES KEK'!H10 -> Aktuale (€ '000) | I10: ='PS2a Other PES KEK'!I10 -> Aktuale (€ '000) | J10: ='PS2a Other PES KEK'!J10 -> Vlerësimi (€ '000) | K10: ='PS2a Other PES KEK'!K10 -> Parashikimi (€ '000) | L10: ='PS2a Other PES KEK'!L10 -> Parashikimi (€ '000) | M10: ='PS2a Other PES KEK'!M10 -> Parashikimi (€ '000) | N10: ='PS2a Other PES KEK'!N10 -> Parashikimi (€ '000) | O10: ='PS2a Other PES KEK'!O10 -> Parashikimi (€ '000)
B12: =Translation!A30 -> Shpenzimet e personelit
B13: =Translation!A31 -> Pagat (neto)
B14: =Translation!A32 -> Kontributi pensional dhe taksat
B15: =Translation!A33 -> Tjera
B16: =Translation!A34 -> Elektrike dhe të tjera
B17: =Translation!A35 -> Blerjet e Energjisë Elektrike
B18: =Translation!A36 -> Shkëmbimi i energjisë elektrike
B19: =Translation!A37 -> Karburante
B20: =Translation!A38 -> Gaz dhe ujë
B21: =Translation!A39 -> Transmetimi i energjisë elektrike
B22: =Translation!A40 -> Mirëmbajtje
B23: =Translation!A41 -> Shërbimet Riparuese
B24: =Translation!A42 -> Shërbime të Mirëmbajtjes
B25: =Translation!A43 -> Materiale dhe Furnizime
B26: =Translation!A44 -> Zhvlerësimi dhe amortizimi
B27: =Translation!A45 -> Sigurimi për shlyerjen e inventarit
B28: =Translation!A46 -> Humbja e Zhvlerësimit të të arkëtueshmeve
B29: =Translation!A47 -> Dispozitat për çështjet mjedisore
B30: =Translation!A48 -> Shpenzime të tjera operative
B31: =Translation!A49 -> Shërbimet e transportit
B32: =Translation!A50 -> Shpenzimet e sigurimit
B33: =Translation!A51 -> Taksat koncesionare
B34: =Translation!A52 -> Licencat
B35: =Translation!A53 -> Shpenzime të tjera
B36: =Translation!A54 -> Shpenzimet e brendshme
B37: =Translation!A55 -> Kostoja e qymyrit nga Minierat
B38: =Translation!A56 -> Kostoja e energjisë elektrike dhe shërbimeve të shpërndarjes
B39: =Translation!A73 -> Total | F39: =SUM(F13:F38) -> 0 | G39: =SUM(G13:G38) -> 0 | H39: 0 | I39: 0 | J39: 0 | K39: 0 | L39: 0 | M39: 0 | N39: 0 | O39: 0
B40: ='PS2a Other PES KEK'!B25 -> Materiale dhe Furnizime
B41: =Translation!$A$225 -> Capex | D41: ='DS6 Capex (DSO b) KEK'!$E$9 -> Buxheti i përgjithshëm (€ 000) | E41: ='DS6 Capex (DSO b) KEK'!$F$9 -> Total Grant (€ 000) | F41: 2008 | G41: 2009 | H41: 2010 | I41: 2011 | J41: 2012 | K41: 2013 | L41: 2014 | M41: 2015 | N41: 2016 | O41: 2017
B42: ='DS6 Capex (DSO b) KEK'!$D$9 -> Projekti referencë | F42: ='PS2a Other PES KEK'!$F$10 -> Aktuale (€ '000) | G42: ='PS2a Other PES KEK'!$G$10 -> Aktuale (€ '000) | H42: ='PS2a Other PES KEK'!$H$10 -> Aktuale (€ '000) | I42: ='PS2a Other PES KEK'!$I$10 -> Aktuale (€ '000) | J42: ='PS2a Other PES KEK'!$J$10 -> Vlerësimi (€ '000) | K42: ='PS2a Other PES KEK'!$K$10 -> Parashikimi (€ '000) | L42: ='PS2a Other PES KEK'!$L$10 -> Parashikimi (€ '000) | M42: ='PS2a Other PES KEK'!$M$10 -> Parashikimi (€ '000) | N42: ='PS2a Other PES KEK'!$N$10 -> Parashikimi (€ '000) | O42: ='PS2a Other PES KEK'!$O$10 -> Parashikimi (€ '000)
B44: =Translation!$A$532 -> Toka dhe Ndërtesat
B45: =Translation!$A$533 -> Automjetet
B46: =Translation!$A$534 -> Instalimet & montimet
B47: =Translation!$A$535 -> Veglat & Instrumentet
B48: =Translation!$A$536 -> Të tjera - të specifikohen
B49: =Translation!$A$537 -> Teknologjia e informacionit (poshtë)
B51: =Translation!$A$539 -> SUPPLY BUSINESS INFORMATION TECHNOLOGY CAPITAL EXPENDITURE ANALYSIS BY PROJECT
B52: =Translation!$A$540 -> Të specifikoni IT projektet
B53: =Translation!$A$540 -> Të specifikoni IT projektet
B54: =Translation!$A$540 -> Të specifikoni IT projektet
B55: =Translation!$A$540 -> Të specifikoni IT projektet
B56: =Translation!$A$540 -> Të specifikoni IT projektet
B57: =Translation!$A$540 -> Të specifikoni IT projektet
B58: =Translation!$A$540 -> Të specifikoni IT projektet
B59: =Translation!$A$540 -> Të specifikoni IT projektet
B60: =Translation!$A$540 -> Të specifikoni IT projektet
B61: =Translation!$A$540 -> Të specifikoni IT projektet
B62: =Translation!$A$540 -> Të specifikoni IT projektet
B63: =Translation!$A$311 -> Shto rreshta shtese mbi dhe kopjo formulen
B64: =Translation!$A$57 -> Shënime: | C64: =Translation!$A$58 -> Kostot historike janë mbi bazën e rrjedhes se parasë - Kostot e parashikuara janë mbi bazë të çmimit konstant për 2012

Sheet PT2 P&L TRADE KEK
A6: =Translation!A949 -> Shqyrtimi SHVT 2013-2017
A7: =Translation!A637 -> Fitimi dhe Humbja PT2 (KEK) TREGTI FURNIZIM
E9: 2008 | F9: 2009 | G9: 2010 | H9: 2011 | I9: 2012 | J9: 2013 | K9: 2014 | L9: 2015 | M9: 2016 | N9: 2017
B10: =Translation!A453 -> P & L OSSH | E10: ='DS1 OPEX (DSO a) KEK'!F10 -> Aktuale (€ '000) | F10: ='DS1 OPEX (DSO a) KEK'!G10 -> Aktuale (€ '000) | G10: ='DS1 OPEX (DSO a) KEK'!H10 -> Aktuale (€ '000) | H10: ='DS1 OPEX (DSO a) KEK'!I10 -> Aktuale (€ '000) | I10: ='DS1 OPEX (DSO a) KEK'!J10 -> Vlerësimi (€ '000) | J10: ='DS1 OPEX (DSO a) KEK'!K10 -> Parashikimi (€ '000) | K10: ='DS1 OPEX (DSO a) KEK'!L10 -> Parashikimi (€ '000) | L10: ='DS1 OPEX (DSO a) KEK'!M10 -> Parashikimi (€ '000) | M10: ='DS1 OPEX (DSO a) KEK'!N10 -> Parashikimi (€ '000) | N10: ='DS1 OPEX (DSO a) KEK'!O10 -> Parashikimi (€ '000)
B11: =Translation!A454 -> Të ardhurat me:
B12: =B11 -> Të ardhurat me: | E12: ='HQ5 Rev (Group) KEK'!F103 -> 0 | F12: ='HQ5 Rev (Group) KEK'!G103 -> 0 | G12: ='HQ5 Rev (Group) KEK'!H103 -> 0 | H12: ='HQ5 Rev (Group) KEK'!I103 -> 0 | I12: ='HQ5 Rev (Group) KEK'!J103 -> 0 | J12: ='HQ5 Rev (Group) KEK'!K103 -> 0 | K12: ='HQ5 Rev (Group) KEK'!L103 -> 0 | L12: ='HQ5 Rev (Group) KEK'!M103 -> 0 | M12: ='HQ5 Rev (Group) KEK'!N103 -> 0 | N12: ='HQ5 Rev (Group) KEK'!O103 -> 0
B13: =Translation!A457 -> Qarkullimi | E13: =SUM(E12:E12) -> 0 | F13: 0 | G13: 0 | H13: 0 | I13: 0 | J13: 0 | K13: 0 | L13: 0 | M13: 0 | N13: 0
B14: =Translation!A461 -> Shpenzimet operative:
B15: =Translation!A462 -> Shpenzimet totale operative | E15: ='PT1a Other (PT) KEK'!F39 -> 0 | F15: ='PT1a Other (PT) KEK'!G39 -> 0 | G15: ='PT1a Other (PT) KEK'!H39 -> 0 | H15: ='PT1a Other (PT) KEK'!I39 -> 0 | I15: ='PT1a Other (PT) KEK'!J39 -> 0 | J15: ='PT1a Other (PT) KEK'!K39 -> 0 | K15: ='PT1a Other (PT) KEK'!L39 -> 0 | L15: ='PT1a Other (PT) KEK'!M39 -> 0 | M15: ='PT1a Other (PT) KEK'!N39 -> 0 | N15: ='PT1a Other (PT) KEK'!O39 -> 0
B16: =Translation!A463 -> Fitimi Operative / (humbja) | E16: =SUM(E13-E15) -> 0 | F16: =SUM(F13-F15) -> 0 | G16: 0 | H16: 0 | I16: 0 | J16: 0 | K16: 0 | L16: 0 | M16: 0 | N16: 0

Sheet MN1 OPEX (MIN a) KEK
A6: =Translation!A949 -> Shqyrtimi SHVT 2013-2017
A7: =Translation!A643 -> MN1 OPEX (MIN a) KEK
B8: =Translation!A642 -> Shpenzimet e mirëmbajtjes | F8: 2008 | L8: =F8+1 -> 2009 | R8: =L8+1 -> 2010 | X8: =R8+1 -> 2011 | AD8: =X8+1 -> 2012 | AJ8: =AD8+1 -> 2013 | AP8: =AJ8+1 -> 2014 | AV8: =AP8+1 -> 2015 | BB8: =AV8+1 -> 2016 | BH8: =BB8+1 -> 2017
F9: ='PT2 P&L TRADE KEK'!$F$10 -> Aktuale (€ '000) | L9: ='PT2 P&L TRADE KEK'!$F$10 -> Aktuale (€ '000) | R9: ='PT2 P&L TRADE KEK'!$F$10 -> Aktuale (€ '000) | X9: ='PT2 P&L TRADE KEK'!$F$10 -> Aktuale (€ '000) | AD9: ='PT2 P&L TRADE KEK'!J10 -> Parashikimi (€ '000) | AJ9: ='PT2 P&L TRADE KEK'!$K$10 -> Parashikimi (€ '000) | AP9: ='PT2 P&L TRADE KEK'!$K$10 -> Parashikimi (€ '000) | AV9: ='PT2 P&L TRADE KEK'!$K$10 -> Parashikimi (€ '000) | BB9: ='PT2 P&L TRADE KEK'!$K$10 -> Parashikimi (€ '000) | BH9: ='PT2 P&L TRADE KEK'!$K$10 -> Parashikimi (€ '000)
D10: =Translation!A653 -> Kodi I llogarisë | F10: =Translation!$A$654 -> Kostoja e materialit | G10: =Translation!$A$655 -> Karburanti | H10: =Translation!$A$656 -> Shpenzimet elektrike | I10: =Translation!$A$657 -> Shpenzimet pjesëve rezervë | J10: =Translation!$A$658 -> Kostoja e shërbimeve | K10: =Translation!$A$659 -> Shpenzimet në total | L10: =Translation!$A$654 -> Kostoja e materialit | M10: =Translation!$A$655 -> Karburanti | N10: =Translation!$A$656 -> Shpenzimet elektrike | O10: =Translation!$A$657 -> Shpenzimet pjesëve rezervë | P10: =Translation!$A$658 -> Kostoja e shërbimeve | Q10: =Translation!$A$659 -> Shpenzimet në total | R10: =Translation!$A$654 -> Kostoja e materialit | S10: =Translation!$A$655 -> Karburanti | T10: =Translation!$A$656 -> Shpenzimet elektrike | U10: =Translation!$A$657 -> Shpenzimet pjesëve rezervë | V10: =Translation!$A$658 -> Kostoja e shërbimeve | W10: =Translation!$A$659 -> Shpenzimet në total | X10: =Translation!$A$654 -> Kostoja e materialit | Y10: =Translation!$A$655 -> Karburanti | Z10: =Translation!$A$656 -> Shpenzimet elektrike | AA10: =Translation!$A$657 -> Shpenzimet pjesëve rezervë | AB10: =Translation!$A$658 -> Kostoja e shërbimeve | AC10: =Translation!$A$659 -> Shpenzimet në total | AD10: =Translation!$A$654 -> Kostoja e materialit | AE10: =Translation!$A$655 -> Karburanti | AF10: =Translation!$A$656 -> Shpenzimet elektrike | AG10: =Translation!$A$657 -> Shpenzimet pjesëve rezervë | AH10: =Translation!$A$658 -> Kostoja e shërbimeve | AI10: =Translation!$A$659 -> Shpenzimet në total | AJ10: =Translation!$A$654 -> Kostoja e materialit | AK10: =Translation!$A$655 -> Karburanti | AL10: =Translation!$A$656 -> Shpenzimet elektrike | AM10: =Translation!$A$657 -> Shpenzimet pjesëve rezervë | AN10: =Translation!$A$658 -> Kostoja e shërbimeve | AO10: =Translation!$A$659 -> Shpenzimet në total | AP10: =Translation!$A$654 -> Kostoja e materialit | AQ10: =Translation!$A$655 -> Karburanti | AR10: =Translation!$A$656 -> Shpenzimet elektrike | AS10: =Translation!$A$657 -> Shpenzimet pjesëve rezervë | AT10: =Translation!$A$658 -> Kostoja e shërbimeve | AU10: =Translation!$A$659 -> Shpenzimet në total | AV10: =Translation!$A$654 -> Kostoja e materialit | AW10: =Translation!$A$655 -> Karburanti | AX10: =Translation!$A$656 -> Shpenzimet elektrike | AY10: =Translation!$A$657 -> Shpenzimet pjesëve rezervë | AZ10: =Translation!$A$658 -> Kostoja e shërbimeve | BA10: =Translation!$A$659 -> Shpenzimet në total | BB10: =Translation!$A$654 -> Kostoja e materialit | BC10: =Translation!$A$655 -> Karburanti | BD10: =Translation!$A$656 -> Shpenzimet elektrike | BE10: =Translation!$A$657 -> Shpenzimet pjesëve rezervë | BF10: =Translation!$A$658 -> Kostoja e shërbimeve | BG10: =Translation!$A$659 -> Shpenzimet në total | BH10: =Translation!$A$654 -> Kostoja e materialit | BI10: =Translation!$A$655 -> Karburanti | BJ10: =Translation!$A$656 -> Shpenzimet elektrike | BK10: =Translation!$A$657 -> Shpenzimet pjesëve rezervë | BL10: =Translation!$A$658 -> Kostoja e shërbimeve | BM10: =Translation!$A$659 -> Shpenzimet në total
B12: =Translation!A644 -> Mirëmbajtja e rregullt | F12: =F13+F14+F15+F16 -> 0 | G12: =G13+G14+G15+G16 -> 0 | H12: 0 | I12: =I13+I14+I15+I16 -> 0 | J12: =J13+J14+J15+J16 -> 0 | K12: =K13+K14+K15+K16 -> 0 | L12: =L13+L14+L15+L16 -> 0 | M12: =M13+M14+M15+M16 -> 0 | N12: 0 | O12: =O13+O14+O15+O16 -> 0 | P12: =P13+P14+P15+P16 -> 0 | Q12: =Q13+Q14+Q15+Q16 -> 0 | R12: =R13+R14+R15+R16 -> 0 | S12: =S13+S14+S15+S16 -> 0 | T12: 0 | U12: =U13+U14+U15+U16 -> 0 | V12: =V13+V14+V15+V16 -> 0 | W12: =W13+W14+W15+W16 -> 0 | X12: =X13+X14+X15+X16 -> 0 | Y12: =Y13+Y14+Y15+Y16 -> 0 | Z12: 0 | AA12: =AA13+AA14+AA15+AA16 -> 0 | AB12: =AB13+AB14+AB15+AB16 -> 0 | AC12: =AC13+AC14+AC15+AC16 -> 0 | AD12: =AD13+AD14+AD15+AD16 -> 0 | AE12: =AE13+AE14+AE15+AE16 -> 0 | AF12: 0 | AG12: =AG13+AG14+AG15+AG16 -> 0 | AH12: =AH13+AH14+AH15+AH16 -> 0 | AI12: =AI13+AI14+AI15+AI16 -> 0 | AJ12: =AJ13+AJ14+AJ15+AJ16 -> 0 | AK12: =AK13+AK14+AK15+AK16 -> 0 | AL12: 0 | AM12: =AM13+AM14+AM15+AM16 -> 0 | AN12: =AN13+AN14+AN15+AN16 -> 0 | AO12: =AO13+AO14+AO15+AO16 -> 0 | AP12: =AP13+AP14+AP15+AP16 -> 0 | AQ12: =AQ13+AQ14+AQ15+AQ16 -> 0 | AR12: 0 | AS12: =AS13+AS14+AS15+AS16 -> 0 | AT12: =AT13+AT14+AT15+AT16 -> 0 | AU12: =AU13+AU14+AU15+AU16 -> 0 | AV12: =AV13+AV14+AV15+AV16 -> 0 | AW12: =AW13+AW14+AW15+AW16 -> 0 | AX12: 0 | AY12: =AY13+AY14+AY15+AY16 -> 0 | AZ12: =AZ13+AZ14+AZ15+AZ16 -> 0 | BA12: =BA13+BA14+BA15+BA16 -> 0 | BB12: =BB13+BB14+BB15+BB16 -> 0 | BC12: =BC13+BC14+BC15+BC16 -> 0 | BD12: 0 | BE12: =BE13+BE14+BE15+BE16 -> 0 | BF12: =BF13+BF14+BF15+BF16 -> 0 | BG12: =BG13+BG14+BG15+BG16 -> 0 | BH12: =BH13+BH14+BH15+BH16 -> 0 | BI12: =BI13+BI14+BI15+BI16 -> 0 | BJ12: 0 | BK12: =BK13+BK14+BK15+BK16 -> 0 | BL12: =BL13+BL14+BL15+BL16 -> 0 | BM12: =BM13+BM14+BM15+BM16 -> 0
B13: =Translation!A645 -> - Ndërtesat | K13: =SUM(F13:J13) -> 0 | Q13: =SUM(L13:P13) -> 0 | W13: =SUM(R13:V13) -> 0 | AC13: =SUM(X13:AB13) -> 0 | AI13: =SUM(AD13:AH13) -> 0 | AO13: =SUM(AJ13:AN13) -> 0 | AU13: =SUM(AP13:AT13) -> 0 | BA13: =SUM(AV13:AZ13) -> 0 | BG13: =SUM(BB13:BF13) -> 0 | BM13: =SUM(BH13:BL13) -> 0
B14: =Translation!A646 -> - Pajisje | K14: =SUM(F14:J14) -> 0 | Q14: =SUM(L14:P14) -> 0 | W14: =SUM(R14:V14) -> 0 | AC14: =SUM(X14:AB14) -> 0 | AI14: =SUM(AD14:AH14) -> 0 | AO14: =SUM(AJ14:AN14) -> 0 | AU14: =SUM(AP14:AT14) -> 0 | BA14: =SUM(AV14:AZ14) -> 0 | BG14: =SUM(BB14:BF14) -> 0 | BM14: =SUM(BH14:BL14) -> 0
B15: =Translation!A647 -> - Mjete | K15: =SUM(F15:J15) -> 0 | Q15: =SUM(L15:P15) -> 0 | W15: =SUM(R15:V15) -> 0 | AC15: =SUM(X15:AB15) -> 0 | AI15: =SUM(AD15:AH15) -> 0 | AO15: =SUM(AJ15:AN15) -> 0 | AU15: =SUM(AP15:AT15) -> 0 | BA15: =SUM(AV15:AZ15) -> 0 | BG15: =SUM(BB15:BF15) -> 0 | BM15: =SUM(BH15:BL15) -> 0
B16: =Translation!A648 -> - Mirëmbajtjet tjera | K16: =SUM(F16:J16) -> 0 | Q16: =SUM(L16:P16) -> 0 | W16: =SUM(R16:V16) -> 0 | AC16: =SUM(X16:AB16) -> 0 | AI16: =SUM(AD16:AH16) -> 0 | AO16: =SUM(AJ16:AN16) -> 0 | AU16: =SUM(AP16:AT16) -> 0 | BA16: =SUM(AV16:AZ16) -> 0 | BG16: =SUM(BB16:BF16) -> 0 | BM16: =SUM(BH16:BL16) -> 0
B18: =Translation!A650 -> Mirëmbajtja e paplanifikuar | F18: =F19+F20+F21+F22 -> 0 | G18: =G19+G20+G21+G22 -> 0 | H18: 0 | I18: =I19+I20+I21+I22 -> 0 | J18: =J19+J20+J21+J22 -> 0 | K18: =K19+K20+K21+K22 -> 0 | L18: =L19+L20+L21+L22 -> 0 | M18: =M19+M20+M21+M22 -> 0 | N18: 0 | O18: =O19+O20+O21+O22 -> 0 | P18: =P19+P20+P21+P22 -> 0 | Q18: =Q19+Q20+Q21+Q22 -> 0 | R18: =R19+R20+R21+R22 -> 0 | S18: =S19+S20+S21+S22 -> 0 | T18: 0 | U18: =U19+U20+U21+U22 -> 0 | V18: =V19+V20+V21+V22 -> 0 | W18: =W19+W20+W21+W22 -> 0 | X18: =X19+X20+X21+X22 -> 0 | Y18: =Y19+Y20+Y21+Y22 -> 0 | Z18: 0 | AA18: =AA19+AA20+AA21+AA22 -> 0 | AB18: =AB19+AB20+AB21+AB22 -> 0 | AC18: =AC19+AC20+AC21+AC22 -> 0 | AD18: =AD19+AD20+AD21+AD22 -> 0 | AE18: =AE19+AE20+AE21+AE22 -> 0 | AF18: 0 | AG18: =AG19+AG20+AG21+AG22 -> 0 | AH18: =AH19+AH20+AH21+AH22 -> 0 | AI18: =AI19+AI20+AI21+AI22 -> 0 | AJ18: =AJ19+AJ20+AJ21+AJ22 -> 0 | AK18: =AK19+AK20+AK21+AK22 -> 0 | AL18: 0 | AM18: =AM19+AM20+AM21+AM22 -> 0 | AN18: =AN19+AN20+AN21+AN22 -> 0 | AO18: =AO19+AO20+AO21+AO22 -> 0 | AP18: =AP19+AP20+AP21+AP22 -> 0 | AQ18: =AQ19+AQ20+AQ21+AQ22 -> 0 | AR18: 0 | AS18: =AS19+AS20+AS21+AS22 -> 0 | AT18: =AT19+AT20+AT21+AT22 -> 0 | AU18: =AU19+AU20+AU21+AU22 -> 0 | AV18: =AV19+AV20+AV21+AV22 -> 0 | AW18: =AW19+AW20+AW21+AW22 -> 0 | AX18: 0 | AY18: =AY19+AY20+AY21+AY22 -> 0 | AZ18: =AZ19+AZ20+AZ21+AZ22 -> 0 | BA18: =BA19+BA20+BA21+BA22 -> 0 | BB18: =BB19+BB20+BB21+BB22 -> 0 | BC18: =BC19+BC20+BC21+BC22 -> 0 | BD18: 0 | BE18: =BE19+BE20+BE21+BE22 -> 0 | BF18: =BF19+BF20+BF21+BF22 -> 0 | BG18: =BG19+BG20+BG21+BG22 -> 0 | BH18: =BH19+BH20+BH21+BH22 -> 0 | BI18: =BI19+BI20+BI21+BI22 -> 0 | BJ18: 0 | BK18: =BK19+BK20+BK21+BK22 -> 0 | BL18: =BL19+BL20+BL21+BL22 -> 0 | BM18: =BM19+BM20+BM21+BM22 -> 0
B19: =Translation!A645 -> - Ndërtesat | K19: =SUM(F19:J19) -> 0 | Q19: =SUM(L19:P19) -> 0 | W19: =SUM(R19:V19) -> 0 | AC19: =SUM(X19:AB19) -> 0 | AI19: =SUM(AD19:AH19) -> 0 | AO19: =SUM(AJ19:AN19) -> 0 | AU19: =SUM(AP19:AT19) -> 0 | BA19: =SUM(AV19:AZ19) -> 0 | BG19: =SUM(BB19:BF19) -> 0 | BM19: =SUM(BH19:BL19) -> 0
B20: =Translation!A646 -> - Pajisje | K20: =SUM(F20:J20) -> 0 | Q20: =SUM(L20:P20) -> 0 | W20: =SUM(R20:V20) -> 0 | AC20: =SUM(X20:AB20) -> 0 | AI20: =SUM(AD20:AH20) -> 0 | AO20: =SUM(AJ20:AN20) -> 0 | AU20: =SUM(AP20:AT20) -> 0 | BA20: =SUM(AV20:AZ20) -> 0 | BG20: =SUM(BB20:BF20) -> 0 | BM20: =SUM(BH20:BL20) -> 0
B21: =Translation!A647 -> - Mjete | K21: =SUM(F21:J21) -> 0 | Q21: =SUM(L21:P21) -> 0 | W21: =SUM(R21:V21) -> 0 | AC21: =SUM(X21:AB21) -> 0 | AI21: =SUM(AD21:AH21) -> 0 | AO21: =SUM(AJ21:AN21) -> 0 | AU21: =SUM(AP21:AT21) -> 0 | BA21: =SUM(AV21:AZ21) -> 0 | BG21: =SUM(BB21:BF21) -> 0 | BM21: =SUM(BH21:BL21) -> 0
B22: =Translation!A648 -> - Mirëmbajtjet tjera | K22: =SUM(F22:J22) -> 0 | Q22: =SUM(L22:P22) -> 0 | W22: =SUM(R22:V22) -> 0 | AC22: =SUM(X22:AB22) -> 0 | AI22: =SUM(AD22:AH22) -> 0 | AO22: =SUM(AJ22:AN22) -> 0 | AU22: =SUM(AP22:AT22) -> 0 | BA22: =SUM(AV22:AZ22) -> 0 | BG22: =SUM(BB22:BF22) -> 0 | BM22: =SUM(BH22:BL22) -> 0
B24: =Translation!A652 -> Totali I Mirëmbajtjes | F24: =F18+F12 -> 0 | G24: =G18+G12 -> 0 | H24: 0 | I24: 0 | J24: 0 | K24: =K18+K12 -> 0 | L24: 0 | M24: 0 | N24: 0 | O24: 0 | P24: 0 | Q24: 0 | R24: 0 | S24: 0 | T24: 0 | U24: 0 | V24: 0 | W24: 0 | X24: 0 | Y24: 0 | Z24: 0 | AA24: 0 | AB24: 0 | AC24: 0 | AD24: 0 | AE24: 0 | AF24: 0 | AG24: 0 | AH24: 0 | AI24: 0 | AJ24: 0 | AK24: 0 | AL24: 0 | AM24: 0 | AN24: 0 | AO24: 0 | AP24: 0 | AQ24: 0 | AR24: 0 | AS24: 0 | AT24: 0 | AU24: 0 | AV24: 0 | AW24: 0 | AX24: 0 | AY24: 0 | AZ24: 0 | BA24: 0 | BB24: 0 | BC24: 0 | BD24: 0 | BE24: 0 | BF24: 0 | BG24: 0 | BH24: 0 | BI24: 0 | BJ24: 0 | BK24: 0 | BL24: 0 | BM24: 0

Sheet MN2 OPEX (MIN b) KEK
A6: =Translation!A949 -> Shqyrtimi SHVT 2013-2017
A7: =Translation!A661 -> MN 2 - | B7: =Translation!A662 -> Operimi dhe mirëmbajtja
B9: =Translation!A27 -> OPEX | F9: 2008 | G9: 2009 | H9: 2010 | I9: 2011 | J9: 2012 | K9: 2013 | L9: 2014 | M9: 2015 | N9: 2016 | O9: 2017
B10: =Translation!A209 -> OPEX tjera | D10: =Translation!A60 -> Kodi I Llogarive | F10: ='PS1 OPEX PES KEK'!E10 -> Aktual | G10: ='PS1 OPEX PES KEK'!F10 -> Aktual | H10: ='PS1 OPEX PES KEK'!G10 -> Aktual | I10: ='PS1 OPEX PES KEK'!H10 -> Aktual | J10: ='PS1 OPEX PES KEK'!I10 -> Vlerësim | K10: ='PS1 OPEX PES KEK'!J10 -> Parashikim | L10: ='PS1 OPEX PES KEK'!K10 -> Parashikim | M10: ='PS1 OPEX PES KEK'!L10 -> Parashikim | N10: ='PS1 OPEX PES KEK'!M10 -> Parashikim | O10: ='PS1 OPEX PES KEK'!N10 -> Parashikim
B12: =Translation!A30 -> Shpenzimet e personelit
B13: =Translation!A31 -> Pagat (neto)
B14: =Translation!A32 -> Kontributi pensional dhe taksat
B15: =Translation!A33 -> Tjera
B16: =Translation!A34 -> Elektrike dhe të tjera
B17: =Translation!A35 -> Blerjet e Energjisë Elektrike
B18: =Translation!A36 -> Shkëmbimi i energjisë elektrike
B19: =Translation!A37 -> Karburante
B20: =Translation!A38 -> Gaz dhe ujë
B21: =Translation!A39 -> Transmetimi i energjisë elektrike
B22: =Translation!A40 -> Mirëmbajtje
B23: =Translation!A41 -> Shërbimet Riparuese
B24: =Translation!A42 -> Shërbime të Mirëmbajtjes
B25: =Translation!A43 -> Materiale dhe Furnizime
B26: =Translation!A44 -> Zhvlerësimi dhe amortizimi
B27: =Translation!A45 -> Sigurimi për shlyerjen e inventarit
B28: =Translation!A46 -> Humbja e Zhvlerësimit të të arkëtueshmeve
B29: =Translation!A47 -> Dispozitat për çështjet mjedisore
B30: =Translation!A48 -> Shpenzime të tjera operative
B31: =Translation!A49 -> Shërbimet e transportit
B32: =Translation!A50 -> Shpenzimet e sigurimit
B33: =Translation!A51 -> Taksat koncesionare
B34: =Translation!A52 -> Licencat
B35: =Translation!A53 -> Shpenzime të tjera
B36: =Translation!A54 -> Shpenzimet e brendshme
B37: =Translation!A55 -> Kostoja e qymyrit nga Minierat
B38: =Translation!A56 -> Kostoja e energjisë elektrike dhe shërbimeve të shpërndarjes
B39: =Translation!A73 -> Total | F39: =SUM(F13:F38) -> 0 | G39: =SUM(G13:G38) -> 0 | H39: 0 | I39: 0 | J39: 0 | K39: 0 | L39: 0 | M39: 0 | N39: 0 | O39: 0

Sheet MN3 Other (MIN c) KEK
A6: =Translation!A949 -> Shqyrtimi SHVT 2013-2017
A7: =Translation!A698 -> MN 3 | B7: =Translation!A699 -> TË TJERA
B9: =Translation!A699 -> TË TJERA | D9: =Translation!A391 -> Njësi | F9: 2008 | G9: 2009 | H9: 2010 | I9: 2011 | J9: 2012 | K9: 2013 | L9: 2014 | M9: 2015 | N9: 2016 | O9: 2017
F10: ='MN2 OPEX (MIN b) KEK'!F10 -> Aktual | G10: ='MN2 OPEX (MIN b) KEK'!G10 -> Aktual | H10: ='MN2 OPEX (MIN b) KEK'!H10 -> Aktual | I10: ='MN2 OPEX (MIN b) KEK'!I10 -> Aktual | J10: ='MN2 OPEX (MIN b) KEK'!J10 -> Vlerësim | K10: ='MN2 OPEX (MIN b) KEK'!K10 -> Parashikim | L10: ='MN2 OPEX (MIN b) KEK'!L10 -> Parashikim | M10: ='MN2 OPEX (MIN b) KEK'!M10 -> Parashikim | N10: ='MN2 OPEX (MIN b) KEK'!N10 -> Parashikim | O10: ='MN2 OPEX (MIN b) KEK'!O10 -> Parashikim | P10: ='MN2 OPEX (MIN b) KEK'!P10 -> 0 | Q10: ='MN2 OPEX (MIN b) KEK'!Q10 -> 0 | R10: ='MN2 OPEX (MIN b) KEK'!R10 -> 0 | S10: ='MN2 OPEX (MIN b) KEK'!S10 -> 0 | T10: ='MN2 OPEX (MIN b) KEK'!T10 -> 0 | U10: ='MN2 OPEX (MIN b) KEK'!U10 -> 0 | V10: ='MN2 OPEX (MIN b) KEK'!V10 -> 0 | W10: ='MN2 OPEX (MIN b) KEK'!W10 -> 0 | X10: ='MN2 OPEX (MIN b) KEK'!X10 -> 0 | Y10: ='MN2 OPEX (MIN b) KEK'!Y10 -> 0 | Z10: ='MN2 OPEX (MIN b) KEK'!Z10 -> 0 | AA10: ='MN2 OPEX (MIN b) KEK'!AA10 -> 0 | AB10: ='MN2 OPEX (MIN b) KEK'!AB10 -> 0 | AC10: ='MN2 OPEX (MIN b) KEK'!AC10 -> 0 | AD10: ='MN2 OPEX (MIN b) KEK'!AD10 -> 0 | AE10: ='MN2 OPEX (MIN b) KEK'!AE10 -> 0 | AF10: ='MN2 OPEX (MIN b) KEK'!AF10 -> 0 | AG10: ='MN2 OPEX (MIN b) KEK'!AG10 -> 0 | AH10: ='MN2 OPEX (MIN b) KEK'!AH10 -> 0 | AI10: ='MN2 OPEX (MIN b) KEK'!AI10 -> 0 | AJ10: ='MN2 OPEX (MIN b) KEK'!AJ10 -> 0 | AK10: ='MN2 OPEX (MIN b) KEK'!AK10 -> 0 | AL10: ='MN2 OPEX (MIN b) KEK'!AL10 -> 0 | AM10: ='MN2 OPEX (MIN b) KEK'!AM10 -> 0 | AN10: ='MN2 OPEX (MIN b) KEK'!AN10 -> 0 | AO10: ='MN2 OPEX (MIN b) KEK'!AO10 -> 0 | AP10: ='MN2 OPEX (MIN b) KEK'!AP10 -> 0 | AQ10: ='MN2 OPEX (MIN b) KEK'!AQ10 -> 0 | AR10: ='MN2 OPEX (MIN b) KEK'!AR10 -> 0 | AS10: ='MN2 OPEX (MIN b) KEK'!AS10 -> 0 | AT10: ='MN2 OPEX (MIN b) KEK'!AT10 -> 0 | AU10: ='MN2 OPEX (MIN b) KEK'!AU10 -> 0 | AV10: ='MN2 OPEX (MIN b) KEK'!AV10 -> 0 | AW10: ='MN2 OPEX (MIN b) KEK'!AW10 -> 0 | AX10: ='MN2 OPEX (MIN b) KEK'!AX10 -> 0 | AY10: ='MN2 OPEX (MIN b) KEK'!AY10 -> 0 | AZ10: ='MN2 OPEX (MIN b) KEK'!AZ10 -> 0 | BA10: ='MN2 OPEX (MIN b) KEK'!BA10 -> 0 | BB10: ='MN2 OPEX (MIN b) KEK'!BB10 -> 0 | BC10: ='MN2 OPEX (MIN b) KEK'!BC10 -> 0 | BD10: ='MN2 OPEX (MIN b) KEK'!BD10 -> 0 | BE10: ='MN2 OPEX (MIN b) KEK'!BE10 -> 0 | BF10: ='MN2 OPEX (MIN b) KEK'!BF10 -> 0 | BG10: ='MN2 OPEX (MIN b) KEK'!BG10 -> 0 | BH10: ='MN2 OPEX (MIN b) KEK'!BH10 -> 0 | BI10: ='MN2 OPEX (MIN b) KEK'!BI10 -> 0 | BJ10: ='MN2 OPEX (MIN b) KEK'!BJ10 -> 0 | BK10: ='MN2 OPEX (MIN b) KEK'!BK10 -> 0 | BL10: ='MN2 OPEX (MIN b) KEK'!BL10 -> 0 | BM10: ='MN2 OPEX (MIN b) KEK'!BM10 -> 0 | BN10: ='MN2 OPEX (MIN b) KEK'!BN10 -> 0 | BO10: ='MN2 OPEX (MIN b) KEK'!BO10 -> 0 | BP10: ='MN2 OPEX (MIN b) KEK'!BP10 -> 0 | BQ10: ='MN2 OPEX (MIN b) KEK'!BQ10 -> 0 | BR10: ='MN2 OPEX (MIN b) KEK'!BR10 -> 0 | BS10: ='MN2 OPEX (MIN b) KEK'!BS10 -> 0 | BT10: ='MN2 OPEX (MIN b) KEK'!BT10 -> 0 | BU10: ='MN2 OPEX (MIN b) KEK'!BU10 -> 0 | BV10: ='MN2 OPEX (MIN b) KEK'!BV10 -> 0 | BW10: ='MN2 OPEX (MIN b) KEK'!BW10 -> 0 | BX10: ='MN2 OPEX (MIN b) KEK'!BX10 -> 0 | BY10: ='MN2 OPEX (MIN b) KEK'!BY10 -> 0 | BZ10: ='MN2 OPEX (MIN b) KEK'!BZ10 -> 0 | CA10: ='MN2 OPEX (MIN b) KEK'!CA10 -> 0 | CB10: ='MN2 OPEX (MIN b) KEK'!CB10 -> 0 | CC10: ='MN2 OPEX (MIN b) KEK'!CC10 -> 0 | CD10: ='MN2 OPEX (MIN b) KEK'!CD10 -> 0 | CE10: ='MN2 OPEX (MIN b) KEK'!CE10 -> 0 | CF10: ='MN2 OPEX (MIN b) KEK'!CF10 -> 0 | CG10: ='MN2 OPEX (MIN b) KEK'!CG10 -> 0 | CH10: ='MN2 OPEX (MIN b) KEK'!CH10 -> 0 | CI10: ='MN2 OPEX (MIN b) KEK'!CI10 -> 0 | CJ10: ='MN2 OPEX (MIN b) KEK'!CJ10 -> 0 | CK10: ='MN2 OPEX (MIN b) KEK'!CK10 -> 0 | CL10: ='MN2 OPEX (MIN b) KEK'!CL10 -> 0 | CM10: ='MN2 OPEX (MIN b) KEK'!CM10 -> 0 | CN10: ='MN2 OPEX (MIN b) KEK'!CN10 -> 0 | CO10: ='MN2 OPEX (MIN b) KEK'!CO10 -> 0 | CP10: ='MN2 OPEX (MIN b) KEK'!CP10 -> 0 | CQ10: ='MN2 OPEX (MIN b) KEK'!CQ10 -> 0 | CR10: ='MN2 OPEX (MIN b) KEK'!CR10 -> 0 | CS10: ='MN2 OPEX (MIN b) KEK'!CS10 -> 0 | CT10: ='MN2 OPEX (MIN b) KEK'!CT10 -> 0 | CU10: ='MN2 OPEX (MIN b) KEK'!CU10 -> 0 | CV10: ='MN2 OPEX (MIN b) KEK'!CV10 -> 0 | CW10: ='MN2 OPEX (MIN b) KEK'!CW10 -> 0 | CX10: ='MN2 OPEX (MIN b) KEK'!CX10 -> 0 | CY10: ='MN2 OPEX (MIN b) KEK'!CY10 -> 0 | CZ10: ='MN2 OPEX (MIN b) KEK'!CZ10 -> 0 | DA10: ='MN2 OPEX (MIN b) KEK'!DA10 -> 0 | DB10: ='MN2 OPEX (MIN b) KEK'!DB10 -> 0 | DC10: ='MN2 OPEX (MIN b) KEK'!DC10 -> 0 | DD10: ='MN2 OPEX (MIN b) KEK'!DD10 -> 0 | DE10: ='MN2 OPEX (MIN b) KEK'!DE10 -> 0 | DF10: ='MN2 OPEX (MIN b) KEK'!DF10 -> 0 | DG10: ='MN2 OPEX (MIN b) KEK'!DG10 -> 0 | DH10: ='MN2 OPEX (MIN b) KEK'!DH10 -> 0 | DI10: ='MN2 OPEX (MIN b) KEK'!DI10 -> 0 | DJ10: ='MN2 OPEX (MIN b) KEK'!DJ10 -> 0 | DK10: ='MN2 OPEX (MIN b) KEK'!DK10 -> 0 | DL10: ='MN2 OPEX (MIN b) KEK'!DL10 -> 0 | DM10: ='MN2 OPEX (MIN b) KEK'!DM10 -> 0 | DN10: ='MN2 OPEX (MIN b) KEK'!DN10 -> 0 | DO10: ='MN2 OPEX (MIN b) KEK'!DO10 -> 0 | DP10: ='MN2 OPEX (MIN b) KEK'!DP10 -> 0 | DQ10: ='MN2 OPEX (MIN b) KEK'!DQ10 -> 0 | DR10: ='MN2 OPEX (MIN b) KEK'!DR10 -> 0 | DS10: ='MN2 OPEX (MIN b) KEK'!DS10 -> 0 | DT10: ='MN2 OPEX (MIN b) KEK'!DT10 -> 0 | DU10: ='MN2 OPEX (MIN b) KEK'!DU10 -> 0 | DV10: ='MN2 OPEX (MIN b) KEK'!DV10 -> 0 | DW10: ='MN2 OPEX (MIN b) KEK'!DW10 -> 0 | DX10: ='MN2 OPEX (MIN b) KEK'!DX10 -> 0 | DY10: ='MN2 OPEX (MIN b) KEK'!DY10 -> 0 | DZ10: ='MN2 OPEX (MIN b) KEK'!DZ10 -> 0 | EA10: ='MN2 OPEX (MIN b) KEK'!EA10 -> 0 | EB10: ='MN2 OPEX (MIN b) KEK'!EB10 -> 0 | EC10: ='MN2 OPEX (MIN b) KEK'!EC10 -> 0 | ED10: ='MN2 OPEX (MIN b) KEK'!ED10 -> 0 | EE10: ='MN2 OPEX (MIN b) KEK'!EE10 -> 0 | EF10: ='MN2 OPEX (MIN b) KEK'!EF10 -> 0 | EG10: ='MN2 OPEX (MIN b) KEK'!EG10 -> 0 | EH10: ='MN2 OPEX (MIN b) KEK'!EH10 -> 0 | EI10: ='MN2 OPEX (MIN b) KEK'!EI10 -> 0 | EJ10: ='MN2 OPEX (MIN b) KEK'!EJ10 -> 0 | EK10: ='MN2 OPEX (MIN b) KEK'!EK10 -> 0 | EL10: ='MN2 OPEX (MIN b) KEK'!EL10 -> 0 | EM10: ='MN2 OPEX (MIN b) KEK'!EM10 -> 0 | EN10: ='MN2 OPEX (MIN b) KEK'!EN10 -> 0 | EO10: ='MN2 OPEX (MIN b) KEK'!EO10 -> 0 | EP10: ='MN2 OPEX (MIN b) KEK'!EP10 -> 0 | EQ10: ='MN2 OPEX (MIN b) KEK'!EQ10 -> 0 | ER10: ='MN2 OPEX (MIN b) KEK'!ER10 -> 0 | ES10: ='MN2 OPEX (MIN b) KEK'!ES10 -> 0 | ET10: ='MN2 OPEX (MIN b) KEK'!ET10 -> 0 | EU10: ='MN2 OPEX (MIN b) KEK'!EU10 -> 0 | EV10: ='MN2 OPEX (MIN b) KEK'!EV10 -> 0 | EW10: ='MN2 OPEX (MIN b) KEK'!EW10 -> 0 | EX10: ='MN2 OPEX (MIN b) KEK'!EX10 -> 0 | EY10: ='MN2 OPEX (MIN b) KEK'!EY10 -> 0 | EZ10: ='MN2 OPEX (MIN b) KEK'!EZ10 -> 0 | FA10: ='MN2 OPEX (MIN b) KEK'!FA10 -> 0 | FB10: ='MN2 OPEX (MIN b) KEK'!FB10 -> 0 | FC10: ='MN2 OPEX (MIN b) KEK'!FC10 -> 0 | FD10: ='MN2 OPEX (MIN b) KEK'!FD10 -> 0 | FE10: ='MN2 OPEX (MIN b) KEK'!FE10 -> 0 | FF10: ='MN2 OPEX (MIN b) KEK'!FF10 -> 0 | FG10: ='MN2 OPEX (MIN b) KEK'!FG10 -> 0 | FH10: ='MN2 OPEX (MIN b) KEK'!FH10 -> 0 | FI10: ='MN2 OPEX (MIN b) KEK'!FI10 -> 0 | FJ10: ='MN2 OPEX (MIN b) KEK'!FJ10 -> 0 | FK10: ='MN2 OPEX (MIN b) KEK'!FK10 -> 0 | FL10: ='MN2 OPEX (MIN b) KEK'!FL10 -> 0 | FM10: ='MN2 OPEX (MIN b) KEK'!FM10 -> 0 | FN10: ='MN2 OPEX (MIN b) KEK'!FN10 -> 0 | FO10: ='MN2 OPEX (MIN b) KEK'!FO10 -> 0 | FP10: ='MN2 OPEX (MIN b) KEK'!FP10 -> 0 | FQ10: ='MN2 OPEX (MIN b) KEK'!FQ10 -> 0 | FR10: ='MN2 OPEX (MIN b) KEK'!FR10 -> 0 | FS10: ='MN2 OPEX (MIN b) KEK'!FS10 -> 0 | FT10: ='MN2 OPEX (MIN b) KEK'!FT10 -> 0 | FU10: ='MN2 OPEX (MIN b) KEK'!FU10 -> 0 | FV10: ='MN2 OPEX (MIN b) KEK'!FV10 -> 0 | FW10: ='MN2 OPEX (MIN b) KEK'!FW10 -> 0 | FX10: ='MN2 OPEX (MIN b) KEK'!FX10 -> 0 | FY10: ='MN2 OPEX (MIN b) KEK'!FY10 -> 0 | FZ10: ='MN2 OPEX (MIN b) KEK'!FZ10 -> 0 | GA10: ='MN2 OPEX (MIN b) KEK'!GA10 -> 0 | GB10: ='MN2 OPEX (MIN b) KEK'!GB10 -> 0 | GC10: ='MN2 OPEX (MIN b) KEK'!GC10 -> 0 | GD10: ='MN2 OPEX (MIN b) KEK'!GD10 -> 0 | GE10: ='MN2 OPEX (MIN b) KEK'!GE10 -> 0 | GF10: ='MN2 OPEX (MIN b) KEK'!GF10 -> 0 | GG10: ='MN2 OPEX (MIN b) KEK'!GG10 -> 0 | GH10: ='MN2 OPEX (MIN b) KEK'!GH10 -> 0 | GI10: ='MN2 OPEX (MIN b) KEK'!GI10 -> 0 | GJ10: ='MN2 OPEX (MIN b) KEK'!GJ10 -> 0 | GK10: ='MN2 OPEX (MIN b) KEK'!GK10 -> 0 | GL10: ='MN2 OPEX (MIN b) KEK'!GL10 -> 0 | GM10: ='MN2 OPEX (MIN b) KEK'!GM10 -> 0 | GN10: ='MN2 OPEX (MIN b) KEK'!GN10 -> 0 | GO10: ='MN2 OPEX (MIN b) KEK'!GO10 -> 0 | GP10: ='MN2 OPEX (MIN b) KEK'!GP10 -> 0 | GQ10: ='MN2 OPEX (MIN b) KEK'!GQ10 -> 0 | GR10: ='MN2 OPEX (MIN b) KEK'!GR10 -> 0 | GS10: ='MN2 OPEX (MIN b) KEK'!GS10 -> 0 | GT10: ='MN2 OPEX (MIN b) KEK'!GT10 -> 0 | GU10: ='MN2 OPEX (MIN b) KEK'!GU10 -> 0 | GV10: ='MN2 OPEX (MIN b) KEK'!GV10 -> 0 | GW10: ='MN2 OPEX (MIN b) KEK'!GW10 -> 0 | GX10: ='MN2 OPEX (MIN b) KEK'!GX10 -> 0 | GY10: ='MN2 OPEX (MIN b) KEK'!GY10 -> 0 | GZ10: ='MN2 OPEX (MIN b) KEK'!GZ10 -> 0 | HA10: ='MN2 OPEX (MIN b) KEK'!HA10 -> 0 | HB10: ='MN2 OPEX (MIN b) KEK'!HB10 -> 0 | HC10: ='MN2 OPEX (MIN b) KEK'!HC10 -> 0 | HD10: ='MN2 OPEX (MIN b) KEK'!HD10 -> 0 | HE10: ='MN2 OPEX (MIN b) KEK'!HE10 -> 0 | HF10: ='MN2 OPEX (MIN b) KEK'!HF10 -> 0 | HG10: ='MN2 OPEX (MIN b) KEK'!HG10 -> 0 | HH10: ='MN2 OPEX (MIN b) KEK'!HH10 -> 0 | HI10: ='MN2 OPEX (MIN b) KEK'!HI10 -> 0 | HJ10: ='MN2 OPEX (MIN b) KEK'!HJ10 -> 0 | HK10: ='MN2 OPEX (MIN b) KEK'!HK10 -> 0 | HL10: ='MN2 OPEX (MIN b) KEK'!HL10 -> 0 | HM10: ='MN2 OPEX (MIN b) KEK'!HM10 -> 0 | HN10: ='MN2 OPEX (MIN b) KEK'!HN10 -> 0 | HO10: ='MN2 OPEX (MIN b) KEK'!HO10 -> 0 | HP10: ='MN2 OPEX (MIN b) KEK'!HP10 -> 0 | HQ10: ='MN2 OPEX (MIN b) KEK'!HQ10 -> 0 | HR10: ='MN2 OPEX (MIN b) KEK'!HR10 -> 0 | HS10: ='MN2 OPEX (MIN b) KEK'!HS10 -> 0 | HT10: ='MN2 OPEX (MIN b) KEK'!HT10 -> 0 | HU10: ='MN2 OPEX (MIN b) KEK'!HU10 -> 0 | HV10: ='MN2 OPEX (MIN b) KEK'!HV10 -> 0 | HW10: ='MN2 OPEX (MIN b) KEK'!HW10 -> 0 | HX10: ='MN2 OPEX (MIN b) KEK'!HX10 -> 0 | HY10: ='MN2 OPEX (MIN b) KEK'!HY10 -> 0 | HZ10: ='MN2 OPEX (MIN b) KEK'!HZ10 -> 0 | IA10: ='MN2 OPEX (MIN b) KEK'!IA10 -> 0 | IB10: ='MN2 OPEX (MIN b) KEK'!IB10 -> 0 | IC10: ='MN2 OPEX (MIN b) KEK'!IC10 -> 0 | ID10: ='MN2 OPEX (MIN b) KEK'!ID10 -> 0 | IE10: ='MN2 OPEX (MIN b) KEK'!IE10 -> 0 | IF10: ='MN2 OPEX (MIN b) KEK'!IF10 -> 0 | IG10: ='MN2 OPEX (MIN b) KEK'!IG10 -> 0 | IH10: ='MN2 OPEX (MIN b) KEK'!IH10 -> 0 | II10: ='MN2 OPEX (MIN b) KEK'!II10 -> 0 | IJ10: ='MN2 OPEX (MIN b) KEK'!IJ10 -> 0 | IK10: ='MN2 OPEX (MIN b) KEK'!IK10 -> 0 | IL10: ='MN2 OPEX (MIN b) KEK'!IL10 -> 0 | IM10: ='MN2 OPEX (MIN b) KEK'!IM10 -> 0 | IN10: ='MN2 OPEX (MIN b) KEK'!IN10 -> 0 | IO10: ='MN2 OPEX (MIN b) KEK'!IO10 -> 0 | IP10: ='MN2 OPEX (MIN b) KEK'!IP10 -> 0 | IQ10: ='MN2 OPEX (MIN b) KEK'!IQ10 -> 0 | IR10: ='MN2 OPEX (MIN b) KEK'!IR10 -> 0 | IS10: ='MN2 OPEX (MIN b) KEK'!IS10 -> 0 | IT10: ='MN2 OPEX (MIN b) KEK'!IT10 -> 0 | IU10: ='MN2 OPEX (MIN b) KEK'!IU10 -> 0 | IV10: ='MN2 OPEX (MIN b) KEK'!IV10 -> 0
B12: =Translation!A701 -> Sasia e qymyrit
B13: =Translation!A702 -> Termocentrali | D13: t
B14: =Translation!A703 -> Shitjet komerciale | D14: t
B15: =Translation!A704 -> Shtimi i aksioneve | D15: t
B16: =Translation!A705 -> Fshirja nga stoqet | D16: t
B17: =Translation!A706 -> Totali I Prodhimit | D17: t | F17: =SUM(F13:F15)-F16 -> 0 | G17: 0 | H17: 0 | I17: 0 | J17: 0 | K17: 0 | L17: 0 | M17: 0 | N17: 0 | O17: 0
B19: =Translation!A708 -> Vlera mesatare kalorifike e qymyrit të shitur
B20: =Translation!A709 -> Shitjet te gjenerimi | D20: kJ/kg
B21: =Translation!A710 -> Shitjet komerciale | D21: kJ/kg
B23: =Translation!A712 -> Të ardhurat nga shitja e thëngjillit | D23: €'000 | F23: =SUM(F24:F25) -> 0 | G23: =SUM(G24:G25) -> 0 | H23: 0 | I23: 0 | J23: 0 | K23: 0 | L23: 0 | M23: 0 | N23: 0 | O23: 0
B24: =Translation!A713 -> Shitjet te gjenerimi | D24: €'000
B25: =Translation!A714 -> Konsumatorët komercial | D25: €'000
B27: =Translation!A224 -> Shto rreshtat shtese me larte
B28: =Translation!A225 -> Capex | F28: 2008 | G28: 2009 | H28: 2010 | I28: 2011 | J28: 2012 | K28: 2013 | L28: 2014 | M28: 2015 | N28: 2016 | O28: 2017
B29: =Translation!A226 -> Projeket jo Capex | D29: =Translation!A700 -> Kodi I llogarisë | F29: ='MN2 OPEX (MIN b) KEK'!F10 -> Aktual | G29: ='MN2 OPEX (MIN b) KEK'!G10 -> Aktual | H29: ='MN2 OPEX (MIN b) KEK'!H10 -> Aktual | I29: ='MN2 OPEX (MIN b) KEK'!I10 -> Aktual | J29: ='MN2 OPEX (MIN b) KEK'!J10 -> Vlerësim | K29: ='MN2 OPEX (MIN b) KEK'!K10 -> Parashikim | L29: ='MN2 OPEX (MIN b) KEK'!L10 -> Parashikim | M29: ='MN2 OPEX (MIN b) KEK'!M10 -> Parashikim | N29: ='MN2 OPEX (MIN b) KEK'!N10 -> Parashikim | O29: ='MN2 OPEX (MIN b) KEK'!O10 -> Parashikim | P29: Comment
B31: =Translation!A716 -> Mjetet dhe Pajisjet
B32: =Translation!A717 -> Prona dhe Toka
B33: =Translation!A718 -> Të tjera 1
B34: =Translation!A719 -> Të tjera 2
B35: =Translation!A720 -> Të tjera 3

Sheet MN 4CAPEX (MIN a) KEK
A6: =Translation!A949 -> Shqyrtimi SHVT 2013-2017
A7: =Translation!A722 -> MN 4 - | B7: =Translation!A723 -> Capex a
B9: =Translation!A225 -> Capex | D9: =Translation!A283 -> Projekti referencë | E9: =Translation!A285 -> Buxheti i përgjithshëm (€ 000) | F9: =Translation!A287 -> Total Grant (€ 000) | H9: =Translation!A289 -> Data e fillimit | I9: =Translation!A291 -> Data e perfundimit | J9: =Translation!A293 -> Lloji i Projektit | K9: =Translation!A233 -> Koment
B10: =Translation!A282 -> Emri i projektit
B27: =Translation!A224 -> Shto rreshtat shtese me larte

Sheet MN5 CAPEX (MIN b) KEK
A6: =Translation!A949 -> Shqyrtimi SHVT 2013-2017
A7: =Translation!A726 -> Capex b
B8: =Translation!A225 -> Capex | D8: =Translation!A283 -> Projekti referencë | E8: =Translation!A285 -> Buxheti i përgjithshëm (€ 000) | F8: =Translation!A287 -> Total Grant (€ 000) | H8: 2008 | I8: 2009 | J8: 2010 | K8: 2011 | L8: 2012 | M8: 2013 | N8: 2014 | O8: 2015 | P8: 2016 | Q8: 2017
B9: =Translation!A282 -> Emri i projektit | H9: ='PT2 P&L TRADE KEK'!E10 -> Aktuale (€ '000) | I9: ='PT2 P&L TRADE KEK'!F10 -> Aktuale (€ '000) | J9: ='PT2 P&L TRADE KEK'!G10 -> Aktuale (€ '000) | K9: ='PT2 P&L TRADE KEK'!H10 -> Aktuale (€ '000) | L9: ='PT2 P&L TRADE KEK'!I10 -> Vlerësimi (€ '000) | M9: ='PT2 P&L TRADE KEK'!J10 -> Parashikimi (€ '000) | N9: ='PT2 P&L TRADE KEK'!K10 -> Parashikimi (€ '000) | O9: ='PT2 P&L TRADE KEK'!L10 -> Parashikimi (€ '000) | P9: ='PT2 P&L TRADE KEK'!M10 -> Parashikimi (€ '000) | Q9: ='PT2 P&L TRADE KEK'!N10 -> Parashikimi (€ '000)
B10: =Translation!A310 -> Tri kolonat e para aotomatikisht mbushen nga Capexi(a)
B11: ='MN 4CAPEX (MIN a) KEK'!B11 -> 0 | D11: ='MN 4CAPEX (MIN a) KEK'!D11 -> 0 | E11: ='MN 4CAPEX (MIN a) KEK'!E11 -> 0 | F11: ='MN 4CAPEX (MIN a) KEK'!F11 -> 0
B12: ='MN 4CAPEX (MIN a) KEK'!B12 -> 0 | D12: ='MN 4CAPEX (MIN a) KEK'!D12 -> 0 | E12: ='MN 4CAPEX (MIN a) KEK'!E12 -> 0 | F12: ='MN 4CAPEX (MIN a) KEK'!F12 -> 0
B13: ='MN 4CAPEX (MIN a) KEK'!B13 -> 0 | D13: ='MN 4CAPEX (MIN a) KEK'!D13 -> 0 | E13: ='MN 4CAPEX (MIN a) KEK'!E13 -> 0 | F13: ='MN 4CAPEX (MIN a) KEK'!F13 -> 0
B14: ='MN 4CAPEX (MIN a) KEK'!B14 -> 0 | D14: ='MN 4CAPEX (MIN a) KEK'!D14 -> 0 | E14: ='MN 4CAPEX (MIN a) KEK'!E14 -> 0 | F14: ='MN 4CAPEX (MIN a) KEK'!F14 -> 0
B15: ='MN 4CAPEX (MIN a) KEK'!B15 -> 0 | D15: ='MN 4CAPEX (MIN a) KEK'!D15 -> 0 | E15: ='MN 4CAPEX (MIN a) KEK'!E15 -> 0 | F15: ='MN 4CAPEX (MIN a) KEK'!F15 -> 0
B16: ='MN 4CAPEX (MIN a) KEK'!B16 -> 0 | D16: ='MN 4CAPEX (MIN a) KEK'!D16 -> 0 | E16: ='MN 4CAPEX (MIN a) KEK'!E16 -> 0 | F16: ='MN 4CAPEX (MIN a) KEK'!F16 -> 0
B17: ='MN 4CAPEX (MIN a) KEK'!B17 -> 0 | D17: ='MN 4CAPEX (MIN a) KEK'!D17 -> 0 | E17: ='MN 4CAPEX (MIN a) KEK'!E17 -> 0 | F17: ='MN 4CAPEX (MIN a) KEK'!F17 -> 0
B18: ='MN 4CAPEX (MIN a) KEK'!B18 -> 0 | D18: ='MN 4CAPEX (MIN a) KEK'!D18 -> 0 | E18: ='MN 4CAPEX (MIN a) KEK'!E18 -> 0 | F18: ='MN 4CAPEX (MIN a) KEK'!F18 -> 0
B19: ='MN 4CAPEX (MIN a) KEK'!B19 -> 0 | D19: ='MN 4CAPEX (MIN a) KEK'!D19 -> 0 | E19: ='MN 4CAPEX (MIN a) KEK'!E19 -> 0 | F19: ='MN 4CAPEX (MIN a) KEK'!F19 -> 0
B20: ='MN 4CAPEX (MIN a) KEK'!B20 -> 0 | D20: ='MN 4CAPEX (MIN a) KEK'!D20 -> 0 | E20: ='MN 4CAPEX (MIN a) KEK'!E20 -> 0 | F20: ='MN 4CAPEX (MIN a) KEK'!F20 -> 0
B21: ='MN 4CAPEX (MIN a) KEK'!B21 -> 0 | D21: ='MN 4CAPEX (MIN a) KEK'!D21 -> 0 | E21: ='MN 4CAPEX (MIN a) KEK'!E21 -> 0 | F21: ='MN 4CAPEX (MIN a) KEK'!F21 -> 0
B22: ='MN 4CAPEX (MIN a) KEK'!B22 -> 0 | D22: ='MN 4CAPEX (MIN a) KEK'!D22 -> 0 | E22: ='MN 4CAPEX (MIN a) KEK'!E22 -> 0 | F22: ='MN 4CAPEX (MIN a) KEK'!F22 -> 0
B23: ='MN 4CAPEX (MIN a) KEK'!B23 -> 0 | D23: ='MN 4CAPEX (MIN a) KEK'!D23 -> 0 | E23: ='MN 4CAPEX (MIN a) KEK'!E23 -> 0 | F23: ='MN 4CAPEX (MIN a) KEK'!F23 -> 0
B24: ='MN 4CAPEX (MIN a) KEK'!B24 -> 0 | D24: ='MN 4CAPEX (MIN a) KEK'!D24 -> 0 | E24: ='MN 4CAPEX (MIN a) KEK'!E24 -> 0 | F24: ='MN 4CAPEX (MIN a) KEK'!F24 -> 0
B25: ='MN 4CAPEX (MIN a) KEK'!B25 -> 0 | D25: ='MN 4CAPEX (MIN a) KEK'!D25 -> 0 | E25: ='MN 4CAPEX (MIN a) KEK'!E25 -> 0 | F25: ='MN 4CAPEX (MIN a) KEK'!F25 -> 0
B26: =Translation!A311 -> Shto rreshta shtese mbi dhe kopjo formulen

Sheet MN6 Asset MIN KEK
A6: =Translation!A949 -> Shqyrtimi SHVT 2013-2017
A7: =Translation!A728 -> MN 6 - | B7: =Translation!A729 -> Jetëgjatësia e Aseteve
B9: =Translation!A347 -> Klasa e Aseteve | E9: =Translation!A350 -> më të vjetër | F9: 1965 | G9: 1970 | H9: 1975 | I9: 1980 | J9: 1985 | K9: 1990 | L9: 1995 | M9: 2000 | N9: 2005
E10: 1960 | F10: 1961 | G10: 1966 | H10: 1971 | I10: 1976 | J10: 1981 | K10: 1986 | L10: 1991 | M10: 1996 | N10: 2001 | O10: 2006 | P10: 2007 | Q10: 2008 | R10: 2009 | S10: 2010 | T10: 2011 | U10: 2012
B11: =Translation!A384 -> Numri i aseteve të instaluara në këtë periudhë
B12: =Translation!A731 -> Eskavatorët
B13: =Translation!A732 -> Kamionët
B14: =Translation!A733 -> Shiriti transportues
B15: =Translation!A734 -> Shinat
B16: =Translation!A735 -> Stallë
B17: =Translation!A736 -> ekskavatore per mihje me timon
B18: =Translation!A737 -> Stucker
B19: =Translation!A738 -> Buldozeri
B20: =Translation!A739 -> Të tjera (pompat e ujit ...)

Sheet MN7 P&L MIN KEK
A6: =Translation!A949 -> Shqyrtimi SHVT 2013-2017
A7: =Translation!A741 -> Fitimi dhe Humbja MN7 (KEK) MINIERAVE
F9: 2008 | G9: 2009 | H9: 2010 | I9: 2011 | J9: 2012 | K9: 2013 | L9: 2014 | M9: 2015 | N9: 2016 | O9: 2017
B10: =Translation!A743 -> F & H e MINIERAVE | F10: ='MN5 CAPEX (MIN b) KEK'!H9 -> Aktuale (€ '000) | G10: ='MN5 CAPEX (MIN b) KEK'!I9 -> Aktuale (€ '000) | H10: ='MN5 CAPEX (MIN b) KEK'!J9 -> Aktuale (€ '000) | I10: ='MN5 CAPEX (MIN b) KEK'!K9 -> Aktuale (€ '000) | J10: ='MN5 CAPEX (MIN b) KEK'!L9 -> Vlerësimi (€ '000) | K10: ='MN5 CAPEX (MIN b) KEK'!M9 -> Parashikimi (€ '000) | L10: ='MN5 CAPEX (MIN b) KEK'!N9 -> Parashikimi (€ '000) | M10: ='MN5 CAPEX (MIN b) KEK'!O9 -> Parashikimi (€ '000) | N10: ='MN5 CAPEX (MIN b) KEK'!P9 -> Parashikimi (€ '000) | O10: ='MN5 CAPEX (MIN b) KEK'!Q9 -> Parashikimi (€ '000)
B11: =Translation!A603 -> Të ardhurat:
B12: =B11 -> Të ardhurat: | F12: ='HQ5 Rev (Group) KEK'!F31 -> 0 | G12: ='HQ5 Rev (Group) KEK'!G31 -> 0 | H12: ='HQ5 Rev (Group) KEK'!H31 -> 0 | I12: ='HQ5 Rev (Group) KEK'!I31 -> 0 | J12: ='HQ5 Rev (Group) KEK'!J31 -> 0 | K12: ='HQ5 Rev (Group) KEK'!K31 -> 0 | L12: ='HQ5 Rev (Group) KEK'!L31 -> 0 | M12: ='HQ5 Rev (Group) KEK'!M31 -> 0 | N12: ='HQ5 Rev (Group) KEK'!N31 -> 0 | O12: ='HQ5 Rev (Group) KEK'!O31 -> 0
B13: =Translation!A607 -> Qarkullimi | F13: =SUM(F12:F12) -> 0 | G13: 0 | H13: 0 | I13: 0 | J13: 0 | K13: 0 | L13: 0 | M13: 0 | N13: 0 | O13: 0
B14: =Translation!A619 -> Shpenzimet operative:
B15: =Translation!A630 -> Shpenzimet totale operative | F15: ='MN2 OPEX (MIN b) KEK'!F39 -> 0 | G15: ='MN2 OPEX (MIN b) KEK'!G39 -> 0 | H15: ='MN2 OPEX (MIN b) KEK'!H39 -> 0 | I15: ='MN2 OPEX (MIN b) KEK'!I39 -> 0 | J15: ='MN2 OPEX (MIN b) KEK'!J39 -> 0 | K15: ='MN2 OPEX (MIN b) KEK'!K39 -> 0 | L15: ='MN2 OPEX (MIN b) KEK'!L39 -> 0 | M15: ='MN2 OPEX (MIN b) KEK'!M39 -> 0 | N15: ='MN2 OPEX (MIN b) KEK'!N39 -> 0 | O15: ='MN2 OPEX (MIN b) KEK'!O39 -> 0
B16: =Translation!A631 -> Fitimi Operative / (humbja) | F16: =SUM(F13-F15) -> 0 | G16: =SUM(G13-G15) -> 0 | H16: 0 | I16: 0 | J16: 0 | K16: 0 | L16: 0 | M16: 0 | N16: 0 | O16: 0

Sheet GN1 OPEX (GEN a) KEK
A6: =Translation!A949 -> Shqyrtimi SHVT 2013-2017
A7: =Translation!A745 -> GN 1 | B7: =Translation!A746 -> Mirëmbajtja
B9: =Translation!A642 -> Shpenzimet e mirëmbajtjes | F9: 2008 | K9: =F9+1 -> 2009 | P9: =K9+1 -> 2010 | U9: =P9+1 -> 2011 | Z9: =U9+1 -> 2012 | AE9: =Z9+1 -> 2013 | AJ9: =AE9+1 -> 2014 | AO9: =AJ9+1 -> 2015 | AT9: =AO9+1 -> 2016 | AY9: =AT9+1 -> 2017
F10: ='MN7 P&L MIN KEK'!$F$10 -> Aktuale (€ '000) | K10: ='MN7 P&L MIN KEK'!$F$10 -> Aktuale (€ '000) | P10: ='MN7 P&L MIN KEK'!$F$10 -> Aktuale (€ '000) | U10: ='MN7 P&L MIN KEK'!$F$10 -> Aktuale (€ '000) | Z10: ='MN7 P&L MIN KEK'!J10 -> Vlerësimi (€ '000) | AE10: ='MN7 P&L MIN KEK'!$K$10 -> Parashikimi (€ '000) | AJ10: ='MN7 P&L MIN KEK'!$K$10 -> Parashikimi (€ '000) | AO10: ='MN7 P&L MIN KEK'!$K$10 -> Parashikimi (€ '000) | AT10: ='MN7 P&L MIN KEK'!$K$10 -> Parashikimi (€ '000) | AY10: ='MN7 P&L MIN KEK'!$K$10 -> Parashikimi (€ '000)
D11: =Translation!A653 -> Kodi I llogarisë | F11: =Translation!$A$782 -> Kostot materiale | G11: =Translation!$A$783 -> Shpenzimet e Karburantit dhe lubrifikantit | H11: =Translation!$A$784 -> Shpenzimet e pjesëve rezervë | I11: =Translation!$A$785 -> Kostoja e shërbimeve | J11: =Translation!$A$786 -> Shpenzimet në total | K11: =Translation!$A$782 -> Kostot materiale | L11: =Translation!$A$783 -> Shpenzimet e Karburantit dhe lubrifikantit | M11: =Translation!$A$784 -> Shpenzimet e pjesëve rezervë | N11: =Translation!$A$785 -> Kostoja e shërbimeve | O11: =Translation!$A$786 -> Shpenzimet në total | P11: =Translation!$A$782 -> Kostot materiale | Q11: =Translation!$A$783 -> Shpenzimet e Karburantit dhe lubrifikantit | R11: =Translation!$A$784 -> Shpenzimet e pjesëve rezervë | S11: =Translation!$A$785 -> Kostoja e shërbimeve | T11: =Translation!$A$786 -> Shpenzimet në total | U11: =Translation!$A$782 -> Kostot materiale | V11: =Translation!$A$783 -> Shpenzimet e Karburantit dhe lubrifikantit | W11: =Translation!$A$784 -> Shpenzimet e pjesëve rezervë | X11: =Translation!$A$785 -> Kostoja e shërbimeve | Y11: =Translation!$A$786 -> Shpenzimet në total | Z11: =Translation!$A$782 -> Kostot materiale | AA11: =Translation!$A$783 -> Shpenzimet e Karburantit dhe lubrifikantit | AB11: =Translation!$A$784 -> Shpenzimet e pjesëve rezervë | AC11: =Translation!$A$785 -> Kostoja e shërbimeve | AD11: =Translation!$A$786 -> Shpenzimet në total | AE11: =Translation!$A$782 -> Kostot materiale | AF11: =Translation!$A$783 -> Shpenzimet e Karburantit dhe lubrifikantit | AG11: =Translation!$A$784 -> Shpenzimet e pjesëve rezervë | AH11: =Translation!$A$785 -> Kostoja e shërbimeve | AI11: =Translation!$A$786 -> Shpenzimet në total | AJ11: =Translation!$A$782 -> Kostot materiale | AK11: =Translation!$A$783 -> Shpenzimet e Karburantit dhe lubrifikantit | AL11: =Translation!$A$784 -> Shpenzimet e pjesëve rezervë | AM11: =Translation!$A$785 -> Kostoja e shërbimeve | AN11: =Translation!$A$786 -> Shpenzimet në total | AO11: =Translation!$A$782 -> Kostot materiale | AP11: =Translation!$A$783 -> Shpenzimet e Karburantit dhe lubrifikantit | AQ11: =Translation!$A$784 -> Shpenzimet e pjesëve rezervë | AR11: =Translation!$A$785 -> Kostoja e shërbimeve | AS11: =Translation!$A$786 -> Shpenzimet në total | AT11: =Translation!$A$782 -> Kostot materiale | AU11: =Translation!$A$783 -> Shpenzimet e Karburantit dhe lubrifikantit | AV11: =Translation!$A$784 -> Shpenzimet e pjesëve rezervë | AW11: =Translation!$A$785 -> Kostoja e shërbimeve | AX11: =Translation!$A$786 -> Shpenzimet në total | AY11: =Translation!$A$782 -> Kostot materiale | AZ11: =Translation!$A$783 -> Shpenzimet e Karburantit dhe lubrifikantit | BA11: =Translation!$A$784 -> Shpenzimet e pjesëve rezervë | BB11: =Translation!$A$785 -> Kostoja e shërbimeve | BC11: =Translation!$A$786 -> Shpenzimet në total
B12: KOSOVO A
B13: =Translation!A748 -> Mirëmbajtja e rregullt | F13: =F15+F19+F23+F27 -> 0 | G13: 0 | H13: 0 | I13: 0 | J13: 0 | K13: 0 | L13: 0 | M13: 0 | N13: 0 | O13: 0 | P13: 0 | Q13: 0 | R13: 0 | S13: 0 | T13: 0 | U13: 0 | V13: 0 | W13: 0 | X13: 0 | Y13: 0 | Z13: 0 | AA13: 0 | AB13: 0 | AC13: 0 | AD13: 0 | AE13: 0 | AF13: 0 | AG13: 0 | AH13: 0 | AI13: 0 | AJ13: 0 | AK13: 0 | AL13: 0 | AM13: 0 | AN13: 0 | AO13: 0 | AP13: 0 | AQ13: 0 | AR13: 0 | AS13: 0 | AT13: 0 | AU13: 0 | AV13: 0 | AW13: 0 | AX13: 0 | AY13: 0 | AZ13: 0 | BA13: 0 | BB13: 0 | BC13: 0
B15: =Translation!A750 -> Ndërtesat | F15: =SUM(F16:F17) -> 0 | G15: 0 | H15: 0 | I15: 0 | J15: 0 | K15: 0 | L15: 0 | M15: 0 | N15: 0 | O15: 0 | P15: 0 | Q15: 0 | R15: 0 | S15: 0 | T15: 0 | U15: 0 | V15: 0 | W15: 0 | X15: 0 | Y15: 0 | Z15: 0 | AA15: 0 | AB15: 0 | AC15: 0 | AD15: 0 | AE15: 0 | AF15: 0 | AG15: 0 | AH15: 0 | AI15: 0 | AJ15: 0 | AK15: 0 | AL15: 0 | AM15: 0 | AN15: 0 | AO15: 0 | AP15: 0 | AQ15: 0 | AR15: 0 | AS15: 0 | AT15: 0 | AU15: 0 | AV15: 0 | AW15: 0 | AX15: 0 | AY15: 0 | AZ15: 0 | BA15: 0 | BB15: 0 | BC15: 0
B16: =Translation!A751 -> - ndërtesa e Termocentralit | J16: =SUM(F16:I16) -> 0 | O16: =SUM(K16:N16) -> 0 | T16: =SUM(P16:S16) -> 0 | Y16: =SUM(U16:X16) -> 0 | AD16: =SUM(Z16:AC16) -> 0 | AI16: =SUM(AE16:AH16) -> 0 | AN16: =SUM(AJ16:AM16) -> 0 | AS16: =SUM(AO16:AR16) -> 0 | AX16: =SUM(AT16:AW16) -> 0 | BC16: =SUM(AY16:BB16) -> 0
B17: =Translation!A752 -> - Ndërtesat e tjera | J17: =SUM(F17:I17) -> 0 | O17: =SUM(K17:N17) -> 0 | T17: =SUM(P17:S17) -> 0 | Y17: =SUM(U17:X17) -> 0 | AD17: =SUM(Z17:AC17) -> 0 | AI17: =SUM(AE17:AH17) -> 0 | AN17: =SUM(AJ17:AM17) -> 0 | AS17: =SUM(AO17:AR17) -> 0 | AX17: =SUM(AT17:AW17) -> 0 | BC17: =SUM(AY17:BB17) -> 0
B19: =Translation!A754 -> Pajisje | F19: =SUM(F20:F21) -> 0 | G19: 0 | H19: 0 | I19: 0 | J19: 0 | K19: 0 | L19: 0 | M19: 0 | N19: 0 | O19: 0 | P19: 0 | Q19: 0 | R19: 0 | S19: 0 | T19: 0 | U19: 0 | V19: 0 | W19: 0 | X19: 0 | Y19: 0 | Z19: 0 | AA19: 0 | AB19: 0 | AC19: 0 | AD19: 0 | AE19: 0 | AF19: 0 | AG19: 0 | AH19: 0 | AI19: 0 | AJ19: 0 | AK19: 0 | AL19: 0 | AM19: 0 | AN19: 0 | AO19: 0 | AP19: 0 | AQ19: 0 | AR19: 0 | AS19: 0 | AT19: 0 | AU19: 0 | AV19: 0 | AW19: 0 | AX19: 0 | AY19: 0 | AZ19: 0 | BA19: 0 | BB19: 0 | BC19: 0
B20: =Translation!A755 -> - Pajisjet elektrike dhe mekanike të termocentralit | J20: =SUM(F20:I20) -> 0 | O20: =SUM(K20:N20) -> 0 | T20: =SUM(P20:S20) -> 0 | Y20: =SUM(U20:X20) -> 0 | AD20: =SUM(Z20:AC20) -> 0 | AI20: =SUM(AE20:AH20) -> 0 | AN20: =SUM(AJ20:AM20) -> 0 | AS20: =SUM(AO20:AR20) -> 0 | AX20: =SUM(AT20:AW20) -> 0 | BC20: =SUM(AY20:BB20) -> 0
B21: =Translation!A756 -> - Pajisje të tjera të përdorura në prodhimin e energjisë elektrike | J21: =SUM(F21:I21) -> 0 | O21: =SUM(K21:N21) -> 0 | T21: =SUM(P21:S21) -> 0 | Y21: =SUM(U21:X21) -> 0 | AD21: =SUM(Z21:AC21) -> 0 | AI21: =SUM(AE21:AH21) -> 0 | AN21: =SUM(AJ21:AM21) -> 0 | AS21: =SUM(AO21:AR21) -> 0 | AX21: =SUM(AT21:AW21) -> 0 | BC21: =SUM(AY21:BB21) -> 0
B23: =Translation!A758 -> Tjera | F23: =SUM(F24:F25) -> 0 | G23: 0 | H23: 0 | I23: 0 | J23: 0 | K23: 0 | L23: 0 | M23: 0 | N23: 0 | O23: 0 | P23: 0 | Q23: 0 | R23: 0 | S23: 0 | T23: 0 | U23: 0 | V23: 0 | W23: 0 | X23: 0 | Y23: 0 | Z23: 0 | AA23: 0 | AB23: 0 | AC23: 0 | AD23: 0 | AE23: 0 | AF23: 0 | AG23: 0 | AH23: 0 | AI23: 0 | AJ23: 0 | AK23: 0 | AL23: 0 | AM23: 0 | AN23: 0 | AO23: 0 | AP23: 0 | AQ23: 0 | AR23: 0 | AS23: 0 | AT23: 0 | AU23: 0 | AV23: 0 | AW23: 0 | AX23: 0 | AY23: 0 | AZ23: 0 | BA23: 0 | BB23: 0 | BC23: 0
B24: =Translation!A759 -> - Mjete | J24: =SUM(F24:I24) -> 0 | O24: =SUM(K24:N24) -> 0 | T24: =SUM(P24:S24) -> 0 | Y24: =SUM(U24:X24) -> 0 | AD24: =SUM(Z24:AC24) -> 0 | AI24: =SUM(AE24:AH24) -> 0 | AN24: =SUM(AJ24:AM24) -> 0 | AS24: =SUM(AO24:AR24) -> 0 | AX24: =SUM(AT24:AW24) -> 0 | BC24: =SUM(AY24:BB24) -> 0
B25: =Translation!A760 -> - Automjete | J25: =SUM(F25:I25) -> 0 | O25: =SUM(K25:N25) -> 0 | T25: =SUM(P25:S25) -> 0 | Y25: =SUM(U25:X25) -> 0 | AD25: =SUM(Z25:AC25) -> 0 | AI25: =SUM(AE25:AH25) -> 0 | AN25: =SUM(AJ25:AM25) -> 0 | AS25: =SUM(AO25:AR25) -> 0 | AX25: =SUM(AT25:AW25) -> 0 | BC25: =SUM(AY25:BB25) -> 0
B27: =Translation!A762 -> Mirëmbajtjet e tjera | J27: =SUM(F27:I27) -> 0 | O27: =SUM(K27:N27) -> 0 | T27: =SUM(P27:S27) -> 0 | Y27: =SUM(U27:X27) -> 0 | AD27: =SUM(Z27:AC27) -> 0 | AI27: =SUM(AE27:AH27) -> 0 | AN27: =SUM(AJ27:AM27) -> 0 | AS27: =SUM(AO27:AR27) -> 0 | AX27: =SUM(AT27:AW27) -> 0 | BC27: =SUM(AY27:BB27) -> 0
B29: =Translation!A764 -> MIRËMBAJTJA e paplanifikuar | F29: =F31+F35+F39+F43 -> 0 | G29: =G31+G35+G39+G43 -> 0 | H29: 0 | I29: 0 | J29: 0 | K29: 0 | L29: 0 | M29: 0 | N29: 0 | O29: 0 | P29: 0 | Q29: 0 | R29: 0 | S29: 0 | T29: 0 | U29: 0 | V29: 0 | W29: 0 | X29: 0 | Y29: 0 | Z29: 0 | AA29: 0 | AB29: 0 | AC29: 0 | AD29: 0 | AE29: 0 | AF29: 0 | AG29: 0 | AH29: 0 | AI29: 0 | AJ29: 0 | AK29: 0 | AL29: 0 | AM29: 0 | AN29: 0 | AO29: 0 | AP29: 0 | AQ29: 0 | AR29: 0 | AS29: 0 | AT29: 0 | AU29: 0 | AV29: 0 | AW29: 0 | AX29: 0 | AY29: 0 | AZ29: 0 | BA29: 0 | BB29: 0 | BC29: 0
B31: =Translation!A766 -> Ndërtesat | F31: =SUM(F32:F33) -> 0 | G31: 0 | H31: 0 | I31: 0 | J31: 0 | K31: 0 | L31: 0 | M31: 0 | N31: 0 | O31: 0 | P31: 0 | Q31: 0 | R31: 0 | S31: 0 | T31: 0 | U31: 0 | V31: 0 | W31: 0 | X31: 0 | Y31: 0 | Z31: 0 | AA31: 0 | AB31: 0 | AC31: 0 | AD31: 0 | AE31: 0 | AF31: 0 | AG31: 0 | AH31: 0 | AI31: 0 | AJ31: 0 | AK31: 0 | AL31: 0 | AM31: 0 | AN31: 0 | AO31: 0 | AP31: 0 | AQ31: 0 | AR31: 0 | AS31: 0 | AT31: 0 | AU31: 0 | AV31: 0 | AW31: 0 | AX31: 0 | AY31: 0 | AZ31: 0 | BA31: 0 | BB31: 0 | BC31: 0
B32: =Translation!A767 -> - ndërtesa e Termocentralit | J32: =SUM(F32:I32) -> 0 | O32: =SUM(K32:N32) -> 0 | T32: =SUM(P32:S32) -> 0 | Y32: =SUM(U32:X32) -> 0 | AD32: =SUM(Z32:AC32) -> 0 | AI32: =SUM(AE32:AH32) -> 0 | AN32: =SUM(AJ32:AM32) -> 0 | AS32: =SUM(AO32:AR32) -> 0 | AX32: =SUM(AT32:AW32) -> 0 | BC32: =SUM(AY32:BB32) -> 0
B33: =Translation!A768 -> - Ndërtesat e tjera | J33: =SUM(F33:I33) -> 0 | O33: =SUM(K33:N33) -> 0 | T33: =SUM(P33:S33) -> 0 | Y33: =SUM(U33:X33) -> 0 | AD33: =SUM(Z33:AC33) -> 0 | AI33: =SUM(AE33:AH33) -> 0 | AN33: =SUM(AJ33:AM33) -> 0 | AS33: =SUM(AO33:AR33) -> 0 | AX33: =SUM(AT33:AW33) -> 0 | BC33: =SUM(AY33:BB33) -> 0
B35: =Translation!A770 -> Pajisje | F35: =SUM(F36:F37) -> 0 | G35: 0 | H35: 0 | I35: 0 | J35: 0 | K35: 0 | L35: 0 | M35: 0 | N35: 0 | O35: 0 | P35: 0 | Q35: 0 | R35: 0 | S35: 0 | T35: 0 | U35: 0 | V35: 0 | W35: 0 | X35: 0 | Y35: 0 | Z35: 0 | AA35: 0 | AB35: 0 | AC35: 0 | AD35: 0 | AE35: 0 | AF35: 0 | AG35: 0 | AH35: 0 | AI35: 0 | AJ35: 0 | AK35: 0 | AL35: 0 | AM35: 0 | AN35: 0 | AO35: 0 | AP35: 0 | AQ35: 0 | AR35: 0 | AS35: 0 | AT35: 0 | AU35: 0 | AV35: 0 | AW35: 0 | AX35: 0 | AY35: 0 | AZ35: 0 | BA35: 0 | BB35: 0 | BC35: 0
B36: =Translation!A771 -> - Pajisjet elektrike dhe mekanike të termocentralit | J36: =SUM(F36:I36) -> 0 | O36: =SUM(K36:N36) -> 0 | T36: =SUM(P36:S36) -> 0 | Y36: =SUM(U36:X36) -> 0 | AD36: =SUM(Z36:AC36) -> 0 | AI36: =SUM(AE36:AH36) -> 0 | AN36: =SUM(AJ36:AM36) -> 0 | AS36: =SUM(AO36:AR36) -> 0 | AX36: =SUM(AT36:AW36) -> 0 | BC36: =SUM(AY36:BB36) -> 0
B37: =Translation!A772 -> - Pajisje të tjera të përdorura në prodhimin e energjisë elektrike | J37: =SUM(F37:I37) -> 0 | O37: =SUM(K37:N37) -> 0 | T37: =SUM(P37:S37) -> 0 | Y37: =SUM(U37:X37) -> 0 | AD37: =SUM(Z37:AC37) -> 0 | AI37: =SUM(AE37:AH37) -> 0 | AN37: =SUM(AJ37:AM37) -> 0 | AS37: =SUM(AO37:AR37) -> 0 | AX37: =SUM(AT37:AW37) -> 0 | BC37: =SUM(AY37:BB37) -> 0
B39: =Translation!A774 -> Tjera | F39: =SUM(F40:F41) -> 0 | G39: 0 | H39: 0 | I39: 0 | J39: 0 | K39: 0 | L39: 0 | M39: 0 | N39: 0 | O39: 0 | P39: 0 | Q39: 0 | R39: 0 | S39: 0 | T39: 0 | U39: 0 | V39: 0 | W39: 0 | X39: 0 | Y39: 0 | Z39: 0 | AA39: 0 | AB39: 0 | AC39: 0 | AD39: 0 | AE39: 0 | AF39: 0 | AG39: 0 | AH39: 0 | AI39: 0 | AJ39: 0 | AK39: 0 | AL39: 0 | AM39: 0 | AN39: 0 | AO39: 0 | AP39: 0 | AQ39: 0 | AR39: 0 | AS39: 0 | AT39: 0 | AU39: 0 | AV39: 0 | AW39: 0 | AX39: 0 | AY39: 0 | AZ39: 0 | BA39: 0 | BB39: 0 | BC39: 0
B40: =Translation!A775 -> - Mjete | J40: =SUM(F40:I40) -> 0 | O40: =SUM(K40:N40) -> 0 | T40: =SUM(P40:S40) -> 0 | Y40: =SUM(U40:X40) -> 0 | AD40: =SUM(Z40:AC40) -> 0 | AI40: =SUM(AE40:AH40) -> 0 | AN40: =SUM(AJ40:AM40) -> 0 | AS40: =SUM(AO40:AR40) -> 0 | AX40: =SUM(AT40:AW40) -> 0 | BC40: =SUM(AY40:BB40) -> 0
B41: =Translation!A776 -> - Automjete | J41: =SUM(F41:I41) -> 0 | O41: =SUM(K41:N41) -> 0 | T41: =SUM(P41:S41) -> 0 | Y41: =SUM(U41:X41) -> 0 | AD41: =SUM(Z41:AC41) -> 0 | AI41: =SUM(AE41:AH41) -> 0 | AN41: =SUM(AJ41:AM41) -> 0 | AS41: =SUM(AO41:AR41) -> 0 | AX41: =SUM(AT41:AW41) -> 0 | BC41: =SUM(AY41:BB41) -> 0
B43: =Translation!A778 -> Mirëmbajtjet e tjera | J43: =SUM(F43:I43) -> 0 | O43: =SUM(K43:N43) -> 0 | T43: =SUM(P43:S43) -> 0 | Y43: =SUM(U43:X43) -> 0 | AD43: =SUM(Z43:AC43) -> 0 | AI43: =SUM(AE43:AH43) -> 0 | AN43: =SUM(AJ43:AM43) -> 0 | AS43: =SUM(AO43:AR43) -> 0 | AX43: =SUM(AT43:AW43) -> 0 | BC43: =SUM(AY43:BB43) -> 0
B45: =Translation!A780 -> Totali I mirëmbajtjes | F45: =F29+F13 -> 0 | G45: =G29+G13 -> 0 | H45: 0 | I45: 0 | J45: 0 | K45: 0 | L45: 0 | M45: 0 | N45: 0 | O45: 0 | P45: 0 | Q45: 0 | R45: 0 | S45: 0 | T45: 0 | U45: 0 | V45: 0 | W45: 0 | X45: 0 | Y45: 0 | Z45: 0 | AA45: 0 | AB45: 0 | AC45: 0 | AD45: 0 | AE45: 0 | AF45: 0 | AG45: 0 | AH45: 0 | AI45: 0 | AJ45: 0 | AK45: 0 | AL45: 0 | AM45: 0 | AN45: 0 | AO45: 0 | AP45: 0 | AQ45: 0 | AR45: 0 | AS45: 0 | AT45: 0 | AU45: 0 | AV45: 0 | AW45: 0 | AX45: 0 | AY45: 0 | AZ45: 0 | BA45: 0 | BB45: 0 | BC45: 0
B47: KOSOVO B
B48: =Translation!A748 -> Mirëmbajtja e rregullt | F48: =F50+F54+F58+F62 -> 0 | G48: 0 | H48: 0 | I48: 0 | J48: 0 | K48: 0 | L48: 0 | M48: 0 | N48: 0 | O48: 0 | P48: 0 | Q48: 0 | R48: 0 | S48: 0 | T48: 0 | U48: 0 | V48: 0 | W48: 0 | X48: 0 | Y48: 0 | Z48: 0 | AA48: 0 | AB48: 0 | AC48: 0 | AD48: 0 | AE48: 0 | AF48: 0 | AG48: 0 | AH48: 0 | AI48: 0 | AJ48: 0 | AK48: 0 | AL48: 0 | AM48: 0 | AN48: 0 | AO48: 0 | AP48: 0 | AQ48: 0 | AR48: 0 | AS48: 0 | AT48: 0 | AU48: 0 | AV48: 0 | AW48: 0 | AX48: 0 | AY48: 0 | AZ48: 0 | BA48: 0 | BB48: 0 | BC48: 0
B50: =Translation!A750 -> Ndërtesat | F50: =SUM(F51:F52) -> 0 | G50: 0 | H50: 0 | I50: 0 | J50: 0 | K50: 0 | L50: 0 | M50: 0 | N50: 0 | O50: 0 | P50: 0 | Q50: 0 | R50: 0 | S50: 0 | T50: 0 | U50: 0 | V50: 0 | W50: 0 | X50: 0 | Y50: 0 | Z50: 0 | AA50: 0 | AB50: 0 | AC50: 0 | AD50: 0 | AE50: 0 | AF50: 0 | AG50: 0 | AH50: 0 | AI50: 0 | AJ50: 0 | AK50: 0 | AL50: 0 | AM50: 0 | AN50: 0 | AO50: 0 | AP50: 0 | AQ50: 0 | AR50: 0 | AS50: 0 | AT50: 0 | AU50: 0 | AV50: 0 | AW50: 0 | AX50: 0 | AY50: 0 | AZ50: 0 | BA50: 0 | BB50: 0 | BC50: 0
B51: =Translation!A751 -> - ndërtesa e Termocentralit | J51: =SUM(F51:I51) -> 0 | O51: =SUM(K51:N51) -> 0 | T51: =SUM(P51:S51) -> 0 | Y51: =SUM(U51:X51) -> 0 | AD51: =SUM(Z51:AC51) -> 0 | AI51: =SUM(AE51:AH51) -> 0 | AN51: =SUM(AJ51:AM51) -> 0 | AS51: =SUM(AO51:AR51) -> 0 | AX51: =SUM(AT51:AW51) -> 0 | BC51: =SUM(AY51:BB51) -> 0
B52: =Translation!A752 -> - Ndërtesat e tjera | J52: =SUM(F52:I52) -> 0 | O52: =SUM(K52:N52) -> 0 | T52: =SUM(P52:S52) -> 0 | Y52: =SUM(U52:X52) -> 0 | AD52: =SUM(Z52:AC52) -> 0 | AI52: =SUM(AE52:AH52) -> 0 | AN52: =SUM(AJ52:AM52) -> 0 | AS52: =SUM(AO52:AR52) -> 0 | AX52: =SUM(AT52:AW52) -> 0 | BC52: =SUM(AY52:BB52) -> 0
B54: =Translation!A754 -> Pajisje | F54: =SUM(F55:F56) -> 0 | G54: 0 | H54: 0 | I54: 0 | J54: 0 | K54: 0 | L54: 0 | M54: 0 | N54: 0 | O54: 0 | P54: 0 | Q54: 0 | R54: 0 | S54: 0 | T54: 0 | U54: 0 | V54: 0 | W54: 0 | X54: 0 | Y54: 0 | Z54: 0 | AA54: 0 | AB54: 0 | AC54: 0 | AD54: 0 | AE54: 0 | AF54: 0 | AG54: 0 | AH54: 0 | AI54: 0 | AJ54: 0 | AK54: 0 | AL54: 0 | AM54: 0 | AN54: 0 | AO54: 0 | AP54: 0 | AQ54: 0 | AR54: 0 | AS54: 0 | AT54: 0 | AU54: 0 | AV54: 0 | AW54: 0 | AX54: 0 | AY54: 0 | AZ54: 0 | BA54: 0 | BB54: 0 | BC54: 0
B55: =Translation!A755 -> - Pajisjet elektrike dhe mekanike të termocentralit | J55: =SUM(F55:I55) -> 0 | O55: =SUM(K55:N55) -> 0 | T55: =SUM(P55:S55) -> 0 | Y55: =SUM(U55:X55) -> 0 | AD55: =SUM(Z55:AC55) -> 0 | AI55: =SUM(AE55:AH55) -> 0 | AN55: =SUM(AJ55:AM55) -> 0 | AS55: =SUM(AO55:AR55) -> 0 | AX55: =SUM(AT55:AW55) -> 0 | BC55: =SUM(AY55:BB55) -> 0
B56: =Translation!A756 -> - Pajisje të tjera të përdorura në prodhimin e energjisë elektrike | J56: =SUM(F56:I56) -> 0 | O56: =SUM(K56:N56) -> 0 | T56: =SUM(P56:S56) -> 0 | Y56: =SUM(U56:X56) -> 0 | AD56: =SUM(Z56:AC56) -> 0 | AI56: =SUM(AE56:AH56) -> 0 | AN56: =SUM(AJ56:AM56) -> 0 | AS56: =SUM(AO56:AR56) -> 0 | AX56: =SUM(AT56:AW56) -> 0 | BC56: =SUM(AY56:BB56) -> 0
B58: =Translation!A758 -> Tjera | F58: =SUM(F59:F60) -> 0 | G58: 0 | H58: 0 | I58: 0 | J58: 0 | K58: 0 | L58: 0 | M58: 0 | N58: 0 | O58: 0 | P58: 0 | Q58: 0 | R58: 0 | S58: 0 | T58: 0 | U58: 0 | V58: 0 | W58: 0 | X58: 0 | Y58: 0 | Z58: 0 | AA58: 0 | AB58: 0 | AC58: 0 | AD58: 0 | AE58: 0 | AF58: 0 | AG58: 0 | AH58: 0 | AI58: 0 | AJ58: 0 | AK58: 0 | AL58: 0 | AM58: 0 | AN58: 0 | AO58: 0 | AP58: 0 | AQ58: 0 | AR58: 0 | AS58: 0 | AT58: 0 | AU58: 0 | AV58: 0 | AW58: 0 | AX58: 0 | AY58: 0 | AZ58: 0 | BA58: 0 | BB58: 0 | BC58: 0
B59: =Translation!A759 -> - Mjete | J59: =SUM(F59:I59) -> 0 | O59: =SUM(K59:N59) -> 0 | T59: =SUM(P59:S59) -> 0 | Y59: =SUM(U59:X59) -> 0 | AD59: =SUM(Z59:AC59) -> 0 | AI59: =SUM(AE59:AH59) -> 0 | AN59: =SUM(AJ59:AM59) -> 0 | AS59: =SUM(AO59:AR59) -> 0 | AX59: =SUM(AT59:AW59) -> 0 | BC59: =SUM(AY59:BB59) -> 0
B60: =Translation!A760 -> - Automjete | J60: =SUM(F60:I60) -> 0 | O60: =SUM(K60:N60) -> 0 | T60: =SUM(P60:S60) -> 0 | Y60: =SUM(U60:X60) -> 0 | AD60: =SUM(Z60:AC60) -> 0 | AI60: =SUM(AE60:AH60) -> 0 | AN60: =SUM(AJ60:AM60) -> 0 | AS60: =SUM(AO60:AR60) -> 0 | AX60: =SUM(AT60:AW60) -> 0 | BC60: =SUM(AY60:BB60) -> 0
B62: =Translation!A762 -> Mirëmbajtjet e tjera | J62: =SUM(F62:I62) -> 0 | O62: =SUM(K62:N62) -> 0 | T62: =SUM(P62:S62) -> 0 | Y62: =SUM(U62:X62) -> 0 | AD62: =SUM(Z62:AC62) -> 0 | AI62: =SUM(AE62:AH62) -> 0 | AN62: =SUM(AJ62:AM62) -> 0 | AS62: =SUM(AO62:AR62) -> 0 | AX62: =SUM(AT62:AW62) -> 0 | BC62: =SUM(AY62:BB62) -> 0
B64: =Translation!A764 -> MIRËMBAJTJA e paplanifikuar | F64: =F66+F70+F74+F78 -> 0 | G64: =G66+G70+G74+G78 -> 0 | H64: 0 | I64: 0 | J64: 0 | K64: 0 | L64: 0 | M64: 0 | N64: 0 | O64: 0 | P64: 0 | Q64: 0 | R64: 0 | S64: 0 | T64: 0 | U64: 0 | V64: 0 | W64: 0 | X64: 0 | Y64: 0 | Z64: 0 | AA64: 0 | AB64: 0 | AC64: 0 | AD64: 0 | AE64: 0 | AF64: 0 | AG64: 0 | AH64: 0 | AI64: 0 | AJ64: 0 | AK64: 0 | AL64: 0 | AM64: 0 | AN64: 0 | AO64: 0 | AP64: 0 | AQ64: 0 | AR64: 0 | AS64: 0 | AT64: 0 | AU64: 0 | AV64: 0 | AW64: 0 | AX64: 0 | AY64: 0 | AZ64: 0 | BA64: 0 | BB64: 0 | BC64: 0
B66: =Translation!A766 -> Ndërtesat | F66: =SUM(F67:F68) -> 0 | G66: 0 | H66: 0 | I66: 0 | J66: 0 | K66: 0 | L66: 0 | M66: 0 | N66: 0 | O66: 0 | P66: 0 | Q66: 0 | R66: 0 | S66: 0 | T66: 0 | U66: 0 | V66: 0 | W66: 0 | X66: 0 | Y66: 0 | Z66: 0 | AA66: 0 | AB66: 0 | AC66: 0 | AD66: 0 | AE66: 0 | AF66: 0 | AG66: 0 | AH66: 0 | AI66: 0 | AJ66: 0 | AK66: 0 | AL66: 0 | AM66: 0 | AN66: 0 | AO66: 0 | AP66: 0 | AQ66: 0 | AR66: 0 | AS66: 0 | AT66: 0 | AU66: 0 | AV66: 0 | AW66: 0 | AX66: 0 | AY66: 0 | AZ66: 0 | BA66: 0 | BB66: 0 | BC66: 0
B67: =Translation!A767 -> - ndërtesa e Termocentralit | J67: =SUM(F67:I67) -> 0 | O67: =SUM(K67:N67) -> 0 | T67: =SUM(P67:S67) -> 0 | Y67: =SUM(U67:X67) -> 0 | AD67: =SUM(Z67:AC67) -> 0 | AI67: =SUM(AE67:AH67) -> 0 | AN67: =SUM(AJ67:AM67) -> 0 | AS67: =SUM(AO67:AR67) -> 0 | AX67: =SUM(AT67:AW67) -> 0 | BC67: =SUM(AY67:BB67) -> 0
B68: =Translation!A768 -> - Ndërtesat e tjera | J68: =SUM(F68:I68) -> 0 | O68: =SUM(K68:N68) -> 0 | T68: =SUM(P68:S68) -> 0 | Y68: =SUM(U68:X68) -> 0 | AD68: =SUM(Z68:AC68) -> 0 | AI68: =SUM(AE68:AH68) -> 0 | AN68: =SUM(AJ68:AM68) -> 0 | AS68: =SUM(AO68:AR68) -> 0 | AX68: =SUM(AT68:AW68) -> 0 | BC68: =SUM(AY68:BB68) -> 0
B70: =Translation!A770 -> Pajisje | F70: =SUM(F71:F72) -> 0 | G70: 0 | H70: 0 | I70: 0 | J70: 0 | K70: 0 | L70: 0 | M70: 0 | N70: 0 | O70: 0 | P70: 0 | Q70: 0 | R70: 0 | S70: 0 | T70: 0 | U70: 0 | V70: 0 | W70: 0 | X70: 0 | Y70: 0 | Z70: 0 | AA70: 0 | AB70: 0 | AC70: 0 | AD70: 0 | AE70: 0 | AF70: 0 | AG70: 0 | AH70: 0 | AI70: 0 | AJ70: 0 | AK70: 0 | AL70: 0 | AM70: 0 | AN70: 0 | AO70: 0 | AP70: 0 | AQ70: 0 | AR70: 0 | AS70: 0 | AT70: 0 | AU70: 0 | AV70: 0 | AW70: 0 | AX70: 0 | AY70: 0 | AZ70: 0 | BA70: 0 | BB70: 0 | BC70: 0
B71: =Translation!A771 -> - Pajisjet elektrike dhe mekanike të termocentralit | J71: =SUM(F71:I71) -> 0 | O71: =SUM(K71:N71) -> 0 | T71: =SUM(P71:S71) -> 0 | Y71: =SUM(U71:X71) -> 0 | AD71: =SUM(Z71:AC71) -> 0 | AI71: =SUM(AE71:AH71) -> 0 | AN71: =SUM(AJ71:AM71) -> 0 | AS71: =SUM(AO71:AR71) -> 0 | AX71: =SUM(AT71:AW71) -> 0 | BC71: =SUM(AY71:BB71) -> 0
B72: =Translation!A772 -> - Pajisje të tjera të përdorura në prodhimin e energjisë elektrike | J72: =SUM(F72:I72) -> 0 | O72: =SUM(K72:N72) -> 0 | T72: =SUM(P72:S72) -> 0 | Y72: =SUM(U72:X72) -> 0 | AD72: =SUM(Z72:AC72) -> 0 | AI72: =SUM(AE72:AH72) -> 0 | AN72: =SUM(AJ72:AM72) -> 0 | AS72: =SUM(AO72:AR72) -> 0 | AX72: =SUM(AT72:AW72) -> 0 | BC72: =SUM(AY72:BB72) -> 0
B74: =Translation!A774 -> Tjera | F74: =SUM(F75:F76) -> 0 | G74: 0 | H74: 0 | I74: 0 | J74: 0 | K74: 0 | L74: 0 | M74: 0 | N74: 0 | O74: 0 | P74: 0 | Q74: 0 | R74: 0 | S74: 0 | T74: 0 | U74: 0 | V74: 0 | W74: 0 | X74: 0 | Y74: 0 | Z74: 0 | AA74: 0 | AB74: 0 | AC74: 0 | AD74: 0 | AE74: 0 | AF74: 0 | AG74: 0 | AH74: 0 | AI74: 0 | AJ74: 0 | AK74: 0 | AL74: 0 | AM74: 0 | AN74: 0 | AO74: 0 | AP74: 0 | AQ74: 0 | AR74: 0 | AS74: 0 | AT74: 0 | AU74: 0 | AV74: 0 | AW74: 0 | AX74: 0 | AY74: 0 | AZ74: 0 | BA74: 0 | BB74: 0 | BC74: 0
B75: =Translation!A775 -> - Mjete | J75: =SUM(F75:I75) -> 0 | O75: =SUM(K75:N75) -> 0 | T75: =SUM(P75:S75) -> 0 | Y75: =SUM(U75:X75) -> 0 | AD75: =SUM(Z75:AC75) -> 0 | AI75: =SUM(AE75:AH75) -> 0 | AN75: =SUM(AJ75:AM75) -> 0 | AS75: =SUM(AO75:AR75) -> 0 | AX75: =SUM(AT75:AW75) -> 0 | BC75: =SUM(AY75:BB75) -> 0
B76: =Translation!A776 -> - Automjete | J76: =SUM(F76:I76) -> 0 | O76: =SUM(K76:N76) -> 0 | T76: =SUM(P76:S76) -> 0 | Y76: =SUM(U76:X76) -> 0 | AD76: =SUM(Z76:AC76) -> 0 | AI76: =SUM(AE76:AH76) -> 0 | AN76: =SUM(AJ76:AM76) -> 0 | AS76: =SUM(AO76:AR76) -> 0 | AX76: =SUM(AT76:AW76) -> 0 | BC76: =SUM(AY76:BB76) -> 0
B78: =Translation!A778 -> Mirëmbajtjet e tjera | F78: 0 | G78: 0 | H78: 0 | I78: 0 | J78: 0 | K78: 0 | L78: 0 | M78: 0 | N78: 0 | O78: 0 | P78: 0 | Q78: 0 | R78: 0 | S78: 0 | T78: 0 | U78: 0 | V78: 0 | W78: 0 | X78: 0 | Y78: 0 | Z78: 0 | AA78: 0 | AB78: 0 | AC78: 0 | AD78: 0 | AE78: 0 | AF78: 0 | AG78: 0 | AH78: 0 | AI78: 0 | AJ78: 0 | AK78: 0 | AL78: 0 | AM78: 0 | AN78: 0 | AO78: 0 | AP78: 0 | AQ78: 0 | AR78: 0 | AS78: 0 | AT78: 0 | AU78: 0 | AV78: 0 | AW78: 0 | AX78: 0 | AY78: 0 | AZ78: 0 | BA78: 0 | BB78: 0 | BC78: 0
B80: =Translation!A780 -> Totali I mirëmbajtjes | F80: =F64+F48 -> 0 | G80: =G64+G48 -> 0 | H80: 0 | I80: 0 | J80: 0 | K80: 0 | L80: 0 | M80: 0 | N80: 0 | O80: 0 | P80: 0 | Q80: 0 | R80: 0 | S80: 0 | T80: 0 | U80: 0 | V80: 0 | W80: 0 | X80: 0 | Y80: 0 | Z80: 0 | AA80: 0 | AB80: 0 | AC80: 0 | AD80: 0 | AE80: 0 | AF80: 0 | AG80: 0 | AH80: 0 | AI80: 0 | AJ80: 0 | AK80: 0 | AL80: 0 | AM80: 0 | AN80: 0 | AO80: 0 | AP80: 0 | AQ80: 0 | AR80: 0 | AS80: 0 | AT80: 0 | AU80: 0 | AV80: 0 | AW80: 0 | AX80: 0 | AY80: 0 | AZ80: 0 | BA80: 0 | BB80: 0 | BC80: 0

Sheet GN2 OPEX (GEN b) KEK
A6: =Translation!A949 -> Shqyrtimi SHVT 2013-2017
A7: =Translation!A788 -> GJN 2 | B7: =Translation!A789 -> Kostot operative
B9: =Translation!A663 -> O & M | D9: ='GN1 OPEX (GEN a) KEK'!D11 -> Kodi I llogarisë | F9: 2008 | G9: 2009 | H9: 2010 | I9: 2011 | J9: 2012 | K9: 2013 | L9: 2014 | M9: 2015 | N9: 2016 | O9: 2017
B10: =Translation!A664 -> Zëri | F10: ='MN7 P&L MIN KEK'!F10 -> Aktuale (€ '000) | G10: ='MN7 P&L MIN KEK'!G10 -> Aktuale (€ '000) | H10: ='MN7 P&L MIN KEK'!H10 -> Aktuale (€ '000) | I10: ='MN7 P&L MIN KEK'!I10 -> Aktuale (€ '000) | J10: ='MN7 P&L MIN KEK'!J10 -> Vlerësimi (€ '000) | K10: ='MN7 P&L MIN KEK'!K10 -> Parashikimi (€ '000) | L10: ='MN7 P&L MIN KEK'!L10 -> Parashikimi (€ '000) | M10: ='MN7 P&L MIN KEK'!M10 -> Parashikimi (€ '000) | N10: ='MN7 P&L MIN KEK'!N10 -> Parashikimi (€ '000) | O10: ='MN7 P&L MIN KEK'!O10 -> Parashikimi (€ '000)
B11: KOSOVO A
B12: =Translation!A791 -> KOSTOT e ndryshueshme | F12: =F14+F19+F25+F29+F33 -> 0 | G12: =G14+G19+G25+G29+G33 -> 0 | H12: 0 | I12: 0 | J12: 0 | K12: 0 | L12: 0 | M12: 0 | N12: 0 | O12: 0
B14: =Translation!A793 -> Shpenzimet e karburantit | F14: =SUM(F15:F17) -> 0 | G14: 0 | H14: 0 | I14: 0 | J14: 0 | K14: 0 | L14: 0 | M14: 0 | N14: 0 | O14: 0
B15: =Translation!A794 -> - Qymyri
B16: =Translation!A795 -> - Vaj
B17: =Translation!A796 -> - Lëndë djegëse të tjera të lëngshme
B19: =Translation!A798 -> Kostoja e materialit | F19: =SUM(F20:F23) -> 0 | G19: 0 | H19: 0 | I19: 0 | J19: 0 | K19: 0 | L19: 0 | M19: 0 | N19: 0 | O19: 0
B20: =Translation!A799 -> - Kemikalje
B21: =Translation!A800 -> - Përdorimi i ujit
B22: =Translation!A801 -> - Shpenzimet materiale
B23: =Translation!A802 -> - Kostot e energjisë
B25: =Translation!A804 -> Shpenzimet e përkohshme të stafit | F25: =SUM(F26:F27) -> 0 | G25: 0 | H25: 0 | I25: 0 | J25: 0 | K25: 0 | L25: 0 | M25: 0 | N25: 0 | O25: 0
B26: =Translation!A805 -> - Kostot e pagave
B27: =Translation!A806 -> - Shpenzimet e personelit të tjera
B29: =Translation!A808 -> Taksat | F29: =SUM(F30:F31) -> 0 | G29: 0 | H29: 0 | I29: 0 | J29: 0 | K29: 0 | L29: 0 | M29: 0 | N29: 0 | O29: 0
B30: =Translation!A809 -> - Përdorimi i ujit tarifat
B31: =Translation!A810 -> - Kostoe Tarifave të emetimit
B33: =Translation!A812 -> Kostot e mirëmbajtjes | F33: ='GN1 OPEX (GEN a) KEK'!J45 -> 0 | G33: ='GN1 OPEX (GEN a) KEK'!O45 -> 0 | H33: ='GN1 OPEX (GEN a) KEK'!T45 -> 0 | I33: ='GN1 OPEX (GEN a) KEK'!Y45 -> 0 | J33: ='GN1 OPEX (GEN a) KEK'!AD45 -> 0 | K33: ='GN1 OPEX (GEN a) KEK'!AI45 -> 0 | L33: ='GN1 OPEX (GEN a) KEK'!AN45 -> 0 | M33: ='GN1 OPEX (GEN a) KEK'!AS45 -> 0 | N33: ='GN1 OPEX (GEN a) KEK'!AX45 -> 0 | O33: ='GN1 OPEX (GEN a) KEK'!BC45 -> 0
B35: =Translation!A814 -> Kostot fikse | F35: =F37+F39+F44+F49+F51 -> 0 | G35: =G37+G39+G44+G49+G51 -> 0 | H35: 0 | I35: 0 | J35: 0 | K35: 0 | L35: 0 | M35: 0 | N35: 0 | O35: 0
B37: =Translation!A816 -> Zhvlerësimi
B39: =Translation!A818 -> Kostojae punonjësve | F39: =F40+F41 -> 0 | G39: =G40+G41 -> 0 | H39: 0 | I39: 0 | J39: 0 | K39: 0 | L39: 0 | M39: 0 | N39: 0 | O39: 0
B40: =Translation!A819 -> Kostot e pagave
B41: =Translation!A820 -> Shpenzimet tjera të personelit
B44: =Translation!A823 -> Taksat | F44: =SUM(F45:F47) -> 0 | G44: 0 | H44: 0 | I44: 0 | J44: 0 | K44: 0 | L44: 0 | M44: 0 | N44: 0 | O44: 0
B45: =Translation!A824 -> Ngarkesat OT
B46: =Translation!A825 -> Ngarkesate OS
B47: =Translation!A826 -> Tarifa e licencave
B49: =Translation!A828 -> Pjesa e shpenzimeve të korporatës
B51: =Translation!A830 -> Kostot tjera fikse
B52: KOSOVO B
B53: =Translation!A791 -> KOSTOT e ndryshueshme | F53: =F55+F60+F66+F70+F74 -> 0 | G53: =G55+G60+G66+G70+G74 -> 0 | H53: 0 | I53: 0 | J53: 0 | K53: 0 | L53: 0 | M53: 0 | N53: 0 | O53: 0
B55: =Translation!A793 -> Shpenzimet e karburantit | F55: =SUM(F56:F58) -> 0 | G55: 0 | H55: 0 | I55: 0 | J55: 0 | K55: 0 | L55: 0 | M55: 0 | N55: 0 | O55: 0
B56: =Translation!A794 -> - Qymyri
B57: =Translation!A795 -> - Vaj
B58: =Translation!A796 -> - Lëndë djegëse të tjera të lëngshme
B60: =Translation!A798 -> Kostoja e materialit | F60: =SUM(F61:F64) -> 0 | G60: 0 | H60: 0 | I60: 0 | J60: 0 | K60: 0 | L60: 0 | M60: 0 | N60: 0 | O60: 0
B61: =Translation!A799 -> - Kemikalje
B62: =Translation!A800 -> - Përdorimi i ujit
B63: =Translation!A801 -> - Shpenzimet materiale
B64: =Translation!A802 -> - Kostot e energjisë
B66: =Translation!A804 -> Shpenzimet e përkohshme të stafit | F66: =SUM(F67:F68) -> 0 | G66: 0 | H66: 0 | I66: 0 | J66: 0 | K66: 0 | L66: 0 | M66: 0 | N66: 0 | O66: 0
B67: =Translation!A805 -> - Kostot e pagave
B68: =Translation!A806 -> - Shpenzimet e personelit të tjera
B70: =Translation!A808 -> Taksat | F70: =SUM(F71:F72) -> 0 | G70: 0 | H70: 0 | I70: 0 | J70: 0 | K70: 0 | L70: 0 | M70: 0 | N70: 0 | O70: 0
B71: =Translation!A809 -> - Përdorimi i ujit tarifat
B72: =Translation!A810 -> - Kostoe Tarifave të emetimit
B74: =Translation!A812 -> Kostot e mirëmbajtjes | F74: ='GN1 OPEX (GEN a) KEK'!J86 -> 0 | G74: ='GN1 OPEX (GEN a) KEK'!O86 -> 0 | H74: ='GN1 OPEX (GEN a) KEK'!T86 -> 0 | I74: ='GN1 OPEX (GEN a) KEK'!Y86 -> 0 | J74: ='GN1 OPEX (GEN a) KEK'!AD86 -> 0 | K74: ='GN1 OPEX (GEN a) KEK'!AI86 -> 0 | L74: ='GN1 OPEX (GEN a) KEK'!AN86 -> 0 | M74: ='GN1 OPEX (GEN a) KEK'!AS86 -> 0 | N74: ='GN1 OPEX (GEN a) KEK'!AX86 -> 0 | O74: ='GN1 OPEX (GEN a) KEK'!BC86 -> 0
B76: =Translation!A814 -> Kostot fikse | F76: =F78+F80+F85+F90+F92 -> 0 | G76: =G78+G80+G85+G90+G92 -> 0 | H76: 0 | I76: 0 | J76: 0 | K76: 0 | L76: 0 | M76: 0 | N76: 0 | O76: 0
B78: =Translation!A816 -> Zhvlerësimi
B80: =Translation!A818 -> Kostojae punonjësve | F80: =F81+F82 -> 0 | G80: =G81+G82 -> 0 | H80: 0 | I80: 0 | J80: 0 | K80: 0 | L80: 0 | M80: 0 | N80: 0 | O80: 0
B81: =Translation!A819 -> Kostot e pagave
B82: =Translation!A820 -> Shpenzimet tjera të personelit
B85: =Translation!A823 -> Taksat | F85: =SUM(F86:F88) -> 0 | G85: 0 | H85: 0 | I85: 0 | J85: 0 | K85: 0 | L85: 0 | M85: 0 | N85: 0 | O85: 0
B86: =Translation!A824 -> Ngarkesat OT
B87: =Translation!A825 -> Ngarkesate OS
B88: =Translation!A826 -> Tarifa e licencave
B90: =Translation!A828 -> Pjesa e shpenzimeve të korporatës
B92: =Translation!A830 -> Kostot tjera fikse

Sheet GN2a Other (GEN) KEK
A6: =Translation!A949 -> Shqyrtimi SHVT 2013-2017
A7: =Translation!A832 -> GJN2a - Shpenzimet-TJERA (KEK GEN)
B8: KOSOVO A
B9: =Translation!A27 -> OPEX | F9: 2008 | G9: 2009 | H9: 2010 | I9: 2011 | J9: 2012 | K9: 2013 | L9: 2014 | M9: 2015 | N9: 2016 | O9: 2017
B10: =Translation!A209 -> OPEX tjera | D10: =Translation!A60 -> Kodi I Llogarive | F10: ='GN2 OPEX (GEN b) KEK'!F10 -> Aktuale (€ '000) | G10: ='GN2 OPEX (GEN b) KEK'!G10 -> Aktuale (€ '000) | H10: ='GN2 OPEX (GEN b) KEK'!H10 -> Aktuale (€ '000) | I10: ='GN2 OPEX (GEN b) KEK'!I10 -> Aktuale (€ '000) | J10: ='GN2 OPEX (GEN b) KEK'!J10 -> Vlerësimi (€ '000) | K10: ='GN2 OPEX (GEN b) KEK'!K10 -> Parashikimi (€ '000) | L10: ='GN2 OPEX (GEN b) KEK'!L10 -> Parashikimi (€ '000) | M10: ='GN2 OPEX (GEN b) KEK'!M10 -> Parashikimi (€ '000) | N10: ='GN2 OPEX (GEN b) KEK'!N10 -> Parashikimi (€ '000) | O10: ='GN2 OPEX (GEN b) KEK'!O10 -> Parashikimi (€ '000)
B12: =Translation!$A$30 -> Shpenzimet e personelit
B13: =Translation!$A$31 -> Pagat (neto)
B14: =Translation!$A$32 -> Kontributi pensional dhe taksat
B15: =Translation!$A$33 -> Tjera
B16: =Translation!$A$34 -> Elektrike dhe të tjera
B17: =Translation!$A$35 -> Blerjet e Energjisë Elektrike
B18: =Translation!$A$36 -> Shkëmbimi i energjisë elektrike
B19: =Translation!$A$37 -> Karburante
B20: =Translation!$A$38 -> Gaz dhe ujë
B21: =Translation!$A$39 -> Transmetimi i energjisë elektrike
B22: =Translation!$A$40 -> Mirëmbajtje
B23: =Translation!$A$41 -> Shërbimet Riparuese
B24: =Translation!$A$42 -> Shërbime të Mirëmbajtjes
B25: =Translation!$A$43 -> Materiale dhe Furnizime
B26: =Translation!$A$44 -> Zhvlerësimi dhe amortizimi
B27: =Translation!$A$45 -> Sigurimi për shlyerjen e inventarit
B28: =Translation!$A$46 -> Humbja e Zhvlerësimit të të arkëtueshmeve
B29: =Translation!$A$47 -> Dispozitat për çështjet mjedisore
B30: =Translation!$A$48 -> Shpenzime të tjera operative
B31: =Translation!$A$49 -> Shërbimet e transportit
B32: =Translation!$A$50 -> Shpenzimet e sigurimit
B33: =Translation!$A$51 -> Taksat koncesionare
B34: =Translation!$A$52 -> Licencat
B35: =Translation!$A$53 -> Shpenzime të tjera
B36: =Translation!$A$54 -> Shpenzimet e brendshme
B37: =Translation!$A$55 -> Kostoja e qymyrit nga Minierat
B38: =Translation!$A$56 -> Kostoja e energjisë elektrike dhe shërbimeve të shpërndarjes
B39: =Translation!$A$73 -> Total | F39: =SUM(F13:F38) -> 0 | G39: 0 | H39: 0 | I39: 0 | J39: 0 | K39: 0 | L39: 0 | M39: 0 | N39: 0 | O39: 0
B41: =Translation!A225 -> Capex | F41: 2008 | G41: 2009 | H41: 2010 | I41: 2011 | J41: 2012 | K41: 2013 | L41: 2014 | M41: 2015 | N41: 2016 | O41: 2017
B42: =Translation!A226 -> Projeket jo Capex | D42: =D10 -> Kodi I Llogarive | F42: =F10 -> Aktuale (€ '000) | G42: Aktuale (€ '000) | H42: Aktuale (€ '000) | I42: Aktuale (€ '000) | J42: Vlerësimi (€ '000) | K42: Parashikimi (€ '000) | L42: Parashikimi (€ '000) | M42: Parashikimi (€ '000) | N42: Parashikimi (€ '000) | O42: Parashikimi (€ '000)
B44: =Translation!A228 -> Mjetet dhe Pajisjet
B45: =Translation!A229 -> Prona dhe Toka
B46: =Translation!A230 -> Te tjera 1
B47: =Translation!A231 -> Te tjera 2
B48: =Translation!A232 -> Te tjera 3
B49: =Translation!A224 -> Shto rreshtat shtese me larte
B50: KOSOVO B
B51: =B9 -> OPEX | F51: 2008 | G51: 2009 | H51: 2010 | I51: 2011 | J51: 2012 | K51: 2013 | L51: 2014 | M51: 2015 | N51: 2016 | O51: 2017
B52: =B10 -> OPEX tjera | D52: =D10 -> Kodi I Llogarive | F52: =F42 -> Aktuale (€ '000) | G52: Aktuale (€ '000) | H52: Aktuale (€ '000) | I52: Aktuale (€ '000) | J52: Vlerësimi (€ '000) | K52: Parashikimi (€ '000) | L52: Parashikimi (€ '000) | M52: Parashikimi (€ '000) | N52: Parashikimi (€ '000) | O52: Parashikimi (€ '000)
B54: =Translation!$A$30 -> Shpenzimet e personelit
B55: =Translation!$A$31 -> Pagat (neto)
B56: =Translation!$A$32 -> Kontributi pensional dhe taksat
B57: =Translation!$A$33 -> Tjera
B58: =Translation!$A$34 -> Elektrike dhe të tjera
B59: =Translation!$A$35 -> Blerjet e Energjisë Elektrike
B60: =Translation!$A$36 -> Shkëmbimi i energjisë elektrike
B61: =Translation!$A$37 -> Karburante
B62: =Translation!$A$38 -> Gaz dhe ujë
B63: =Translation!$A$39 -> Transmetimi i energjisë elektrike
B64: =Translation!$A$40 -> Mirëmbajtje
B65: =Translation!$A$41 -> Shërbimet Riparuese
B66: =Translation!$A$42 -> Shërbime të Mirëmbajtjes
B67: =Translation!$A$43 -> Materiale dhe Furnizime
B68: =Translation!$A$44 -> Zhvlerësimi dhe amortizimi
B69: =Translation!$A$45 -> Sigurimi për shlyerjen e inventarit
B70: =Translation!$A$46 -> Humbja e Zhvlerësimit të të arkëtueshmeve
B71: =Translation!$A$47 -> Dispozitat për çështjet mjedisore
B72: =Translation!$A$48 -> Shpenzime të tjera operative
B73: =Translation!$A$49 -> Shërbimet e transportit
B74: =Translation!$A$50 -> Shpenzimet e sigurimit
B75: =Translation!$A$51 -> Taksat koncesionare
B76: =Translation!$A$52 -> Licencat
B77: =Translation!$A$53 -> Shpenzime të tjera
B78: =Translation!$A$54 -> Shpenzimet e brendshme
B79: =Translation!$A$55 -> Kostoja e qymyrit nga Minierat
B80: =Translation!$A$56 -> Kostoja e energjisë elektrike dhe shërbimeve të shpërndarjes
B81: =Translation!$A$73 -> Total | F81: =SUM(F55:F80) -> 0 | G81: 0 | H81: 0 | I81: 0 | J81: 0 | K81: 0 | L81: 0 | M81: 0 | N81: 0 | O81: 0
B83: =B41 -> Capex | F83: 2008 | G83: 2009 | H83: 2010 | I83: 2011 | J83: 2012 | K83: 2013 | L83: 2014 | M83: 2015 | N83: 2016 | O83: 2017
B84: =B42 -> Projeket jo Capex | D84: =D52 -> Kodi I Llogarive | F84: =F52 -> Aktuale (€ '000) | G84: Aktuale (€ '000) | H84: Aktuale (€ '000) | I84: Aktuale (€ '000) | J84: Vlerësimi (€ '000) | K84: Parashikimi (€ '000) | L84: Parashikimi (€ '000) | M84: Parashikimi (€ '000) | N84: Parashikimi (€ '000) | O84: Parashikimi (€ '000)
B86: =Translation!A228 -> Mjetet dhe Pajisjet
B87: =Translation!A229 -> Prona dhe Toka
B88: =Translation!A230 -> Te tjera 1
B89: =Translation!A231 -> Te tjera 2
B90: =Translation!A232 -> Te tjera 3
B91: =Translation!A224 -> Shto rreshtat shtese me larte

Sheet GN3 Driver GEN KEK
A6: =Translation!A949 -> Shqyrtimi SHVT 2013-2017
A7: =Translation!A834 -> GJN 3 | B7: =Translation!A835 -> Vëllimi 1
B9: =Translation!A837 -> Vëllimet | D9: =Translation!A391 -> Njësi | F9: 2008 | G9: 2009 | H9: 2010 | I9: 2011 | J9: 2012 | K9: 2013 | L9: 2014 | M9: 2015 | N9: 2016 | O9: 2017
F10: ='GN2a Other (GEN) KEK'!F10 -> Aktuale (€ '000) | G10: ='GN2a Other (GEN) KEK'!G10 -> Aktuale (€ '000) | H10: ='GN2a Other (GEN) KEK'!H10 -> Aktuale (€ '000) | I10: ='GN2a Other (GEN) KEK'!I10 -> Aktuale (€ '000) | J10: ='GN2a Other (GEN) KEK'!J10 -> Vlerësimi (€ '000) | K10: ='GN2a Other (GEN) KEK'!K10 -> Parashikimi (€ '000) | L10: ='GN2a Other (GEN) KEK'!L10 -> Parashikimi (€ '000) | M10: ='GN2a Other (GEN) KEK'!M10 -> Parashikimi (€ '000) | N10: ='GN2a Other (GEN) KEK'!N10 -> Parashikimi (€ '000) | O10: ='GN2a Other (GEN) KEK'!O10 -> Parashikimi (€ '000)
B11: KOSOVO A
B12: =Translation!A839 -> Nderprerjet | D12: hrs | F12: =SUM(F13:F14) -> 0 | G12: =SUM(G13:G14) -> 0 | H12: 0 | I12: 0 | J12: 0 | K12: 0 | L12: 0 | M12: 0 | N12: 0 | O12: 0
B13: =Translation!A840 -> - Ndërprerje e detyruar | D13: hrs
B14: =Translation!A841 -> - Ndërprerje e planifikuar (mirëmbajtje) | D14: hrs
B16: =Translation!A843 -> Disponueshmëria | D16: hrs | F16: =8760-F12 -> 8760 | G16: =8760-G12 -> 8760 | H16: 8760 | I16: 8760 | J16: 8760 | K16: 8760 | L16: 8760 | M16: 8760 | N16: 8760 | O16: 8760
B18: =Translation!A845 -> Kapacitetet e instaluara | D18: MW
B19: =Translation!A846 -> Neto Kapaciteti | D19: MW
B21: =Translation!A848 -> Shitjet e energjisë elektrike | D21: MWh | F21: =SUM(F22:F25) -> 0 | G21: =SUM(G22:G25) -> 0 | H21: 0 | I21: 0 | J21: 0 | K21: 0 | L21: 0 | M21: 0 | N21: 0 | O21: 0
B22: =Translation!A849 -> Konsumatori tarifor (FPEE) | D22: MWh
B23: =Translation!A850 -> Të tjera (konsumatorët e privilegjuar) | D23: MWh
B24: =Translation!A851 -> Eksporti | D24: MWh
B25: =Translation!A852 -> Shërbimet ndihmëse | D25: MWh
B27: FUEL CHARACTERISTICS
B28: =Translation!A855 -> Vlera mesatare kalorifike
B29: =Translation!A856 -> Qymyri | D29: GJ / t
B30: =Translation!A857 -> Vaj | D30: GJ / t
B31: =Translation!A858 -> Karburantet tjera | D31: GJ / t
B33: =Translation!A860 -> Përdorimi mesatar i karburantit
B34: =Translation!A856 -> Qymyri | D34: t
B35: =Translation!A857 -> Vaj | D35: t
B36: =Translation!A858 -> Karburantet tjera | D36: t
B37: KOSOVO B
B38: =B12 -> Nderprerjet | D38: hrs | F38: =SUM(F39:F40) -> 0 | G38: =SUM(G39:G40) -> 0 | H38: 0 | I38: 0 | J38: 0 | K38: 0 | L38: 0 | M38: 0 | N38: 0 | O38: 0
B39: =B13 -> - Ndërprerje e detyruar | D39: hrs
B40: - Ndërprerje e planifikuar (mirëmbajtje) | D40: hrs
B42: Disponueshmëria | D42: hrs | F42: =8760-F38 -> 8760 | G42: =8760-G38 -> 8760 | H42: 8760 | I42: 8760 | J42: 8760 | K42: 8760 | L42: 8760 | M42: 8760 | N42: 8760 | O42: 8760
B44: Kapacitetet e instaluara | D44: MW
B45: Neto Kapaciteti | D45: MW
B47: Shitjet e energjisë elektrike | D47: MWh | F47: =SUM(F48:F51) -> 0 | G47: =SUM(G48:G51) -> 0 | H47: 0 | I47: 0 | J47: 0 | K47: 0 | L47: 0 | M47: 0 | N47: 0 | O47: 0
B48: Konsumatori tarifor (FPEE) | D48: MWh
B49: Të tjera (konsumatorët e privilegjuar) | D49: MWh
B50: Eksporti | D50: MWh
B51: Shërbimet ndihmëse | D51: MWh
B53: FUEL CHARACTERISTICS
B54: Vlera mesatare kalorifike
B55: Qymyri | D55: GJ / t
B56: Vaj | D56: GJ / t
B57: Karburantet tjera | D57: GJ / t
B59: Përdorimi mesatar i karburantit
B60: Qymyri | D60: t
B61: Vaj | D61: t
B62: Karburantet tjera | D62: t

Sheet GN4 Driver GEN KEK
A6: =Translation!A949 -> Shqyrtimi SHVT 2013-2017
A7: =Translation!A862 -> GJN4 | B7: =Translation!A863 -> Vëllimi 2
B9: =Translation!A837 -> Vëllimet | D9: ='GN3 Driver GEN KEK'!D9:D10 -> Njësi | F9: 2008 | G9: 2009 | H9: 2010 | I9: 2011 | J9: 2012 | K9: 2013 | L9: 2014 | M9: 2015 | N9: 2016 | O9: 2017
F10: ='GN3 Driver GEN KEK'!F10 -> Aktuale (€ '000) | G10: ='GN3 Driver GEN KEK'!G10 -> Aktuale (€ '000) | H10: ='GN3 Driver GEN KEK'!H10 -> Aktuale (€ '000) | I10: ='GN3 Driver GEN KEK'!I10 -> Aktuale (€ '000) | J10: ='GN3 Driver GEN KEK'!J10 -> Vlerësimi (€ '000) | K10: ='GN3 Driver GEN KEK'!K10 -> Parashikimi (€ '000) | L10: ='GN3 Driver GEN KEK'!L10 -> Parashikimi (€ '000) | M10: ='GN3 Driver GEN KEK'!M10 -> Parashikimi (€ '000) | N10: ='GN3 Driver GEN KEK'!N10 -> Parashikimi (€ '000) | O10: ='GN3 Driver GEN KEK'!O10 -> Parashikimi (€ '000)
B12: KOSOVO A
B13: =Translation!A865 -> Shkalla e ndërprerjes së detyruar | D13: % | F13: ='GN3 Driver GEN KEK'!F13/8760 -> 0 | G13: ='GN3 Driver GEN KEK'!G13/8760 -> 0 | H13: ='GN3 Driver GEN KEK'!H13/8760 -> 0 | I13: ='GN3 Driver GEN KEK'!I13/8760 -> 0 | J13: ='GN3 Driver GEN KEK'!J13/8760 -> 0 | K13: ='GN3 Driver GEN KEK'!K13/8760 -> 0 | L13: ='GN3 Driver GEN KEK'!L13/8760 -> 0 | M13: ='GN3 Driver GEN KEK'!M13/8760 -> 0 | N13: ='GN3 Driver GEN KEK'!N13/8760 -> 0 | O13: ='GN3 Driver GEN KEK'!O13/8760 -> 0
B14: =Translation!A866 -> norma e Planifikuar e ndërprerjes (mirëmbajtja) | D14: % | F14: ='GN3 Driver GEN KEK'!F14/8760 -> 0 | G14: ='GN3 Driver GEN KEK'!G14/8760 -> 0 | H14: ='GN3 Driver GEN KEK'!H14/8760 -> 0 | I14: ='GN3 Driver GEN KEK'!I14/8760 -> 0 | J14: ='GN3 Driver GEN KEK'!J14/8760 -> 0 | K14: ='GN3 Driver GEN KEK'!K14/8760 -> 0 | L14: ='GN3 Driver GEN KEK'!L14/8760 -> 0 | M14: ='GN3 Driver GEN KEK'!M14/8760 -> 0 | N14: ='GN3 Driver GEN KEK'!N14/8760 -> 0 | O14: ='GN3 Driver GEN KEK'!O14/8760 -> 0
B15: =Translation!A867 -> Faktor I Disponueshmërisë | D15: % | F15: =1-F13-F14 -> 1 | G15: 1 | H15: 1 | I15: 1 | J15: 1 | K15: 1 | L15: 1 | M15: 1 | N15: 1 | O15: 1
B17: =Translation!A869 -> Gjenerimi bruto | D17: MWh | F17: ='GN3 Driver GEN KEK'!F16*'GN3 Driver GEN KEK'!F18 -> 0 | G17: ='GN3 Driver GEN KEK'!G16*'GN3 Driver GEN KEK'!G18 -> 0 | H17: ='GN3 Driver GEN KEK'!H16*'GN3 Driver GEN KEK'!H18 -> 0 | I17: ='GN3 Driver GEN KEK'!I16*'GN3 Driver GEN KEK'!I18 -> 0 | J17: ='GN3 Driver GEN KEK'!J16*'GN3 Driver GEN KEK'!J18 -> 0 | K17: ='GN3 Driver GEN KEK'!K16*'GN3 Driver GEN KEK'!K18 -> 0 | L17: ='GN3 Driver GEN KEK'!L16*'GN3 Driver GEN KEK'!L18 -> 0 | M17: ='GN3 Driver GEN KEK'!M16*'GN3 Driver GEN KEK'!M18 -> 0 | N17: ='GN3 Driver GEN KEK'!N16*'GN3 Driver GEN KEK'!N18 -> 0 | O17: ='GN3 Driver GEN KEK'!O16*'GN3 Driver GEN KEK'!O18 -> 0
B18: =Translation!A870 -> Gjenerimi Neto | D18: MWh | F18: ='GN3 Driver GEN KEK'!F19*'GN3 Driver GEN KEK'!F16 -> 0 | G18: ='GN3 Driver GEN KEK'!G19*'GN3 Driver GEN KEK'!G16 -> 0 | H18: ='GN3 Driver GEN KEK'!H19*'GN3 Driver GEN KEK'!H16 -> 0 | I18: ='GN3 Driver GEN KEK'!I19*'GN3 Driver GEN KEK'!I16 -> 0 | J18: ='GN3 Driver GEN KEK'!J19*'GN3 Driver GEN KEK'!J16 -> 0 | K18: ='GN3 Driver GEN KEK'!K19*'GN3 Driver GEN KEK'!K16 -> 0 | L18: ='GN3 Driver GEN KEK'!L19*'GN3 Driver GEN KEK'!L16 -> 0 | M18: ='GN3 Driver GEN KEK'!M19*'GN3 Driver GEN KEK'!M16 -> 0 | N18: ='GN3 Driver GEN KEK'!N19*'GN3 Driver GEN KEK'!N16 -> 0 | O18: ='GN3 Driver GEN KEK'!O19*'GN3 Driver GEN KEK'!O16 -> 0
B20: =Translation!A872 -> Faktor i kapacitetit bruto | D20: % | F20: =IF('GN3 Driver GEN KEK'!F18=0," -",'GN4 Driver GEN KEK'!F17/('GN3 Driver GEN KEK'!F18*8760)) -> - | G20: =IF('GN3 Driver GEN KEK'!G18=0," -",'GN4 Driver GEN KEK'!G17/('GN3 Driver GEN KEK'!G18*8760)) -> - | H20: =IF('GN3 Driver GEN KEK'!H18=0," -",'GN4 Driver GEN KEK'!H17/('GN3 Driver GEN KEK'!H18*8760)) -> - | I20: =IF('GN3 Driver GEN KEK'!I18=0," -",'GN4 Driver GEN KEK'!I17/('GN3 Driver GEN KEK'!I18*8760)) -> - | J20: =IF('GN3 Driver GEN KEK'!J18=0," -",'GN4 Driver GEN KEK'!J17/('GN3 Driver GEN KEK'!J18*8760)) -> - | K20: =IF('GN3 Driver GEN KEK'!K18=0," -",'GN4 Driver GEN KEK'!K17/('GN3 Driver GEN KEK'!K18*8760)) -> - | L20: =IF('GN3 Driver GEN KEK'!L18=0," -",'GN4 Driver GEN KEK'!L17/('GN3 Driver GEN KEK'!L18*8760)) -> - | M20: =IF('GN3 Driver GEN KEK'!M18=0," -",'GN4 Driver GEN KEK'!M17/('GN3 Driver GEN KEK'!M18*8760)) -> - | N20: =IF('GN3 Driver GEN KEK'!N18=0," -",'GN4 Driver GEN KEK'!N17/('GN3 Driver GEN KEK'!N18*8760)) -> - | O20: =IF('GN3 Driver GEN KEK'!O18=0," -",'GN4 Driver GEN KEK'!O17/('GN3 Driver GEN KEK'!O18*8760)) -> -
B21: =Translation!A873 -> Faktori I kapacitetit neto | D21: % | F21: =IF('GN3 Driver GEN KEK'!F19=0," -",'GN4 Driver GEN KEK'!F18/('GN3 Driver GEN KEK'!F19*8760)) -> - | G21: =IF('GN3 Driver GEN KEK'!G19=0," -",'GN4 Driver GEN KEK'!G18/('GN3 Driver GEN KEK'!G19*8760)) -> - | H21: =IF('GN3 Driver GEN KEK'!H19=0," -",'GN4 Driver GEN KEK'!H18/('GN3 Driver GEN KEK'!H19*8760)) -> - | I21: =IF('GN3 Driver GEN KEK'!I19=0," -",'GN4 Driver GEN KEK'!I18/('GN3 Driver GEN KEK'!I19*8760)) -> - | J21: =IF('GN3 Driver GEN KEK'!J19=0," -",'GN4 Driver GEN KEK'!J18/('GN3 Driver GEN KEK'!J19*8760)) -> - | K21: =IF('GN3 Driver GEN KEK'!K19=0," -",'GN4 Driver GEN KEK'!K18/('GN3 Driver GEN KEK'!K19*8760)) -> - | L21: =IF('GN3 Driver GEN KEK'!L19=0," -",'GN4 Driver GEN KEK'!L18/('GN3 Driver GEN KEK'!L19*8760)) -> - | M21: =IF('GN3 Driver GEN KEK'!M19=0," -",'GN4 Driver GEN KEK'!M18/('GN3 Driver GEN KEK'!M19*8760)) -> - | N21: =IF('GN3 Driver GEN KEK'!N19=0," -",'GN4 Driver GEN KEK'!N18/('GN3 Driver GEN KEK'!N19*8760)) -> - | O21: =IF('GN3 Driver GEN KEK'!O19=0," -",'GN4 Driver GEN KEK'!O18/('GN3 Driver GEN KEK'!O19*8760)) -> -
B23: =Translation!A875 -> Vlera e përgjithshme kalorifike të lëndës djegëse | D23: GJ | F23: ='GN3 Driver GEN KEK'!F29*'GN3 Driver GEN KEK'!F34+'GN3 Driver GEN KEK'!F30*'GN3 Driver GEN KEK'!F35+'GN3 Driver GEN KEK'!F31*'GN3 Driver GEN KEK'!F36 -> 0 | G23: ='GN3 Driver GEN KEK'!G29*'GN3 Driver GEN KEK'!G34+'GN3 Driver GEN KEK'!G30*'GN3 Driver GEN KEK'!G35+'GN3 Driver GEN KEK'!G31*'GN3 Driver GEN KEK'!G36 -> 0 | H23: ='GN3 Driver GEN KEK'!H29*'GN3 Driver GEN KEK'!H34+'GN3 Driver GEN KEK'!H30*'GN3 Driver GEN KEK'!H35+'GN3 Driver GEN KEK'!H31*'GN3 Driver GEN KEK'!H36 -> 0 | I23: ='GN3 Driver GEN KEK'!I29*'GN3 Driver GEN KEK'!I34+'GN3 Driver GEN KEK'!I30*'GN3 Driver GEN KEK'!I35+'GN3 Driver GEN KEK'!I31*'GN3 Driver GEN KEK'!I36 -> 0 | J23: ='GN3 Driver GEN KEK'!J29*'GN3 Driver GEN KEK'!J34+'GN3 Driver GEN KEK'!J30*'GN3 Driver GEN KEK'!J35+'GN3 Driver GEN KEK'!J31*'GN3 Driver GEN KEK'!J36 -> 0 | K23: ='GN3 Driver GEN KEK'!K29*'GN3 Driver GEN KEK'!K34+'GN3 Driver GEN KEK'!K30*'GN3 Driver GEN KEK'!K35+'GN3 Driver GEN KEK'!K31*'GN3 Driver GEN KEK'!K36 -> 0 | L23: ='GN3 Driver GEN KEK'!L29*'GN3 Driver GEN KEK'!L34+'GN3 Driver GEN KEK'!L30*'GN3 Driver GEN KEK'!L35+'GN3 Driver GEN KEK'!L31*'GN3 Driver GEN KEK'!L36 -> 0 | M23: ='GN3 Driver GEN KEK'!M29*'GN3 Driver GEN KEK'!M34+'GN3 Driver GEN KEK'!M30*'GN3 Driver GEN KEK'!M35+'GN3 Driver GEN KEK'!M31*'GN3 Driver GEN KEK'!M36 -> 0 | N23: ='GN3 Driver GEN KEK'!N29*'GN3 Driver GEN KEK'!N34+'GN3 Driver GEN KEK'!N30*'GN3 Driver GEN KEK'!N35+'GN3 Driver GEN KEK'!N31*'GN3 Driver GEN KEK'!N36 -> 0 | O23: ='GN3 Driver GEN KEK'!O29*'GN3 Driver GEN KEK'!O34+'GN3 Driver GEN KEK'!O30*'GN3 Driver GEN KEK'!O35+'GN3 Driver GEN KEK'!O31*'GN3 Driver GEN KEK'!O36 -> 0
B25: =Translation!A877 -> Efikasiteti bruto | D25: % | F25: =IF(F20=" -",0,F20/F23) -> 0 | G25: =IF(G20=" -",0,G20/G23) -> 0 | H25: 0 | I25: 0 | J25: 0 | K25: 0 | L25: 0 | M25: 0 | N25: 0 | O25: 0
B26: =Translation!A878 -> Efikasitetit Neto | D26: % | F26: =IF(F21=" -",0,F21/F23) -> 0 | G26: =IF(G21=" -",0,G21/G23) -> 0 | H26: 0 | I26: 0 | J26: 0 | K26: 0 | L26: 0 | M26: 0 | N26: 0 | O26: 0
B27: KOSOVO B
B28: =Translation!A865 -> Shkalla e ndërprerjes së detyruar | D28: % | F28: ='GN3 Driver GEN KEK'!F28/8760 -> 0 | G28: ='GN3 Driver GEN KEK'!G28/8760 -> 0 | H28: ='GN3 Driver GEN KEK'!H28/8760 -> 0 | I28: ='GN3 Driver GEN KEK'!I28/8760 -> 0 | J28: ='GN3 Driver GEN KEK'!J28/8760 -> 0 | K28: ='GN3 Driver GEN KEK'!K28/8760 -> 0 | L28: ='GN3 Driver GEN KEK'!L28/8760 -> 0 | M28: ='GN3 Driver GEN KEK'!M28/8760 -> 0 | N28: ='GN3 Driver GEN KEK'!N28/8760 -> 0 | O28: ='GN3 Driver GEN KEK'!O28/8760 -> 0
B29: =Translation!A866 -> norma e Planifikuar e ndërprerjes (mirëmbajtja) | D29: % | F29: ='GN3 Driver GEN KEK'!F29/8760 -> 0 | G29: ='GN3 Driver GEN KEK'!G29/8760 -> 0 | H29: ='GN3 Driver GEN KEK'!H29/8760 -> 0 | I29: ='GN3 Driver GEN KEK'!I29/8760 -> 0 | J29: ='GN3 Driver GEN KEK'!J29/8760 -> 0 | K29: ='GN3 Driver GEN KEK'!K29/8760 -> 0 | L29: ='GN3 Driver GEN KEK'!L29/8760 -> 0 | M29: ='GN3 Driver GEN KEK'!M29/8760 -> 0 | N29: ='GN3 Driver GEN KEK'!N29/8760 -> 0 | O29: ='GN3 Driver GEN KEK'!O29/8760 -> 0
B30: =Translation!A867 -> Faktor I Disponueshmërisë | D30: % | F30: =1-F28-F29 -> 1 | G30: 1 | H30: 1 | I30: 1 | J30: 1 | K30: 1 | L30: 1 | M30: 1 | N30: 1 | O30: 1
B32: =Translation!A869 -> Gjenerimi bruto | D32: MWh | F32: ='GN3 Driver GEN KEK'!F31*'GN3 Driver GEN KEK'!F33 -> 0 | G32: ='GN3 Driver GEN KEK'!G31*'GN3 Driver GEN KEK'!G33 -> 0 | H32: ='GN3 Driver GEN KEK'!H31*'GN3 Driver GEN KEK'!H33 -> 0 | I32: ='GN3 Driver GEN KEK'!I31*'GN3 Driver GEN KEK'!I33 -> 0 | J32: ='GN3 Driver GEN KEK'!J31*'GN3 Driver GEN KEK'!J33 -> 0 | K32: ='GN3 Driver GEN KEK'!K31*'GN3 Driver GEN KEK'!K33 -> 0 | L32: ='GN3 Driver GEN KEK'!L31*'GN3 Driver GEN KEK'!L33 -> 0 | M32: ='GN3 Driver GEN KEK'!M31*'GN3 Driver GEN KEK'!M33 -> 0 | N32: ='GN3 Driver GEN KEK'!N31*'GN3 Driver GEN KEK'!N33 -> 0 | O32: ='GN3 Driver GEN KEK'!O31*'GN3 Driver GEN KEK'!O33 -> 0
B33: =Translation!A870 -> Gjenerimi Neto | D33: MWh | F33: ='GN3 Driver GEN KEK'!F34*'GN3 Driver GEN KEK'!F31 -> 0 | G33: ='GN3 Driver GEN KEK'!G34*'GN3 Driver GEN KEK'!G31 -> 0 | H33: ='GN3 Driver GEN KEK'!H34*'GN3 Driver GEN KEK'!H31 -> 0 | I33: ='GN3 Driver GEN KEK'!I34*'GN3 Driver GEN KEK'!I31 -> 0 | J33: ='GN3 Driver GEN KEK'!J34*'GN3 Driver GEN KEK'!J31 -> 0 | K33: ='GN3 Driver GEN KEK'!K34*'GN3 Driver GEN KEK'!K31 -> 0 | L33: ='GN3 Driver GEN KEK'!L34*'GN3 Driver GEN KEK'!L31 -> 0 | M33: ='GN3 Driver GEN KEK'!M34*'GN3 Driver GEN KEK'!M31 -> 0 | N33: ='GN3 Driver GEN KEK'!N34*'GN3 Driver GEN KEK'!N31 -> 0 | O33: ='GN3 Driver GEN KEK'!O34*'GN3 Driver GEN KEK'!O31 -> 0
B35: =Translation!A872 -> Faktor i kapacitetit bruto | D35: % | F35: =IF('GN3 Driver GEN KEK'!F33=0," -",'GN4 Driver GEN KEK'!F32/('GN3 Driver GEN KEK'!F33*8760)) -> - | G35: =IF('GN3 Driver GEN KEK'!G33=0," -",'GN4 Driver GEN KEK'!G32/('GN3 Driver GEN KEK'!G33*8760)) -> - | H35: =IF('GN3 Driver GEN KEK'!H33=0," -",'GN4 Driver GEN KEK'!H32/('GN3 Driver GEN KEK'!H33*8760)) -> - | I35: =IF('GN3 Driver GEN KEK'!I33=0," -",'GN4 Driver GEN KEK'!I32/('GN3 Driver GEN KEK'!I33*8760)) -> - | J35: =IF('GN3 Driver GEN KEK'!J33=0," -",'GN4 Driver GEN KEK'!J32/('GN3 Driver GEN KEK'!J33*8760)) -> - | K35: =IF('GN3 Driver GEN KEK'!K33=0," -",'GN4 Driver GEN KEK'!K32/('GN3 Driver GEN KEK'!K33*8760)) -> - | L35: =IF('GN3 Driver GEN KEK'!L33=0," -",'GN4 Driver GEN KEK'!L32/('GN3 Driver GEN KEK'!L33*8760)) -> - | M35: =IF('GN3 Driver GEN KEK'!M33=0," -",'GN4 Driver GEN KEK'!M32/('GN3 Driver GEN KEK'!M33*8760)) -> - | N35: =IF('GN3 Driver GEN KEK'!N33=0," -",'GN4 Driver GEN KEK'!N32/('GN3 Driver GEN KEK'!N33*8760)) -> - | O35: =IF('GN3 Driver GEN KEK'!O33=0," -",'GN4 Driver GEN KEK'!O32/('GN3 Driver GEN KEK'!O33*8760)) -> -
B36: =Translation!A873 -> Faktori I kapacitetit neto | D36: % | F36: =IF('GN3 Driver GEN KEK'!F34=0," -",'GN4 Driver GEN KEK'!F33/('GN3 Driver GEN KEK'!F34*8760)) -> - | G36: =IF('GN3 Driver GEN KEK'!G34=0," -",'GN4 Driver GEN KEK'!G33/('GN3 Driver GEN KEK'!G34*8760)) -> - | H36: =IF('GN3 Driver GEN KEK'!H34=0," -",'GN4 Driver GEN KEK'!H33/('GN3 Driver GEN KEK'!H34*8760)) -> - | I36: =IF('GN3 Driver GEN KEK'!I34=0," -",'GN4 Driver GEN KEK'!I33/('GN3 Driver GEN KEK'!I34*8760)) -> - | J36: =IF('GN3 Driver GEN KEK'!J34=0," -",'GN4 Driver GEN KEK'!J33/('GN3 Driver GEN KEK'!J34*8760)) -> - | K36: =IF('GN3 Driver GEN KEK'!K34=0," -",'GN4 Driver GEN KEK'!K33/('GN3 Driver GEN KEK'!K34*8760)) -> - | L36: =IF('GN3 Driver GEN KEK'!L34=0," -",'GN4 Driver GEN KEK'!L33/('GN3 Driver GEN KEK'!L34*8760)) -> - | M36: =IF('GN3 Driver GEN KEK'!M34=0," -",'GN4 Driver GEN KEK'!M33/('GN3 Driver GEN KEK'!M34*8760)) -> - | N36: =IF('GN3 Driver GEN KEK'!N34=0," -",'GN4 Driver GEN KEK'!N33/('GN3 Driver GEN KEK'!N34*8760)) -> - | O36: =IF('GN3 Driver GEN KEK'!O34=0," -",'GN4 Driver GEN KEK'!O33/('GN3 Driver GEN KEK'!O34*8760)) -> -
B38: =Translation!A875 -> Vlera e përgjithshme kalorifike të lëndës djegëse | D38: GJ | F38: ='GN3 Driver GEN KEK'!F44*'GN3 Driver GEN KEK'!F49+'GN3 Driver GEN KEK'!F45*'GN3 Driver GEN KEK'!F50+'GN3 Driver GEN KEK'!F46*'GN3 Driver GEN KEK'!F51 -> 0 | G38: ='GN3 Driver GEN KEK'!G44*'GN3 Driver GEN KEK'!G49+'GN3 Driver GEN KEK'!G45*'GN3 Driver GEN KEK'!G50+'GN3 Driver GEN KEK'!G46*'GN3 Driver GEN KEK'!G51 -> 0 | H38: ='GN3 Driver GEN KEK'!H44*'GN3 Driver GEN KEK'!H49+'GN3 Driver GEN KEK'!H45*'GN3 Driver GEN KEK'!H50+'GN3 Driver GEN KEK'!H46*'GN3 Driver GEN KEK'!H51 -> 0 | I38: ='GN3 Driver GEN KEK'!I44*'GN3 Driver GEN KEK'!I49+'GN3 Driver GEN KEK'!I45*'GN3 Driver GEN KEK'!I50+'GN3 Driver GEN KEK'!I46*'GN3 Driver GEN KEK'!I51 -> 0 | J38: ='GN3 Driver GEN KEK'!J44*'GN3 Driver GEN KEK'!J49+'GN3 Driver GEN KEK'!J45*'GN3 Driver GEN KEK'!J50+'GN3 Driver GEN KEK'!J46*'GN3 Driver GEN KEK'!J51 -> 0 | K38: ='GN3 Driver GEN KEK'!K44*'GN3 Driver GEN KEK'!K49+'GN3 Driver GEN KEK'!K45*'GN3 Driver GEN KEK'!K50+'GN3 Driver GEN KEK'!K46*'GN3 Driver GEN KEK'!K51 -> 0 | L38: ='GN3 Driver GEN KEK'!L44*'GN3 Driver GEN KEK'!L49+'GN3 Driver GEN KEK'!L45*'GN3 Driver GEN KEK'!L50+'GN3 Driver GEN KEK'!L46*'GN3 Driver GEN KEK'!L51 -> 0 | M38: ='GN3 Driver GEN KEK'!M44*'GN3 Driver GEN KEK'!M49+'GN3 Driver GEN KEK'!M45*'GN3 Driver GEN KEK'!M50+'GN3 Driver GEN KEK'!M46*'GN3 Driver GEN KEK'!M51 -> 0 | N38: ='GN3 Driver GEN KEK'!N44*'GN3 Driver GEN KEK'!N49+'GN3 Driver GEN KEK'!N45*'GN3 Driver GEN KEK'!N50+'GN3 Driver GEN KEK'!N46*'GN3 Driver GEN KEK'!N51 -> 0 | O38: ='GN3 Driver GEN KEK'!O44*'GN3 Driver GEN KEK'!O49+'GN3 Driver GEN KEK'!O45*'GN3 Driver GEN KEK'!O50+'GN3 Driver GEN KEK'!O46*'GN3 Driver GEN KEK'!O51 -> 0
B40: =Translation!A877 -> Efikasiteti bruto | D40: % | F40: =IF(F35=" -",0,F35/F38) -> 0 | G40: =IF(G35=" -",0,G35/G38) -> 0 | H40: 0 | I40: 0 | J40: 0 | K40: 0 | L40: 0 | M40: 0 | N40: 0 | O40: 0
B41: =Translation!A878 -> Efikasitetit Neto | D41: % | F41: =IF(F36=" -",0,F36/F38) -> 0 | G41: =IF(G36=" -",0,G36/G38) -> 0 | H41: 0 | I41: 0 | J41: 0 | K41: 0 | L41: 0 | M41: 0 | N41: 0 | O41: 0

Sheet GN5 CAPEX (GEN a) KEK
A6: =Translation!A949 -> Shqyrtimi SHVT 2013-2017
A7: =Translation!A880 -> GJN 5 - | B7: =Translation!A881 -> Capex a
B9: =Translation!A225 -> Capex | D9: =Translation!A283 -> Projekti referencë | E9: =Translation!A285 -> Buxheti i përgjithshëm (€ 000) | F9: =Translation!A287 -> Total Grant (€ 000) | H9: =Translation!A289 -> Data e fillimit | I9: =Translation!A291 -> Data e perfundimit | J9: =Translation!A293 -> Lloji i Projektit | K9: =Translation!A233 -> Koment | M9: Type
B10: =Translation!A282 -> Emri i projektit
B11: KOSOVO A
M12: New unit
M13: Replacement
M14: Reconstruction
B27: =Translation!A224 -> Shto rreshtat shtese me larte
B28: KOSOVO B
M29: New unit
M30: Replacement
M31: Reconstruction
B44: =Translation!A224 -> Shto rreshtat shtese me larte

Sheet GN6 CAPEX (GEN b) KEK
A6: =Translation!A949 -> Shqyrtimi SHVT 2013-2017
A7: =Translation!A883 -> GJN 6 - | B7: =Translation!A884 -> Capex b
B8: =Translation!A310 -> Tri kolonat e para aotomatikisht mbushen nga Capexi(a)
B9: =Translation!A225 -> Capex | D9: =Translation!A283 -> Projekti referencë | E9: =Translation!A285 -> Buxheti i përgjithshëm (€ 000) | F9: =Translation!A287 -> Total Grant (€ 000) | H9: 2008 | I9: 2009 | J9: 2010 | K9: 2011 | L9: 2012 | M9: 2013 | N9: 2014 | O9: 2015 | P9: 2016 | Q9: 2017
B10: =Translation!A282 -> Emri i projektit | H10: ='GN4 Driver GEN KEK'!F10 -> Aktuale (€ '000) | I10: ='GN4 Driver GEN KEK'!G10 -> Aktuale (€ '000) | J10: ='GN4 Driver GEN KEK'!H10 -> Aktuale (€ '000) | K10: ='GN4 Driver GEN KEK'!I10 -> Aktuale (€ '000) | L10: ='GN4 Driver GEN KEK'!J10 -> Vlerësimi (€ '000) | M10: ='GN4 Driver GEN KEK'!K10 -> Parashikimi (€ '000) | N10: ='GN4 Driver GEN KEK'!L10 -> Parashikimi (€ '000) | O10: ='GN4 Driver GEN KEK'!M10 -> Parashikimi (€ '000) | P10: ='GN4 Driver GEN KEK'!N10 -> Parashikimi (€ '000) | Q10: ='GN4 Driver GEN KEK'!O10 -> Parashikimi (€ '000)
B11: KOSOVO A
B12: ='GN5 CAPEX (GEN a) KEK'!B12 -> 0 | D12: ='GN5 CAPEX (GEN a) KEK'!D12 -> 0 | E12: ='GN5 CAPEX (GEN a) KEK'!E12 -> 0 | F12: ='GN5 CAPEX (GEN a) KEK'!F12 -> 0
B13: ='GN5 CAPEX (GEN a) KEK'!B13 -> 0 | D13: ='GN5 CAPEX (GEN a) KEK'!D13 -> 0 | E13: ='GN5 CAPEX (GEN a) KEK'!E13 -> 0 | F13: ='GN5 CAPEX (GEN a) KEK'!F13 -> 0
B14: ='GN5 CAPEX (GEN a) KEK'!B14 -> 0 | D14: ='GN5 CAPEX (GEN a) KEK'!D14 -> 0 | E14: ='GN5 CAPEX (GEN a) KEK'!E14 -> 0 | F14: ='GN5 CAPEX (GEN a) KEK'!F14 -> 0
B15: ='GN5 CAPEX (GEN a) KEK'!B15 -> 0 | D15: ='GN5 CAPEX (GEN a) KEK'!D15 -> 0 | E15: ='GN5 CAPEX (GEN a) KEK'!E15 -> 0 | F15: ='GN5 CAPEX (GEN a) KEK'!F15 -> 0
B16: ='GN5 CAPEX (GEN a) KEK'!B16 -> 0 | D16: ='GN5 CAPEX (GEN a) KEK'!D16 -> 0 | E16: ='GN5 CAPEX (GEN a) KEK'!E16 -> 0 | F16: ='GN5 CAPEX (GEN a) KEK'!F16 -> 0
B17: ='GN5 CAPEX (GEN a) KEK'!B17 -> 0 | D17: ='GN5 CAPEX (GEN a) KEK'!D17 -> 0 | E17: ='GN5 CAPEX (GEN a) KEK'!E17 -> 0 | F17: ='GN5 CAPEX (GEN a) KEK'!F17 -> 0
B18: ='GN5 CAPEX (GEN a) KEK'!B18 -> 0 | D18: ='GN5 CAPEX (GEN a) KEK'!D18 -> 0 | E18: ='GN5 CAPEX (GEN a) KEK'!E18 -> 0 | F18: ='GN5 CAPEX (GEN a) KEK'!F18 -> 0
B19: ='GN5 CAPEX (GEN a) KEK'!B19 -> 0 | D19: ='GN5 CAPEX (GEN a) KEK'!D19 -> 0 | E19: ='GN5 CAPEX (GEN a) KEK'!E19 -> 0 | F19: ='GN5 CAPEX (GEN a) KEK'!F19 -> 0
B20: ='GN5 CAPEX (GEN a) KEK'!B20 -> 0 | D20: ='GN5 CAPEX (GEN a) KEK'!D20 -> 0 | E20: ='GN5 CAPEX (GEN a) KEK'!E20 -> 0 | F20: ='GN5 CAPEX (GEN a) KEK'!F20 -> 0
B21: ='GN5 CAPEX (GEN a) KEK'!B21 -> 0 | D21: ='GN5 CAPEX (GEN a) KEK'!D21 -> 0 | E21: ='GN5 CAPEX (GEN a) KEK'!E21 -> 0 | F21: ='GN5 CAPEX (GEN a) KEK'!F21 -> 0
B22: ='GN5 CAPEX (GEN a) KEK'!B22 -> 0 | D22: ='GN5 CAPEX (GEN a) KEK'!D22 -> 0 | E22: ='GN5 CAPEX (GEN a) KEK'!E22 -> 0 | F22: ='GN5 CAPEX (GEN a) KEK'!F22 -> 0
B23: ='GN5 CAPEX (GEN a) KEK'!B23 -> 0 | D23: ='GN5 CAPEX (GEN a) KEK'!D23 -> 0 | E23: ='GN5 CAPEX (GEN a) KEK'!E23 -> 0 | F23: ='GN5 CAPEX (GEN a) KEK'!F23 -> 0
B24: ='GN5 CAPEX (GEN a) KEK'!B24 -> 0 | D24: ='GN5 CAPEX (GEN a) KEK'!D24 -> 0 | E24: ='GN5 CAPEX (GEN a) KEK'!E24 -> 0 | F24: ='GN5 CAPEX (GEN a) KEK'!F24 -> 0
B25: ='GN5 CAPEX (GEN a) KEK'!B25 -> 0 | D25: ='GN5 CAPEX (GEN a) KEK'!D25 -> 0 | E25: ='GN5 CAPEX (GEN a) KEK'!E25 -> 0 | F25: ='GN5 CAPEX (GEN a) KEK'!F25 -> 0
B26: ='GN5 CAPEX (GEN a) KEK'!B26 -> 0 | D26: ='GN5 CAPEX (GEN a) KEK'!D26 -> 0 | E26: ='GN5 CAPEX (GEN a) KEK'!E26 -> 0 | F26: ='GN5 CAPEX (GEN a) KEK'!F26 -> 0
B28: KOSOVO B
B29: ='GN5 CAPEX (GEN a) KEK'!B29 -> 0 | D29: ='GN5 CAPEX (GEN a) KEK'!D29 -> 0 | E29: ='GN5 CAPEX (GEN a) KEK'!E29 -> 0 | F29: ='GN5 CAPEX (GEN a) KEK'!F29 -> 0
B30: ='GN5 CAPEX (GEN a) KEK'!B30 -> 0 | D30: ='GN5 CAPEX (GEN a) KEK'!D30 -> 0 | E30: ='GN5 CAPEX (GEN a) KEK'!E30 -> 0 | F30: ='GN5 CAPEX (GEN a) KEK'!F30 -> 0
B31: ='GN5 CAPEX (GEN a) KEK'!B31 -> 0 | D31: ='GN5 CAPEX (GEN a) KEK'!D31 -> 0 | E31: ='GN5 CAPEX (GEN a) KEK'!E31 -> 0 | F31: ='GN5 CAPEX (GEN a) KEK'!F31 -> 0
B32: ='GN5 CAPEX (GEN a) KEK'!B32 -> 0 | D32: ='GN5 CAPEX (GEN a) KEK'!D32 -> 0 | E32: ='GN5 CAPEX (GEN a) KEK'!E32 -> 0 | F32: ='GN5 CAPEX (GEN a) KEK'!F32 -> 0
B33: ='GN5 CAPEX (GEN a) KEK'!B33 -> 0 | D33: ='GN5 CAPEX (GEN a) KEK'!D33 -> 0 | E33: ='GN5 CAPEX (GEN a) KEK'!E33 -> 0 | F33: ='GN5 CAPEX (GEN a) KEK'!F33 -> 0
B34: ='GN5 CAPEX (GEN a) KEK'!B34 -> 0 | D34: ='GN5 CAPEX (GEN a) KEK'!D34 -> 0 | E34: ='GN5 CAPEX (GEN a) KEK'!E34 -> 0 | F34: ='GN5 CAPEX (GEN a) KEK'!F34 -> 0
B35: ='GN5 CAPEX (GEN a) KEK'!B35 -> 0 | D35: ='GN5 CAPEX (GEN a) KEK'!D35 -> 0 | E35: ='GN5 CAPEX (GEN a) KEK'!E35 -> 0 | F35: ='GN5 CAPEX (GEN a) KEK'!F35 -> 0
B36: ='GN5 CAPEX (GEN a) KEK'!B36 -> 0 | D36: ='GN5 CAPEX (GEN a) KEK'!D36 -> 0 | E36: ='GN5 CAPEX (GEN a) KEK'!E36 -> 0 | F36: ='GN5 CAPEX (GEN a) KEK'!F36 -> 0
B37: ='GN5 CAPEX (GEN a) KEK'!B37 -> 0 | D37: ='GN5 CAPEX (GEN a) KEK'!D37 -> 0 | E37: ='GN5 CAPEX (GEN a) KEK'!E37 -> 0 | F37: ='GN5 CAPEX (GEN a) KEK'!F37 -> 0
B38: ='GN5 CAPEX (GEN a) KEK'!B38 -> 0 | D38: ='GN5 CAPEX (GEN a) KEK'!D38 -> 0 | E38: ='GN5 CAPEX (GEN a) KEK'!E38 -> 0 | F38: ='GN5 CAPEX (GEN a) KEK'!F38 -> 0
B39: ='GN5 CAPEX (GEN a) KEK'!B39 -> 0 | D39: ='GN5 CAPEX (GEN a) KEK'!D39 -> 0 | E39: ='GN5 CAPEX (GEN a) KEK'!E39 -> 0 | F39: ='GN5 CAPEX (GEN a) KEK'!F39 -> 0
B40: ='GN5 CAPEX (GEN a) KEK'!B40 -> 0 | D40: ='GN5 CAPEX (GEN a) KEK'!D40 -> 0 | E40: ='GN5 CAPEX (GEN a) KEK'!E40 -> 0 | F40: ='GN5 CAPEX (GEN a) KEK'!F40 -> 0
B41: ='GN5 CAPEX (GEN a) KEK'!B41 -> 0 | D41: ='GN5 CAPEX (GEN a) KEK'!D41 -> 0 | E41: ='GN5 CAPEX (GEN a) KEK'!E41 -> 0 | F41: ='GN5 CAPEX (GEN a) KEK'!F41 -> 0
B42: ='GN5 CAPEX (GEN a) KEK'!B42 -> 0 | D42: ='GN5 CAPEX (GEN a) KEK'!D42 -> 0 | E42: ='GN5 CAPEX (GEN a) KEK'!E42 -> 0 | F42: ='GN5 CAPEX (GEN a) KEK'!F42 -> 0
B43: ='GN5 CAPEX (GEN a) KEK'!B43 -> 0 | D43: ='GN5 CAPEX (GEN a) KEK'!D43 -> 0 | E43: ='GN5 CAPEX (GEN a) KEK'!E43 -> 0 | F43: ='GN5 CAPEX (GEN a) KEK'!F43 -> 0

Sheet GN7 Assets (GEN) KEK
A6: =Translation!A949 -> Shqyrtimi SHVT 2013-2017
A7: GN7 | B7: Assets
B9: =Translation!A347 -> Klasa e Aseteve | E9: =Translation!A348 -> Teknik | G9: =Translation!A350 -> më të vjetër | H9: 1965 | I9: 1970 | J9: 1975 | K9: 1980 | L9: 1985 | M9: 1990 | N9: 1995 | O9: 2000 | P9: 2005
E10: =Translation!A349 -> Jetegjatsia (vjet) | G10: 1960 | H10: 1961 | I10: 1966 | J10: 1971 | K10: 1976 | L10: 1981 | M10: 1986 | N10: 1991 | O10: 1996 | P10: 2001 | Q10: 2006 | R10: 2007 | S10: 2008 | T10: 2009 | U10: 2010 | V10: 2011 | W10: 2012
B11: KOSOVO A
B12: =Translation!A889 -> Ndërtesat
B13: =Translation!A890 -> ndërtesa e Termocentralit
B14: =Translation!A891 -> Ndërtesa të tjera
B16: =Translation!A893 -> Ndërtesat dhe pajisjet
B17: =Translation!A894 -> Pajisjet për prodhimin e energjisë elektrike
B18: =Translation!A895 -> Pajisje të tjera të përdorura në prodhimin e energjisë elektrike
B20: =Translation!A897 -> Mjetet, automjetet
B21: =Translation!A898 -> Mjetet
B22: =Translation!A899 -> Automjetet
B25: =Translation!A902 -> Asetet tjera
B28: KOSOVO B
B29: =Translation!A889 -> Ndërtesat
B30: =Translation!A890 -> ndërtesa e Termocentralit
B31: =Translation!A891 -> Ndërtesa të tjera
B33: =Translation!A893 -> Ndërtesat dhe pajisjet
B34: =Translation!A894 -> Pajisjet për prodhimin e energjisë elektrike
B35: =Translation!A895 -> Pajisje të tjera të përdorura në prodhimin e energjisë elektrike
B37: =Translation!A897 -> Mjetet, automjetet
B38: =Translation!A898 -> Mjetet
B39: =Translation!A899 -> Automjetet
B42: =Translation!A902 -> Asetet tjera

Sheet GN8 P&L GEN KEK
A6: =Translation!A949 -> Shqyrtimi SHVT 2013-2017
A7: =Translation!A904 -> Fitimi dhe Humbja GN8 (KEK) Gjenerimi
D9: =Translation!A700 -> Kodi I llogarisë | F9: 2008 | G9: 2009 | H9: 2010 | I9: 2011 | J9: 2012 | K9: 2013 | L9: 2014 | M9: 2015 | N9: 2016 | O9: 2017
B10: =Translation!A905 -> P & L Gjenerimi | F10: ='GN6 CAPEX (GEN b) KEK'!H10 -> Aktuale (€ '000) | G10: ='GN6 CAPEX (GEN b) KEK'!I10 -> Aktuale (€ '000) | H10: ='GN6 CAPEX (GEN b) KEK'!J10 -> Aktuale (€ '000) | I10: ='GN6 CAPEX (GEN b) KEK'!K10 -> Aktuale (€ '000) | J10: ='GN6 CAPEX (GEN b) KEK'!L10 -> Vlerësimi (€ '000) | K10: ='GN6 CAPEX (GEN b) KEK'!M10 -> Parashikimi (€ '000) | L10: ='GN6 CAPEX (GEN b) KEK'!N10 -> Parashikimi (€ '000) | M10: ='GN6 CAPEX (GEN b) KEK'!O10 -> Parashikimi (€ '000) | N10: ='GN6 CAPEX (GEN b) KEK'!P10 -> Parashikimi (€ '000) | O10: ='GN6 CAPEX (GEN b) KEK'!Q10 -> Parashikimi (€ '000)
B11: KOSOVO A
B12: =Translation!A907 -> Të ardhurat:
B13: =Translation!A908 -> Shitjet e FPEE
B14: =Translation!A909 -> Shitjet e KEK-ut furnizim / tregti
B15: =Translation!A910 -> Shitjet ndaj furnizuesve të tjera të licencuar
B16: =Translation!A911 -> Të ardhurat nga eksportet
B17: =Translation!A912 -> Të ardhura të tjera - të specifikuara
B18: =Translation!A913 -> Qarkullimi | F18: =SUM(F13:F17) -> 0 | G18: =SUM(G13:G17) -> 0 | H18: 0 | I18: 0 | J18: 0 | K18: 0 | L18: 0 | M18: 0 | N18: 0 | O18: 0
B19: =Translation!A920 -> Shpenzimet operative:
B20: =Translation!A921 -> Shpenzimet totale operative | F20: ='GN2a Other (GEN) KEK'!F39 -> 0 | G20: ='GN2a Other (GEN) KEK'!G39 -> 0 | H20: ='GN2a Other (GEN) KEK'!H39 -> 0 | I20: ='GN2a Other (GEN) KEK'!I39 -> 0 | J20: ='GN2a Other (GEN) KEK'!J39 -> 0 | K20: ='GN2a Other (GEN) KEK'!K39 -> 0 | L20: ='GN2a Other (GEN) KEK'!L39 -> 0 | M20: ='GN2a Other (GEN) KEK'!M39 -> 0 | N20: ='GN2a Other (GEN) KEK'!N39 -> 0 | O20: ='GN2a Other (GEN) KEK'!O39 -> 0
B21: =Translation!A922 -> Fitimi Operative / (humbja) | F21: =SUM(F18-F20) -> 0 | G21: =SUM(G18-G20) -> 0 | H21: 0 | I21: 0 | J21: 0 | K21: 0 | L21: 0 | M21: 0 | N21: 0 | O21: 0
B22: KOSOVO B
B23: =Translation!A907 -> Të ardhurat:
B24: =Translation!A908 -> Shitjet e FPEE
B25: =Translation!A909 -> Shitjet e KEK-ut furnizim / tregti
B26: =Translation!A910 -> Shitjet ndaj furnizuesve të tjera të licencuar
B27: =Translation!A911 -> Të ardhurat nga eksportet
B28: =Translation!A912 -> Të ardhura të tjera - të specifikuara
B29: =Translation!A913 -> Qarkullimi | F29: =SUM(F24:F28) -> 0 | G29: =SUM(G24:G28) -> 0 | H29: 0 | I29: 0 | J29: 0 | K29: 0 | L29: 0 | M29: 0 | N29: 0 | O29: 0
B30: =Translation!A920 -> Shpenzimet operative:
B31: =Translation!A921 -> Shpenzimet totale operative | F31: ='GN2a Other (GEN) KEK'!F81 -> 0 | G31: ='GN2a Other (GEN) KEK'!G81 -> 0 | H31: ='GN2a Other (GEN) KEK'!H81 -> 0 | I31: ='GN2a Other (GEN) KEK'!I81 -> 0 | J31: ='GN2a Other (GEN) KEK'!J81 -> 0 | K31: ='GN2a Other (GEN) KEK'!K81 -> 0 | L31: ='GN2a Other (GEN) KEK'!L81 -> 0 | M31: ='GN2a Other (GEN) KEK'!M81 -> 0 | N31: ='GN2a Other (GEN) KEK'!N81 -> 0 | O31: ='GN2a Other (GEN) KEK'!O81 -> 0
B32: =Translation!A922 -> Fitimi Operative / (humbja) | F32: =SUM(F29-F31) -> 0 | G32: =SUM(G29-G31) -> 0 | H32: 0 | I32: 0 | J32: 0 | K32: 0 | L32: 0 | M32: 0 | N32: 0 | O32: 0

Sheet Sheet5
